Body Name,Body,Service Area Catergorisation,Service Division Catergorisation,Responsible Unit,Expenses Type,Detailed Expenses Type,Expenses Code,Date,Transaction Number,Amount,Capital / Revenue,Supplier Name,Supplier ID
North East Lincolnshire Council,http://statistics.data.gov.uk/id/local-authority/00FC,Business Services,Law & Democratic Services,Legal Services,Direct Employee Expenses,Agency Staff,EA105,23/05/2011,9734,"1,510.16 ",Revenue,AD LITEM LEGAL SERVICES,102182
North East Lincolnshire Council,http://statistics.data.gov.uk/id/local-authority/00FC,Business Services,Strategic Business Support,Information Technology,Communications And Computing,Computer H/Ware - Purchases,LF105,10/05/2011,5317,"2,100.00 ",Revenue,AGGREKO UK LTD,103557
North East Lincolnshire Council,http://statistics.data.gov.uk/id/local-authority/00FC,Business Services,Strategic Business Support,Information Technology,Communications And Computing,Computer S/Ware - Purchases,LF101,12/05/2011,6076,660.00 ,Revenue,ALIGNED ASSETS LTD,101581
North East Lincolnshire Council,http://statistics.data.gov.uk/id/local-authority/00FC,Business Services,Law & Democratic Services,Democratic Services,Rents,Rent,GC101,23/05/2011,9884,Redacted Commercially Sensitive,Revenue,ATG VENUES UK LTD,102453
North East Lincolnshire Council,http://statistics.data.gov.uk/id/local-authority/00FC,Business Services,Strategic Business Support,Information Technology,Private Contractors,Third Party Prov - Private,PH101,20/05/2011,9236,"1,166.95 ",Revenue,AURORA GRAPHICS AND DISPLAYS LIMITED,101782
North East Lincolnshire Council,http://statistics.data.gov.uk/id/local-authority/00FC,Business Services,Finance & Strategic Change,Accountancy,Direct Employee Expenses,Agency Staff,EA105,09/05/2011,4746,751.32 ,Revenue,BADENOCH & CLARK,101427
North East Lincolnshire Council,http://statistics.data.gov.uk/id/local-authority/00FC,Business Services,Finance & Strategic Change,Accountancy,Direct Employee Expenses,Agency Staff,EA105,13/05/2011,6427,"1,288.00 ",Revenue,BADENOCH & CLARK,101427
North East Lincolnshire Council,http://statistics.data.gov.uk/id/local-authority/00FC,Business Services,Law & Democratic Services,Legal Services,Direct Employee Expenses,Agency Staff,EA105,11/05/2011,5104,"1,185.28 ",Revenue,BADENOCH & CLARK,101427
North East Lincolnshire Council,http://statistics.data.gov.uk/id/local-authority/00FC,Business Services,Law & Democratic Services,Legal Services,Direct Employee Expenses,Agency Staff,EA105,05/05/2011,3610,"1,185.28 ",Revenue,BADENOCH & CLARK,101427
North East Lincolnshire Council,http://statistics.data.gov.uk/id/local-authority/00FC,Business Services,Law & Democratic Services,Legal Services,Direct Employee Expenses,Agency Staff,EA105,20/05/2011,8648,"1,194.88 ",Revenue,BADENOCH & CLARK,101427
North East Lincolnshire Council,http://statistics.data.gov.uk/id/local-authority/00FC,Business Services,Law & Democratic Services,Legal Services,Direct Employee Expenses,Agency Staff,EA105,25/05/2011,10347,"1,344.24 ",Revenue,BADENOCH & CLARK,101427
North East Lincolnshire Council,http://statistics.data.gov.uk/id/local-authority/00FC,Business Services,Law & Democratic Services,Legal Services,Direct Employee Expenses,Agency Staff,EA105,23/05/2011,9717,"1,344.24 ",Revenue,BADENOCH & CLARK,101427
North East Lincolnshire Council,http://statistics.data.gov.uk/id/local-authority/00FC,Business Services,Strategic Business Support,Information Technology,Direct Employee Expenses,Agency Staff,EA105,25/05/2011,10349,"4,272.32 ",Revenue,BADENOCH & CLARK,101427
North East Lincolnshire Council,http://statistics.data.gov.uk/id/local-authority/00FC,Business Services,Law & Democratic Services,Town Hall,Car Allowances,Essential User Car Allowance,JF103,18/05/2011,7872,533.91 ,Revenue,BUSINESS PARTNER,103902
North East Lincolnshire Council,http://statistics.data.gov.uk/id/local-authority/00FC,Business Services,Strategic Business Support,Information Technology,Communications And Computing,Computer H/Ware - Purchases,LF105,13/05/2011,6475,"11,882.60 ",Revenue,CABLE & WIRELESS,103661
North East Lincolnshire Council,http://statistics.data.gov.uk/id/local-authority/00FC,Business Services,Strategic Business Support,Information Technology,Communications And Computing,Computer H/Ware - Maintenance,LF106,06/05/2011,4347,"4,500.00 ",Revenue,CANVAS SYSTEMS,103440
North East Lincolnshire Council,http://statistics.data.gov.uk/id/local-authority/00FC,Business Services,Finance & Strategic Change,Deputy Director Of Finance,Indirect Employee Expenses,Staff Training,EB122,05/05/2011,3272,"1,640.00 ",Revenue,CIPFA,100518
North East Lincolnshire Council,http://statistics.data.gov.uk/id/local-authority/00FC,Business Services,Finance & Strategic Change,Audit,Grants And Subscriptions,Subscriptions,LJ101,23/05/2011,9940,"2,840.00 ",Revenue,CIPFA,100518
North East Lincolnshire Council,http://statistics.data.gov.uk/id/local-authority/00FC,Frontier Ms Exchange,Frontier Ms Exchange,Frontier Ms Exchange,Cap Veh Plt Eqp-Purchase,Cap Veh Plt Eqp-Purchase,YB101,05/05/2011,2106,"29,688.00 ",Capital,DELL COMPUTER CORPORATION LTD,100892
North East Lincolnshire Council,http://statistics.data.gov.uk/id/local-authority/00FC,Frontier Ms Exchange,Frontier Ms Exchange,Frontier Ms Exchange,Cap Veh Plt Eqp-Purchase,Cap Veh Plt Eqp-Purchase,YB101,25/05/2011,4672,"74,220.00 ",Capital,DELL COMPUTER CORPORATION LTD,100892
North East Lincolnshire Council,http://statistics.data.gov.uk/id/local-authority/00FC,Business Services,Strategic Business Support,Information Technology,Communications And Computing,Computer S/Ware - Purchases,LF101,20/05/2011,8964,"3,640.00 ",Revenue,DOTTED EYES LTD,102296
North East Lincolnshire Council,http://statistics.data.gov.uk/id/local-authority/00FC,Business Services,Finance & Strategic Change,Income & Payments Service,Communications And Computing,Postage,LF111,05/05/2011,3188,781.95 ,Revenue,FINANCIAL DATA MANAGEMENT LTD,101784
North East Lincolnshire Council,http://statistics.data.gov.uk/id/local-authority/00FC,Business Services,Finance & Strategic Change,Income & Payments Service,Communications And Computing,Postage,LF111,05/05/2011,3189,991.88 ,Revenue,FINANCIAL DATA MANAGEMENT LTD,101784
North East Lincolnshire Council,http://statistics.data.gov.uk/id/local-authority/00FC,Business Services,Finance & Strategic Change,Income & Payments Service,Communications And Computing,Postage,LF111,05/05/2011,3188,"1,760.18 ",Revenue,FINANCIAL DATA MANAGEMENT LTD,101784
North East Lincolnshire Council,http://statistics.data.gov.uk/id/local-authority/00FC,Business Services,Finance & Strategic Change,Income & Payments Service,Communications And Computing,Postage,LF111,05/05/2011,3188,"10,738.19 ",Revenue,FINANCIAL DATA MANAGEMENT LTD,101784
North East Lincolnshire Council,http://statistics.data.gov.uk/id/local-authority/00FC,Business Services,Strategic Business Support,Information Technology,Communications And Computing,Computer H/Ware - Purchases,LF105,23/05/2011,9397,"9,030.71 ",Revenue,HEWLETT-PACKARD LIMITED,102024
North East Lincolnshire Council,http://statistics.data.gov.uk/id/local-authority/00FC,Business Services,Law & Democratic Services,Legal Services,Miscellaneous Expenses,Legal Fees - Courts Costs,LL104,23/05/2011,9640,"1,900.00 ",Revenue,HMCTS,103161
North East Lincolnshire Council,http://statistics.data.gov.uk/id/local-authority/00FC,Business Services,Strategic Business Support,Information Technology,Equip / Furniture / Materials,Equipment - Purchase,LA101,26/05/2011,10679,-40.64 ,Revenue,PETTY CASH,103152
North East Lincolnshire Council,http://statistics.data.gov.uk/id/local-authority/00FC,Business Services,Strategic Business Support,Information Technology,Communications And Computing,Computer H/Ware - Purchases,LF105,09/05/2011,4656,"3,360.00 ",Revenue,INSIGHT DIRECT (UK) LTD,101011
North East Lincolnshire Council,http://statistics.data.gov.uk/id/local-authority/00FC,Business Services,Strategic Business Support,Information Technology,Communications And Computing,Computer H/Ware - Purchases,LF105,31/05/2011,10748,"6,630.00 ",Revenue,INSIGHT DIRECT (UK) LTD,101011
North East Lincolnshire Council,http://statistics.data.gov.uk/id/local-authority/00FC,Residents Parking,Residents Parking,Residents Parking,Cap Infrastr-Build Enh Wrk,Cap Infrastr-Build Enh Wrk,YC102,31/05/2011,11065,"3,428.91 ",Capital,J MCCANN & CO LTD,100841
North East Lincolnshire Council,http://statistics.data.gov.uk/id/local-authority/00FC,Business Services,Law & Democratic Services,Legal Services,Equip / Furniture / Materials,Books,LA121,16/05/2011,6499,"-4,417.00 ",Revenue,LEXISNEXIS UK,101447
North East Lincolnshire Council,http://statistics.data.gov.uk/id/local-authority/00FC,Business Services,Law & Democratic Services,Legal Services,Equip / Furniture / Materials,Books,LA121,16/05/2011,6584,703.45 ,Revenue,LEXISNEXIS UK,101447
North East Lincolnshire Council,http://statistics.data.gov.uk/id/local-authority/00FC,Business Services,Law & Democratic Services,Legal Services,Equip / Furniture / Materials,Books,LA121,06/05/2011,4312,827.45 ,Revenue,LEXISNEXIS UK,101447
North East Lincolnshire Council,http://statistics.data.gov.uk/id/local-authority/00FC,Business Services,Law & Democratic Services,Legal Services,Equip / Furniture / Materials,Books,LA121,17/05/2011,6453,"5,219.00 ",Revenue,LEXISNEXIS UK,101447
North East Lincolnshire Council,http://statistics.data.gov.uk/id/local-authority/00FC,Business Services,Law & Democratic Services,Legal Services,Equip / Furniture / Materials,Books,LA121,13/05/2011,6608,"18,703.00 ",Revenue,LEXISNEXIS UK,101447
North East Lincolnshire Council,http://statistics.data.gov.uk/id/local-authority/00FC,Business Services,Law & Democratic Services,Legal Services,Grants And Subscriptions,Subscriptions,LJ101,23/05/2011,9861,"19,803.60 ",Revenue,LOCAL GOVERNMENT YORKSHIRE & HUMBER,101734
North East Lincolnshire Council,http://statistics.data.gov.uk/id/local-authority/00FC,Business Services,Finance & Strategic Change,Audit,Communications And Computing,Computer S/Ware - Licences,LF103,18/05/2011,7591,"3,986.50 ",Revenue,MORGAN KAI LTD,103871
North East Lincolnshire Council,http://statistics.data.gov.uk/id/local-authority/00FC,Business Services,Law & Democratic Services,Democratic Services,Communications And Computing,Postage,LF111,13/05/2011,6625,568.76 ,Revenue,NEOPOST LTD,100822
North East Lincolnshire Council,http://statistics.data.gov.uk/id/local-authority/00FC,Business Services,Finance & Strategic Change,Income & Payments Service,Consultancy,Consultancy,PL101,16/05/2011,6845,"56,484.05 ",Revenue,NORTH LINCOLNSHIRE COUNCIL,101186
North East Lincolnshire Council,http://statistics.data.gov.uk/id/local-authority/00FC,Business Services,Law & Democratic Services,Legal Services,Miscellaneous Expenses,Legal Fees - General,LL103,05/05/2011,3895,Redacted Commercially Sensitive,Revenue,NORTH LINCOLNSHIRE COUNCIL,101186
North East Lincolnshire Council,http://statistics.data.gov.uk/id/local-authority/00FC,Business Services,Law & Democratic Services,Coroners,Other Agencies,Post Mortems,PJ148,06/05/2011,4328,"3,861.00 ",Revenue,NORTHERN LINCOLNSHIRE & GOOLE HOSPITALS,101242
North East Lincolnshire Council,http://statistics.data.gov.uk/id/local-authority/00FC,Business Services,Law & Democratic Services,Coroners,Other Agencies,Post Mortems,PJ148,23/05/2011,9718,"5,347.00 ",Revenue,NORTHERN LINCOLNSHIRE & GOOLE HOSPITALS,101242
North East Lincolnshire Council,http://statistics.data.gov.uk/id/local-authority/00FC,Business Services,Law & Democratic Services,Coroners,Other Agencies,Post Mortems,PJ148,05/05/2011,4055,"6,541.00 ",Revenue,NORTHERN LINCOLNSHIRE & GOOLE HOSPITALS,101242
North East Lincolnshire Council,http://statistics.data.gov.uk/id/local-authority/00FC,Business Services,Strategic Business Support,Information Technology,Communications And Computing,Computer H/Ware - Maintenance,LF106,09/05/2011,4654,"4,350.00 ",Revenue,NTA MONITOR LTD,103458
North East Lincolnshire Council,http://statistics.data.gov.uk/id/local-authority/00FC,Business Services,Strategic Business Support,Information Technology,Communications And Computing,Telephones,LF112,16/05/2011,6988,642.35 ,Revenue,NTL,101502
North East Lincolnshire Council,http://statistics.data.gov.uk/id/local-authority/00FC,Business Services,Strategic Business Support,Information Technology,Communications And Computing,Computer H/Ware - Purchases,LF105,16/05/2011,6988,780.00 ,Revenue,NTL,101502
North East Lincolnshire Council,http://statistics.data.gov.uk/id/local-authority/00FC,Business Services,Strategic Business Support,Information Technology,Communications And Computing,Computer H/Ware - Purchases,LF105,16/05/2011,6849,896.85 ,Revenue,NTL,101502
North East Lincolnshire Council,http://statistics.data.gov.uk/id/local-authority/00FC,Business Services,Strategic Business Support,Information Technology,Communications And Computing,Computer H/Ware - Purchases,LF105,16/05/2011,6988,"1,131.00 ",Revenue,NTL,101502
North East Lincolnshire Council,http://statistics.data.gov.uk/id/local-authority/00FC,Business Services,Strategic Business Support,Information Technology,Communications And Computing,Computer H/Ware - Purchases,LF105,16/05/2011,6988,"1,560.00 ",Revenue,NTL,101502
North East Lincolnshire Council,http://statistics.data.gov.uk/id/local-authority/00FC,Business Services,Strategic Business Support,Information Technology,Communications And Computing,Computer H/Ware - Purchases,LF105,09/05/2011,4488,"2,100.00 ",Revenue,NTL,101502
North East Lincolnshire Council,http://statistics.data.gov.uk/id/local-authority/00FC,Business Services,Strategic Business Support,Information Technology,Communications And Computing,Computer H/Ware - Purchases,LF105,23/05/2011,9400,"3,570.00 ",Revenue,NTL,101502
North East Lincolnshire Council,http://statistics.data.gov.uk/id/local-authority/00FC,Business Services,Strategic Business Support,Information Technology,Communications And Computing,Telephones,LF112,16/05/2011,6988,"5,491.05 ",Revenue,NTL,101502
North East Lincolnshire Council,http://statistics.data.gov.uk/id/local-authority/00FC,Business Services,Strategic Business Support,Information Technology,Communications And Computing,Computer H/Ware - Purchases,LF105,10/05/2011,4477,"21,168.96 ",Revenue,NTL,101502
North East Lincolnshire Council,http://statistics.data.gov.uk/id/local-authority/00FC,Business Services,Strategic Business Support,Information Technology,Communications And Computing,Computer S/Ware - Maintenance,LF102,09/05/2011,4719,"45,447.11 ",Revenue,ORACLE CORPORATION UK LTD,100696
North East Lincolnshire Council,http://statistics.data.gov.uk/id/local-authority/00FC,Business Services,Finance & Strategic Change,Income & Payments Service,Print Stationery / Gen Off Exp,Printing And Stationery,LD103,31/05/2011,10887,870.00 ,Revenue,PITNEY BOWES LIMITED,101236
North East Lincolnshire Council,http://statistics.data.gov.uk/id/local-authority/00FC,Business Services,Law & Democratic Services,Democratic Services,Print Stationery / Gen Off Exp,Printing And Stationery,LD103,16/05/2011,6579,"1,824.00 ",Revenue,PRINT IMAGE NETWORK LTD,103724
North East Lincolnshire Council,http://statistics.data.gov.uk/id/local-authority/00FC,Business Services,Law & Democratic Services,Democratic Services,Print Stationery / Gen Off Exp,Printing And Stationery,LD103,31/05/2011,11121,"2,639.05 ",Revenue,PRINT IMAGE NETWORK LTD,103724
North East Lincolnshire Council,http://statistics.data.gov.uk/id/local-authority/00FC,Business Services,Strategic Business Support,Information Technology,Communications And Computing,Computer S/Ware - Purchases,LF101,06/05/2011,4250,"1,424.70 ",Revenue,QUEST SOFTWARE (UK) LTD,103428
North East Lincolnshire Council,http://statistics.data.gov.uk/id/local-authority/00FC,Business Services,Law & Democratic Services,Coroners,Other Agencies,Post Mortems,PJ148,24/05/2011,9719,597.20 ,Revenue,Redacted Personal Information,Redacted Personal Information
North East Lincolnshire Council,http://statistics.data.gov.uk/id/local-authority/00FC,Business Services,Law & Democratic Services,Coroners,Other Agencies,Post Mortems,PJ148,09/05/2011,4749,774.40 ,Revenue,Redacted Personal Information,Redacted Personal Information
North East Lincolnshire Council,http://statistics.data.gov.uk/id/local-authority/00FC,Business Services,Law & Democratic Services,Coroners,Other Agencies,Post Mortems,PJ148,16/05/2011,6614,774.40 ,Revenue,Redacted Personal Information,Redacted Personal Information
North East Lincolnshire Council,http://statistics.data.gov.uk/id/local-authority/00FC,Business Services,Law & Democratic Services,Coroners,Other Agencies,Post Mortems,PJ148,23/05/2011,9697,595.90 ,Revenue,Redacted Personal Information,Redacted Personal Information
North East Lincolnshire Council,http://statistics.data.gov.uk/id/local-authority/00FC,Business Services,Law & Democratic Services,Coroners,Other Agencies,Post Mortems,PJ148,19/05/2011,7916,"1,081.20 ",Revenue,Redacted Personal Information,Redacted Personal Information
North East Lincolnshire Council,http://statistics.data.gov.uk/id/local-authority/00FC,Business Services,Strategic Business Support,Information Technology,Direct Employee Expenses,Agency Staff,EA105,06/05/2011,4249,"6,260.00 ",Revenue,Redacted Personal Information,Redacted Personal Information
North East Lincolnshire Council,http://statistics.data.gov.uk/id/local-authority/00FC,Business Services,Law & Democratic Services,Legal Services,Direct Employee Expenses,Agency Staff,EA105,05/05/2011,3430,712.50 ,Revenue,Redacted Personal Information,Redacted Personal Information
North East Lincolnshire Council,http://statistics.data.gov.uk/id/local-authority/00FC,Business Services,Law & Democratic Services,Legal Services,Direct Employee Expenses,Agency Staff,EA105,05/05/2011,3894,"1,104.00 ",Revenue,Redacted Personal Information,Redacted Personal Information
North East Lincolnshire Council,http://statistics.data.gov.uk/id/local-authority/00FC,Business Services,Law & Democratic Services,Legal Services,Direct Employee Expenses,Agency Staff,EA105,11/05/2011,4829,"1,184.00 ",Revenue,Redacted Personal Information,Redacted Personal Information
North East Lincolnshire Council,http://statistics.data.gov.uk/id/local-authority/00FC,Business Services,Strategic Business Support,Information Technology,Indirect Employee Expenses,Staff Training,EB122,13/05/2011,6486,"1,500.00 ",Revenue,Redacted Personal Information,Redacted Personal Information
North East Lincolnshire Council,http://statistics.data.gov.uk/id/local-authority/00FC,Business Services,Strategic Business Support,Information Technology,Equip / Furniture / Materials,Equipment - Purchase,LA101,11/05/2011,5401,732.91 ,Revenue,ROTHERA & BRERETON LTD,100761
North East Lincolnshire Council,http://statistics.data.gov.uk/id/local-authority/00FC,Business Services,Law & Democratic Services,Democratic Services,Contract Hire-Operating Leases,Vehicles - Contract Hire,JC101,05/05/2011,3984,525.00 ,Revenue,ROYAL MAIL GROUP PLC,101082
North East Lincolnshire Council,http://statistics.data.gov.uk/id/local-authority/00FC,Business Services,Law & Democratic Services,Democratic Services,Communications And Computing,Postage,LF111,31/05/2011,10616,"1,541.80 ",Revenue,ROYAL MAIL GROUP PLC,101082
North East Lincolnshire Council,http://statistics.data.gov.uk/id/local-authority/00FC,Business Services,Law & Democratic Services,Democratic Services,Communications And Computing,Postage,LF111,09/05/2011,4685,"5,477.42 ",Revenue,ROYAL MAIL GROUP PLC,101082
North East Lincolnshire Council,http://statistics.data.gov.uk/id/local-authority/00FC,Business Services,Law & Democratic Services,Democratic Services,Communications And Computing,Postage,LF111,05/05/2011,3528,"16,852.76 ",Revenue,ROYAL MAIL GROUP PLC,101082
North East Lincolnshire Council,http://statistics.data.gov.uk/id/local-authority/00FC,Business Services,Strategic Business Support,Business Support (Sbs),Communications And Computing,Postage,LF111,26/05/2011,10599,"1,110.08 ",Revenue,ROYAL MAIL GROUP PLC,101082
North East Lincolnshire Council,http://statistics.data.gov.uk/id/local-authority/00FC,Business Services,Strategic Business Support,Business Support (Sbs),Communications And Computing,Postage,LF111,06/05/2011,4426,"1,411.73 ",Revenue,ROYAL MAIL GROUP PLC,101082
North East Lincolnshire Council,http://statistics.data.gov.uk/id/local-authority/00FC,Business Services,Strategic Business Support,Business Support (Sbs),Communications And Computing,Postage,LF111,06/05/2011,4393,"1,427.80 ",Revenue,ROYAL MAIL GROUP PLC,101082
North East Lincolnshire Council,http://statistics.data.gov.uk/id/local-authority/00FC,Business Services,Strategic Business Support,Business Support (Sbs),Communications And Computing,Postage,LF111,06/05/2011,4390,"1,863.24 ",Revenue,ROYAL MAIL GROUP PLC,101082
North East Lincolnshire Council,http://statistics.data.gov.uk/id/local-authority/00FC,Business Services,Strategic Business Support,Business Support (Sbs),Communications And Computing,Postage,LF111,05/05/2011,3242,"2,021.09 ",Revenue,ROYAL MAIL GROUP PLC,101082
North East Lincolnshire Council,http://statistics.data.gov.uk/id/local-authority/00FC,Business Services,Law & Democratic Services,Democratic Services,Print Stationery / Gen Off Exp,Printing And Stationery,LD103,23/05/2011,9512,-54.60 ,Revenue,SHAW & SONS LTD,100561
North East Lincolnshire Council,http://statistics.data.gov.uk/id/local-authority/00FC,Business Services,Law & Democratic Services,Democratic Services,Print Stationery / Gen Off Exp,Printing And Stationery,LD103,19/05/2011,8357,"1,760.30 ",Revenue,SHAW & SONS LTD,100561
North East Lincolnshire Council,http://statistics.data.gov.uk/id/local-authority/00FC,Business Services,Law & Democratic Services,Coroners,Other Agencies,Post Mortems,PJ148,06/05/2011,4342,"4,401.40 ",Revenue,SHEFFIELD CHILDREN'S NHS TRUST,100955
North East Lincolnshire Council,http://statistics.data.gov.uk/id/local-authority/00FC,Business Services,Law & Democratic Services,Coroners,Other Agencies,Post Mortems,PJ148,13/05/2011,6637,"2,404.00 ",Revenue,SHEFFIELD TEACHING HOSPITALS NHS TRUST,101211
North East Lincolnshire Council,http://statistics.data.gov.uk/id/local-authority/00FC,Business Services,Strategic Business Support,Procurement,Consultancy,Consultancy,PL101,09/05/2011,4802,"5,450.00 ",Revenue,SPIKES CAVELL LTD,103509
North East Lincolnshire Council,http://statistics.data.gov.uk/id/local-authority/00FC,Business Services,Strategic Business Support,Information Technology,Communications And Computing,Computer S/Ware - Purchases,LF101,05/05/2011,3998,"17,133.65 ",Revenue,SUNRISE SOFTWARE LTD,100631
North East Lincolnshire Council,http://statistics.data.gov.uk/id/local-authority/00FC,Business Services,Law & Democratic Services,Coroners,Other Agencies,Post Mortems,PJ148,10/05/2011,5291,"1,225.00 ",Revenue,THE FORENSIC SCIENCE SERVICE,101594
North East Lincolnshire Council,http://statistics.data.gov.uk/id/local-authority/00FC,Business Services,Strategic Business Support,Information Technology,Communications And Computing,Computer S/Ware - Purchases,LF101,17/05/2011,6932,"1,929.51 ",Revenue,TRUSTMARQUE SOLUTIONS LTD,101275
North East Lincolnshire Council,http://statistics.data.gov.uk/id/local-authority/00FC,Business Services,Strategic Business Support,Information Technology,Communications And Computing,Computer H/Ware - Maintenance,LF106,12/05/2011,5984,"2,620.75 ",Revenue,TRUSTMARQUE SOLUTIONS LTD,101275
North East Lincolnshire Council,http://statistics.data.gov.uk/id/local-authority/00FC,Business Services,Strategic Business Support,Information Technology,Equip / Furniture / Materials,Equipment - Purchase,LA101,09/05/2011,4803,"1,056.84 ",Revenue,VIGLEN LIMITED,100883
North East Lincolnshire Council,http://statistics.data.gov.uk/id/local-authority/00FC,Business Services,Strategic Business Support,Information Technology,Communications And Computing,Computer H/Ware - Purchases,LF105,10/05/2011,4814,"10,577.82 ",Revenue,VIGLEN LIMITED,100883
North East Lincolnshire Council,http://statistics.data.gov.uk/id/local-authority/00FC,Business Services,Strategic Business Support,Information Technology,Equip / Furniture / Materials,Equipment - Purchase,LA101,09/05/2011,4835,"11,092.14 ",Revenue,VIGLEN LIMITED,100883
North East Lincolnshire Council,http://statistics.data.gov.uk/id/local-authority/00FC,Business Services,Strategic Business Support,Information Technology,Communications And Computing,Computer H/Ware - Purchases,LF105,12/05/2011,4498,"2,423.04 ",Revenue,VIRGIN MEDIA LTD,101831
North East Lincolnshire Council,http://statistics.data.gov.uk/id/local-authority/00FC,Business Services,Strategic Business Support,Information Technology,Communications And Computing,Computer H/Ware - Purchases,LF105,12/05/2011,4496,"2,423.04 ",Revenue,VIRGIN MEDIA LTD,101831
North East Lincolnshire Council,http://statistics.data.gov.uk/id/local-authority/00FC,Business Services,Strategic Business Support,Information Technology,Communications And Computing,Computer H/Ware - Purchases,LF105,10/05/2011,4499,"6,459.96 ",Revenue,VIRGIN MEDIA LTD,101831
North East Lincolnshire Council,http://statistics.data.gov.uk/id/local-authority/00FC,Business Services,Strategic Business Support,Information Technology,Communications And Computing,Telephones,LF112,17/05/2011,6485,"12,637.45 ",Revenue,VODAFONE LIMITED,101324
North East Lincolnshire Council,http://statistics.data.gov.uk/id/local-authority/00FC,Business Services,Finance & Strategic Change,Income & Payments Service,Miscellaneous Expenses,Debt Recovery Costs,LL111,18/05/2011,7894,970.00 ,Revenue,WILKIN CHAPMAN SOLICITORS,100948
North East Lincolnshire Council,http://statistics.data.gov.uk/id/local-authority/00FC,Business Services,Strategic Business Support,Information Technology,Print Stationery / Gen Off Exp,Photocopier - Running Costs,LD102,31/05/2011,11037,"3,004.83 ",Revenue,XEROX FINANCE,100572
North East Lincolnshire Council,http://statistics.data.gov.uk/id/local-authority/00FC,Chief Executive,Chief Executive,Recharges To Corp Management,Government Departments,Third Party Prov - Govt Depts,PE101,31/05/2011,10913,"1,825.00 ",Revenue,AUDIT COMMISSION,100510
North East Lincolnshire Council,http://statistics.data.gov.uk/id/local-authority/00FC,Chief Executive,Chief Executive,Recharges To Corp Management,Government Departments,Third Party Prov - Govt Depts,PE101,05/05/2011,3434,"5,000.00 ",Revenue,AUDIT COMMISSION,100510
North East Lincolnshire Council,http://statistics.data.gov.uk/id/local-authority/00FC,Chief Executive,Chief Executive,Recharges To Corp Management,Government Departments,Third Party Prov - Govt Depts,PE101,05/05/2011,3435,"24,553.00 ",Revenue,AUDIT COMMISSION,100510
North East Lincolnshire Council,http://statistics.data.gov.uk/id/local-authority/00FC,Chief Executive,Chief Executive,Chief Exec & Support,Print Stationery / Gen Off Exp,Printing And Stationery,LD103,10/05/2011,5085,648.49 ,Revenue,LYRECO UK LIMITED,101120
North East Lincolnshire Council,http://statistics.data.gov.uk/id/local-authority/00FC,Chief Executive,Chief Executive,Chief Exec & Support,Contributions To Provisions,Contributions - Third Sector,LK102,19/05/2011,8401,780.00 ,Revenue,ROGER HALL (ELECTRICAL) LTD,103930
North East Lincolnshire Council,http://statistics.data.gov.uk/id/local-authority/00FC,Chief Executive,Chief Executive,Chief Exec & Support,Contributions To Provisions,Contributions - Third Sector,LK102,26/05/2011,10721,500.00 ,Revenue,SCARTHO NURSERY SCHOOL,104151
North East Lincolnshire Council,http://statistics.data.gov.uk/id/local-authority/00FC,Children & Family Services,Vulnerable Children,Through Care And Lace,Other Agencies,Personal Allowance,PJ122,11/05/2011,5614,796.30 ,Revenue,16+ SERVICES,100943
North East Lincolnshire Council,http://statistics.data.gov.uk/id/local-authority/00FC,Children & Family Services,Vulnerable Children,Through Care And Lace,Other Agencies,Further Ed Emp & Training,PJ130,11/05/2011,5614,"1,680.95 ",Revenue,16+ SERVICES,100943
North East Lincolnshire Council,http://statistics.data.gov.uk/id/local-authority/00FC,Children & Family Services,Vulnerable Children,Child Care Resources,Catering,Provisions,LB101,13/05/2011,6456,716.55 ,Revenue,PETTY CASH,100706
North East Lincolnshire Council,http://statistics.data.gov.uk/id/local-authority/00FC,Children & Family Services,Commiss & Integrated Serv,Additional & Enhanced Needs,Other Local Authorities,Third Pp - Other Local Auth,PC101,23/05/2011,9202,"2,638.53 ",Revenue,7KS CORPORATE & FINANCE,101986
North East Lincolnshire Council,http://statistics.data.gov.uk/id/local-authority/00FC,Children & Family Services,Commiss & Integrated Serv,Additional & Enhanced Needs,Contributions To Provisions,Contributions - Other,LK103,20/05/2011,9198,"2,638.53 ",Revenue,7KS CORPORATE & FINANCE,101986
North East Lincolnshire Council,http://statistics.data.gov.uk/id/local-authority/00FC,Children & Family Services,Commiss & Integrated Serv,Additional & Enhanced Needs,Contributions To Provisions,Contributions - Other,LK103,20/05/2011,9198,"4,308.63 ",Revenue,7KS CORPORATE & FINANCE,101986
North East Lincolnshire Council,http://statistics.data.gov.uk/id/local-authority/00FC,Children & Family Services,Commiss & Integrated Serv,Additional & Enhanced Needs,Contributions To Provisions,Contributions - Other,LK103,23/05/2011,9202,"5,277.06 ",Revenue,7KS CORPORATE & FINANCE,101986
North East Lincolnshire Council,http://statistics.data.gov.uk/id/local-authority/00FC,Children & Family Services,Learning,Sen/Inclusion,Private Contractors,Third Party Prov - Private,PH101,12/05/2011,6020,"10,554.12 ",Revenue,7KS CORPORATE & FINANCE,101986
North East Lincolnshire Council,http://statistics.data.gov.uk/id/local-authority/00FC,Children & Family Services,Learning,Sen/Inclusion,Private Contractors,Third Party Prov - Private,PH101,06/05/2011,3976,608.00 ,Revenue,A4E CONSULT LTD,101656
North East Lincolnshire Council,http://statistics.data.gov.uk/id/local-authority/00FC,Children & Family Services,Learning,Sen/Inclusion,Private Contractors,Third Party Prov - Private,PH101,11/05/2011,5680,"4,864.00 ",Revenue,A4E CONSULT LTD,101656
North East Lincolnshire Council,http://statistics.data.gov.uk/id/local-authority/00FC,Children & Family Services,Commiss & Integrated Serv,Services To Youth,Catering,Provisions,LB101,31/05/2011,11420,-101.15 ,Revenue,PETTY CASH,103073
North East Lincolnshire Council,http://statistics.data.gov.uk/id/local-authority/00FC,Children & Family Services,Vulnerable Children,Child Care Resources,Miscellaneous Expenses,Other Expenses General,LL119,19/05/2011,7474,503.75 ,Revenue,ADOPTION UK,101206
North East Lincolnshire Council,http://statistics.data.gov.uk/id/local-authority/00FC,Children & Family Services,Vulnerable Children,Child Care Resources,Miscellaneous Expenses,Other Expenses General,LL119,19/05/2011,7475,525.00 ,Revenue,ADOPTION UK,101206
North East Lincolnshire Council,http://statistics.data.gov.uk/id/local-authority/00FC,Children & Family Services,Vulnerable Children,Child Care Resources,Miscellaneous Expenses,Other Expenses General,LL119,18/05/2011,7480,650.88 ,Revenue,ADOPTION UK,101206
North East Lincolnshire Council,http://statistics.data.gov.uk/id/local-authority/00FC,Children & Family Services,Vulnerable Children,Child Care Resources,Miscellaneous Expenses,Other Expenses General,LL119,19/05/2011,7477,665.00 ,Revenue,ADOPTION UK,101206
North East Lincolnshire Council,http://statistics.data.gov.uk/id/local-authority/00FC,Children & Family Services,Commiss & Integrated Serv,School Access Govrn Stdnt Serv,Contract Hire-Operating Leases,Vehicles - Contract Hire,JC101,31/05/2011,10952,Redacted Commercially Sensitive,Revenue,AMVALE LIMITED,101030
North East Lincolnshire Council,http://statistics.data.gov.uk/id/local-authority/00FC,Children & Family Services,Commiss & Integrated Serv,School Access Govrn Stdnt Serv,Contract Hire-Operating Leases,Vehicles - Contract Hire,JC101,18/05/2011,7886,Redacted Commercially Sensitive,Revenue,AMVALE LIMITED,101030
North East Lincolnshire Council,http://statistics.data.gov.uk/id/local-authority/00FC,Children & Family Services,Commiss & Integrated Serv,School Access Govrn Stdnt Serv,Contract Hire-Operating Leases,Vehicles - Contract Hire,JC101,19/05/2011,7870,Redacted Commercially Sensitive,Revenue,AMVALE LIMITED,101030
North East Lincolnshire Council,http://statistics.data.gov.uk/id/local-authority/00FC,Children & Family Services,Commiss & Integrated Serv,School Access Govrn Stdnt Serv,Contract Hire-Operating Leases,Vehicles - Contract Hire,JC101,18/05/2011,7871,Redacted Commercially Sensitive,Revenue,AMVALE LIMITED,101030
North East Lincolnshire Council,http://statistics.data.gov.uk/id/local-authority/00FC,Children & Family Services,Commiss & Integrated Serv,School Access Govrn Stdnt Serv,Contract Hire-Operating Leases,Vehicles - Contract Hire,JC101,31/05/2011,11269,Redacted Commercially Sensitive,Revenue,AMVALE LIMITED,101030
North East Lincolnshire Council,http://statistics.data.gov.uk/id/local-authority/00FC,Children & Family Services,Communities & Partnerships,Young Childrens Services,Rep Alterations Maint Building,Buildings - Repairs And Maint,GA102,05/05/2011,3439,560.00 ,Revenue,ARK JOINERY AND BUILDING MAINTENANCE LTD,101126
North East Lincolnshire Council,http://statistics.data.gov.uk/id/local-authority/00FC,Devolved Formula Cap Grant,Devolved Formula Cap Grant,Devolved Formula Cap Grant,Cap Land/Build-Build Enh Wrk,Cap Land/Build-Build Enh Wrk,YA102,23/05/2011,9964,"4,970.75 ",Capital,ARK JOINERY AND BUILDING MAINTENANCE LTD,101126
North East Lincolnshire Council,http://statistics.data.gov.uk/id/local-authority/00FC,Children & Family Services,Commiss & Integrated Serv,Services To Youth,Recharges,Accommodation,TB116,09/05/2011,4809,Redacted Commercially Sensitive,Revenue,ATG VENUES UK LTD,102453
North East Lincolnshire Council,http://statistics.data.gov.uk/id/local-authority/00FC,Children & Family Services,Learning,Sen/Inclusion,Consultancy,Consultancy - Curriculum,PL102,11/05/2011,5239,"1,633.67 ",Revenue,ATKINS LTD,101751
North East Lincolnshire Council,http://statistics.data.gov.uk/id/local-authority/00FC,Children & Family Services,Commiss & Integrated Serv,Additional & Enhanced Needs,Contributions To Provisions,Contributions - Other,LK103,05/05/2011,3519,750.00 ,Revenue,BAKER SMALL SOLICITORS,103364
North East Lincolnshire Council,http://statistics.data.gov.uk/id/local-authority/00FC,Children & Family Services,Commiss & Integrated Serv,Additional & Enhanced Needs,Other Local Authorities,Third Pp - Other Local Auth,PC101,12/05/2011,6014,"25,537.33 ",Revenue,BARNARDO SERVICES LTD,101050
North East Lincolnshire Council,http://statistics.data.gov.uk/id/local-authority/00FC,Children & Family Services,Commiss & Integrated Serv,Additional & Enhanced Needs,Other Local Authorities,Third Pp - Other Local Auth,PC101,12/05/2011,6013,"25,537.43 ",Revenue,BARNARDO SERVICES LTD,101050
North East Lincolnshire Council,http://statistics.data.gov.uk/id/local-authority/00FC,Children & Family Services,Learning,Sen/Inclusion,Private Contractors,Third Party Prov - Private,PH101,18/05/2011,7457,960.00 ,Revenue,BARNARDO SERVICES LTD,100782
North East Lincolnshire Council,http://statistics.data.gov.uk/id/local-authority/00FC,Children & Family Services,Learning,Standards & Effectiveness,Consultancy,Consultancy,PL101,12/05/2011,6019,"39,579.50 ",Revenue,BARNARDO SERVICES LTD,101050
North East Lincolnshire Council,http://statistics.data.gov.uk/id/local-authority/00FC,Children & Family Services,Learning,Standards & Effectiveness,Other Agencies,Performers,PJ101,13/05/2011,6604,722.05 ,Revenue,BRITISH AGENCIES FOR,100662
North East Lincolnshire Council,http://statistics.data.gov.uk/id/local-authority/00FC,Children & Family Services,Learning,Standards & Effectiveness,Other Agencies,Performers,PJ101,13/05/2011,6604,"2,011.65 ",Revenue,BRITISH AGENCIES FOR,100662
North East Lincolnshire Council,http://statistics.data.gov.uk/id/local-authority/00FC,Children & Family Services,Vulnerable Children,Child Care Resources,Grants And Subscriptions,Subscriptions,LJ101,18/05/2011,7412,606.48 ,Revenue,BRITISH AGENCIES FOR,100662
North East Lincolnshire Council,http://statistics.data.gov.uk/id/local-authority/00FC,Children & Family Services,Vulnerable Children,Child Care Resources,Miscellaneous Expenses,Other Expenses General,LL119,18/05/2011,7385,699.00 ,Revenue,BRITISH AGENCIES FOR,100662
North East Lincolnshire Council,http://statistics.data.gov.uk/id/local-authority/00FC,Children & Family Services,Communities & Partnerships,Young Childrens Services,Energy Costs,Gas,GB101,18/05/2011,7832,540.62 ,Revenue,BRITISH GAS,101484
North East Lincolnshire Council,http://statistics.data.gov.uk/id/local-authority/00FC,Children & Family Services,Learning,Sen/Inclusion,Energy Costs,Gas,GB101,11/05/2011,5231,614.57 ,Revenue,BRITISH GAS,101484
North East Lincolnshire Council,http://statistics.data.gov.uk/id/local-authority/00FC,Children & Family Services,Communities & Partnerships,Young Childrens Services,Contributions To Provisions,Contributions - Other,LK103,18/05/2011,6807,543.20 ,Revenue,BRITISH TELECOMMUNICATIONS PLC,101545
North East Lincolnshire Council,http://statistics.data.gov.uk/id/local-authority/00FC,Children & Family Services,Communities & Partnerships,Young Childrens Services,Contributions To Provisions,Contributions - Other,LK103,26/05/2011,10547,543.20 ,Revenue,BRITISH TELECOMMUNICATIONS PLC,104130
North East Lincolnshire Council,http://statistics.data.gov.uk/id/local-authority/00FC,Children & Family Services,Learning,Standards & Effectiveness,Communications And Computing,Computer H/Ware - Purchases,LF105,31/05/2011,10645,"3,273.94 ",Revenue,BT PAYMENT SERVICES LTD,103932
North East Lincolnshire Council,http://statistics.data.gov.uk/id/local-authority/00FC,Children & Family Services,Commiss & Integrated Serv,School Access Govrn Stdnt Serv,Contract Hire-Operating Leases,Vehicles - Contract Hire,JC101,12/05/2011,6141,Redacted Commercially Sensitive,Revenue,CABBYCARS,100847
North East Lincolnshire Council,http://statistics.data.gov.uk/id/local-authority/00FC,Children & Family Services,Vulnerable Children,Child Care Resources,Private Contractors,Third Party Prov - Private,PH101,10/05/2011,4889,"13,760.00 ",Revenue,CARITAS CARE LTD,103523
North East Lincolnshire Council,http://statistics.data.gov.uk/id/local-authority/00FC,Children & Family Services,Vulnerable Children,Through Care And Lace,Equip / Furniture / Materials,Equipment - Purchase,LA101,13/05/2011,5716,"1,202.50 ",Revenue,CHALKUS INDUSTRIES LTD,103473
North East Lincolnshire Council,http://statistics.data.gov.uk/id/local-authority/00FC,Children & Family Services,Commiss & Integrated Serv,Services To Youth,Catering,Provisions,LB101,26/05/2011,10702,-18.33 ,Revenue,PETTY CASH,102638
North East Lincolnshire Council,http://statistics.data.gov.uk/id/local-authority/00FC,Children & Family Services,Commiss & Integrated Serv,Additional & Enhanced Needs,Contributions To Provisions,Contributions - Other,LK103,19/05/2011,8255,"2,298.00 ",Revenue,CLEETHORPES CHILDCARE,101591
North East Lincolnshire Council,http://statistics.data.gov.uk/id/local-authority/00FC,Children & Family Services,Commiss & Integrated Serv,Services To Youth,Contributions To Provisions,Contributions - Other,LK103,31/05/2011,10889,"1,843.00 ",Revenue,CONNEXIONS HUMBER LTD,102615
North East Lincolnshire Council,http://statistics.data.gov.uk/id/local-authority/00FC,Children & Family Services,Vulnerable Children,Through Care And Lace,Private Contractors,Third Party Prov - Private,PH101,09/05/2011,4788,"3,172.67 ",Revenue,COOL2CARE LTD,102270
North East Lincolnshire Council,http://statistics.data.gov.uk/id/local-authority/00FC,Children & Family Services,Vulnerable Children,Through Care And Lace,Private Contractors,Third Party Prov - Private,PH101,09/05/2011,4785,"3,172.67 ",Revenue,COOL2CARE LTD,102270
North East Lincolnshire Council,http://statistics.data.gov.uk/id/local-authority/00FC,Children & Family Services,Vulnerable Children,Through Care And Lace,Miscellaneous Expenses,Other Expenses General,LL119,19/05/2011,7911,560.00 ,Revenue,COTTAGERS PLOT EQUESTRIAN CENTRE,101808
North East Lincolnshire Council,http://statistics.data.gov.uk/id/local-authority/00FC,Children & Family Services,Commiss & Integrated Serv,Services To Youth,Public Transport,Public Transport - Employees,JD101,10/05/2011,5279,"2,000.00 ",Revenue,COXONS CARS LIMITED,100578
North East Lincolnshire Council,http://statistics.data.gov.uk/id/local-authority/00FC,Children & Family Services,Commiss & Integrated Serv,Policy Plan & Commissioning,Catering,Provisions,LB101,12/05/2011,5987,Redacted Commercially Sensitive,Revenue,CYGNET FOODS,101491
North East Lincolnshire Council,http://statistics.data.gov.uk/id/local-authority/00FC,Children & Family Services,Commiss & Integrated Serv,Policy Plan & Commissioning,Catering,Provisions,LB101,12/05/2011,5986,Redacted Commercially Sensitive,Revenue,CYGNET FOODS,101491
North East Lincolnshire Council,http://statistics.data.gov.uk/id/local-authority/00FC,Children & Family Services,Commiss & Integrated Serv,Additional & Enhanced Needs,Contributions To Provisions,Contributions - Other,LK103,12/05/2011,6002,630.00 ,Revenue,DKM ASSESSMENT & VERIFICATION LTD,101643
North East Lincolnshire Council,http://statistics.data.gov.uk/id/local-authority/00FC,Children & Family Services,Commiss & Integrated Serv,Additional & Enhanced Needs,Contributions To Provisions,Contributions - Other,LK103,12/05/2011,6000,630.00 ,Revenue,DKM ASSESSMENT & VERIFICATION LTD,101643
North East Lincolnshire Council,http://statistics.data.gov.uk/id/local-authority/00FC,Children & Family Services,Commiss & Integrated Serv,Additional & Enhanced Needs,Contributions To Provisions,Contributions - Other,LK103,12/05/2011,6003,630.00 ,Revenue,DKM ASSESSMENT & VERIFICATION LTD,101643
North East Lincolnshire Council,http://statistics.data.gov.uk/id/local-authority/00FC,Children & Family Services,Commiss & Integrated Serv,Additional & Enhanced Needs,Contributions To Provisions,Contributions - Other,LK103,12/05/2011,6004,950.00 ,Revenue,DKM ASSESSMENT & VERIFICATION LTD,101643
North East Lincolnshire Council,http://statistics.data.gov.uk/id/local-authority/00FC,Children & Family Services,Commiss & Integrated Serv,Additional & Enhanced Needs,Contributions To Provisions,Contributions - Other,LK103,12/05/2011,6001,"1,080.00 ",Revenue,DKM ASSESSMENT & VERIFICATION LTD,101643
North East Lincolnshire Council,http://statistics.data.gov.uk/id/local-authority/00FC,Children & Family Services,Commiss & Integrated Serv,Additional & Enhanced Needs,Private Contractors,Third Party Prov - Private,PH101,12/05/2011,5999,"1,485.00 ",Revenue,DKM ASSESSMENT & VERIFICATION LTD,101643
North East Lincolnshire Council,http://statistics.data.gov.uk/id/local-authority/00FC,Children & Family Services,Commiss & Integrated Serv,Additional & Enhanced Needs,Other Local Authorities,Third Pp - Other Local Auth,PC101,19/05/2011,8253,"33,825.00 ",Revenue,DONCASTER DEAF TRUST,101268
North East Lincolnshire Council,http://statistics.data.gov.uk/id/local-authority/00FC,Children & Family Services,Vulnerable Children,Through Care And Lace,Private Contractors,Third Party Prov - Private,PH101,09/05/2011,4859,Redacted Commercially Sensitive,Revenue,DOORSTEP,100310
North East Lincolnshire Council,http://statistics.data.gov.uk/id/local-authority/00FC,Devolved Formula Cap Grant,Devolved Formula Cap Grant,Devolved Formula Cap Grant,Cap Land/Build-Build Enh Wrk,Cap Land/Build-Build Enh Wrk,YA102,13/05/2011,6539,"2,245.00 ",Capital,DYNAMIC ELECTRICAL SERVICES LIMITED,101045
North East Lincolnshire Council,http://statistics.data.gov.uk/id/local-authority/00FC,Children & Family Services,Commiss & Integrated Serv,School Access Govrn Stdnt Serv,Contract Hire-Operating Leases,Vehicles - Contract Hire,JC101,12/05/2011,6073,Redacted Commercially Sensitive,Revenue,E M EMMERSON,100576
North East Lincolnshire Council,http://statistics.data.gov.uk/id/local-authority/00FC,Devolved Formula Cap Grant,Devolved Formula Cap Grant,Devolved Formula Cap Grant,Cap Land/Build-Build Enh Wrk,Cap Land/Build-Build Enh Wrk,YA102,31/05/2011,10936,"2,377.00 ",Capital,E S RUDKIN LTD,100632
North East Lincolnshire Council,http://statistics.data.gov.uk/id/local-authority/00FC,Devolved Formula Cap Grant,Devolved Formula Cap Grant,Devolved Formula Cap Grant,Cap Land/Build-Build Enh Wrk,Cap Land/Build-Build Enh Wrk,YA102,31/05/2011,11153,500.00 ,Capital,EAST LINDSEY DISTRICT COUNCIL,101675
North East Lincolnshire Council,http://statistics.data.gov.uk/id/local-authority/00FC,Devolved Formula Cap Grant,Devolved Formula Cap Grant,Devolved Formula Cap Grant,Cap Auc-Prof Fees,Cap Auc-Prof Fees,YF103,19/05/2011,8361,610.00 ,Capital,EAST LINDSEY DISTRICT COUNCIL,101675
North East Lincolnshire Council,http://statistics.data.gov.uk/id/local-authority/00FC,Havelock Academy,Havelock Academy,Havelock Academy,Cap Auc-Build Enh Wrk,Cap Auc-Build Enh Wrk,YF102,31/05/2011,10647,"1,333.00 ",Capital,EAST LINDSEY DISTRICT COUNCIL,101582
North East Lincolnshire Council,http://statistics.data.gov.uk/id/local-authority/00FC,Hereford School Rebuilding,Hereford School Rebuilding,Hereford School Rebuilding,Cap Auc-Build Enh Wrk,Cap Auc-Build Enh Wrk,YF102,31/05/2011,10648,"1,415.00 ",Capital,EAST LINDSEY DISTRICT COUNCIL,101582
North East Lincolnshire Council,http://statistics.data.gov.uk/id/local-authority/00FC,Nds Cond + Modern All Schools,Nds Cond + Modern All Schools,Nds Cond + Modern All Schools,Cap Auc-Build Enh Wrk,Cap Auc-Build Enh Wrk,YF102,16/05/2011,6656,"1,350.00 ",Capital,EAST LINDSEY DISTRICT COUNCIL,101675
North East Lincolnshire Council,http://statistics.data.gov.uk/id/local-authority/00FC,Children & Family Services,Communities & Partnerships,Young Childrens Services,Cleaning And Domestic Supplies,Cleaning - Consumables,GH103,09/05/2011,3944,-46.44 ,Revenue,EAST RIDING OF YORKSHIRE COUNCIL,100654
North East Lincolnshire Council,http://statistics.data.gov.uk/id/local-authority/00FC,Children & Family Services,Communities & Partnerships,Young Childrens Services,Contributions To Provisions,Contributions - Other,LK103,05/05/2011,3540,810.95 ,Revenue,EAST RIDING OF YORKSHIRE COUNCIL,100654
North East Lincolnshire Council,http://statistics.data.gov.uk/id/local-authority/00FC,Devolved Formula Cap Grant,Devolved Formula Cap Grant,Devolved Formula Cap Grant,Cap Land/Build-Build Enh Wrk,Cap Land/Build-Build Enh Wrk,YA102,31/05/2011,10972,"1,465.10 ",Capital,EAST RIDING OF YORKSHIRE COUNCIL,100654
North East Lincolnshire Council,http://statistics.data.gov.uk/id/local-authority/00FC,Children & Family Services,Communities & Partnerships,Young Childrens Services,Cleaning And Domestic Supplies,Cleaning - Services,GH102,20/05/2011,8651,724.50 ,Revenue,EASY CLEANS,101253
North East Lincolnshire Council,http://statistics.data.gov.uk/id/local-authority/00FC,Children & Family Services,Learning,Standards & Effectiveness,Government Grants,Grants - Standards Fund,VA102,19/05/2011,7929,"3,375.00 ",Revenue,EDWARD HENEAGE PRIMARY SCHOOL,103917
North East Lincolnshire Council,http://statistics.data.gov.uk/id/local-authority/00FC,Children & Family Services,Communities & Partnerships,Extended Services,Consultancy,Consultancy,PL101,05/05/2011,3344,"7,020.00 ",Revenue,ENQUIRE LTD,102469
North East Lincolnshire Council,http://statistics.data.gov.uk/id/local-authority/00FC,Children & Family Services,Commiss & Integrated Serv,Strategic Management,Direct Employee Expenses,Pay,EA101,13/05/2011,6487,"13,616.80 ",Revenue,ESCRICK EDUCATION ASSOCIATES,102662
North East Lincolnshire Council,http://statistics.data.gov.uk/id/local-authority/00FC,Children & Family Services,Communities & Partnerships,Health Care Provision,Contributions To Provisions,Contributions - Other,LK103,06/05/2011,4292,577.36 ,Revenue,ESP LTD,101231
North East Lincolnshire Council,http://statistics.data.gov.uk/id/local-authority/00FC,Children & Family Services,Communities & Partnerships,Extended Services,Direct Employee Expenses,Pay,EA101,05/05/2011,3924,585.66 ,Revenue,ESP LTD,101231
North East Lincolnshire Council,http://statistics.data.gov.uk/id/local-authority/00FC,Children & Family Services,Communities & Partnerships,Extended Services,Direct Employee Expenses,Pay,EA101,20/05/2011,9162,624.33 ,Revenue,ESP LTD,101231
North East Lincolnshire Council,http://statistics.data.gov.uk/id/local-authority/00FC,Children & Family Services,Communities & Partnerships,Extended Services,Direct Employee Expenses,Pay,EA101,23/05/2011,9704,630.54 ,Revenue,ESP LTD,101231
North East Lincolnshire Council,http://statistics.data.gov.uk/id/local-authority/00FC,Children & Family Services,Communities & Partnerships,Extended Services,Direct Employee Expenses,Pay,EA101,05/05/2011,3926,668.53 ,Revenue,ESP LTD,101231
North East Lincolnshire Council,http://statistics.data.gov.uk/id/local-authority/00FC,Children & Family Services,Communities & Partnerships,Extended Services,Direct Employee Expenses,Pay,EA101,20/05/2011,9163,669.60 ,Revenue,ESP LTD,101231
North East Lincolnshire Council,http://statistics.data.gov.uk/id/local-authority/00FC,Children & Family Services,Communities & Partnerships,Young Childrens Services,Direct Employee Expenses,Pay,EA101,23/05/2011,9678,680.76 ,Revenue,ESP LTD,101231
North East Lincolnshire Council,http://statistics.data.gov.uk/id/local-authority/00FC,Children & Family Services,Communities & Partnerships,Health Care Provision,Direct Employee Expenses,Agency Staff,EA105,19/05/2011,8509,814.94 ,Revenue,ESP LTD,101231
North East Lincolnshire Council,http://statistics.data.gov.uk/id/local-authority/00FC,Children & Family Services,Communities & Partnerships,Health Care Provision,Direct Employee Expenses,Agency Staff,EA105,19/05/2011,8413,825.84 ,Revenue,ESP LTD,101231
North East Lincolnshire Council,http://statistics.data.gov.uk/id/local-authority/00FC,Children & Family Services,Communities & Partnerships,Health Care Provision,Direct Employee Expenses,Agency Staff,EA105,10/05/2011,4880,831.51 ,Revenue,ESP LTD,101231
North East Lincolnshire Council,http://statistics.data.gov.uk/id/local-authority/00FC,Children & Family Services,Communities & Partnerships,Health Care Provision,Contributions To Provisions,Contributions - Other,LK103,06/05/2011,4294,831.51 ,Revenue,ESP LTD,101231
North East Lincolnshire Council,http://statistics.data.gov.uk/id/local-authority/00FC,Children & Family Services,Communities & Partnerships,Young Childrens Services,Direct Employee Expenses,Pay,EA101,23/05/2011,9755,850.02 ,Revenue,ESP LTD,101231
North East Lincolnshire Council,http://statistics.data.gov.uk/id/local-authority/00FC,Children & Family Services,Communities & Partnerships,Young Childrens Services,Direct Employee Expenses,Agency Staff,EA105,06/05/2011,4234,"1,312.89 ",Revenue,ESP LTD,101231
North East Lincolnshire Council,http://statistics.data.gov.uk/id/local-authority/00FC,Children & Family Services,Communities & Partnerships,Young Childrens Services,Direct Employee Expenses,Agency Staff,EA105,05/05/2011,3552,"1,367.08 ",Revenue,ESP LTD,101231
North East Lincolnshire Council,http://statistics.data.gov.uk/id/local-authority/00FC,Children & Family Services,Communities & Partnerships,Young Childrens Services,Direct Employee Expenses,Agency Staff,EA105,05/05/2011,3553,"1,425.88 ",Revenue,ESP LTD,101231
North East Lincolnshire Council,http://statistics.data.gov.uk/id/local-authority/00FC,Children & Family Services,Communities & Partnerships,Young Childrens Services,Direct Employee Expenses,Agency Staff,EA105,06/05/2011,4235,"1,451.37 ",Revenue,ESP LTD,101231
North East Lincolnshire Council,http://statistics.data.gov.uk/id/local-authority/00FC,Children & Family Services,Communities & Partnerships,Young Childrens Services,Direct Employee Expenses,Pay,EA101,19/05/2011,8533,"1,623.58 ",Revenue,ESP LTD,101231
North East Lincolnshire Council,http://statistics.data.gov.uk/id/local-authority/00FC,Children & Family Services,Communities & Partnerships,Young Childrens Services,Direct Employee Expenses,Pay,EA101,23/05/2011,9726,"1,909.60 ",Revenue,ESP LTD,101231
North East Lincolnshire Council,http://statistics.data.gov.uk/id/local-authority/00FC,Children & Family Services,Communities & Partnerships,Young Childrens Services,Rep Alterations Maint Building,Buildings - Repairs And Maint,GA102,17/05/2011,7357,"1,370.77 ",Revenue,EXCELL ELECTRICAL CONTRACTORS,100601
North East Lincolnshire Council,http://statistics.data.gov.uk/id/local-authority/00FC,Devolved Formula Cap Grant,Devolved Formula Cap Grant,Devolved Formula Cap Grant,Cap Land/Build-Build Enh Wrk,Cap Land/Build-Build Enh Wrk,YA102,23/05/2011,9179,"1,662.11 ",Capital,EXCELL ELECTRICAL CONTRACTORS,100601
North East Lincolnshire Council,http://statistics.data.gov.uk/id/local-authority/00FC,Devolved Formula Cap Grant,Devolved Formula Cap Grant,Devolved Formula Cap Grant,Cap Land/Build-Build Enh Wrk,Cap Land/Build-Build Enh Wrk,YA102,23/05/2011,9943,"2,308.49 ",Capital,EXCELL ELECTRICAL CONTRACTORS,100601
North East Lincolnshire Council,http://statistics.data.gov.uk/id/local-authority/00FC,Devolved Formula Cap Grant,Devolved Formula Cap Grant,Devolved Formula Cap Grant,Cap Land/Build-Build Enh Wrk,Cap Land/Build-Build Enh Wrk,YA102,23/05/2011,9944,"6,256.38 ",Capital,EXCELL ELECTRICAL CONTRACTORS,100601
North East Lincolnshire Council,http://statistics.data.gov.uk/id/local-authority/00FC,Children & Family Services,Communities & Partnerships,Young Childrens Services,Rep Alterations Maint Building,Security Alarms And Cctv,GA101,20/05/2011,9093,590.08 ,Revenue,EXPERT RADIOLINK SECURITY,101603
North East Lincolnshire Council,http://statistics.data.gov.uk/id/local-authority/00FC,Children & Family Services,Vulnerable Children,Through Care And Lace,Rep Alterations Maint Building,Buildings - Repairs And Maint,GA102,12/05/2011,6204,663.32 ,Revenue,EXPERT RADIOLINK SECURITY,101603
North East Lincolnshire Council,http://statistics.data.gov.uk/id/local-authority/00FC,Children & Family Services,Vulnerable Children,Through Care And Lace,Other Agencies,Section 17,PJ125,13/05/2011,6621,550.00 ,Revenue,FAIRFIELD PRIMARY OUT OF SCHOOL CLUB,101346
North East Lincolnshire Council,http://statistics.data.gov.uk/id/local-authority/00FC,Children & Family Services,Vulnerable Children,Child Care Resources,Other Agencies,Section 17,PJ125,31/05/2011,10596,-2.06 ,Revenue,PETTY CASH,100789
North East Lincolnshire Council,http://statistics.data.gov.uk/id/local-authority/00FC,Children & Family Services,Vulnerable Children,Child Care Resources,Other Agencies,Additional Cost,PJ114,05/05/2011,3460,"1,300.00 ",Revenue,FLEX E VOUCHERS,103348
North East Lincolnshire Council,http://statistics.data.gov.uk/id/local-authority/00FC,Children & Family Services,Vulnerable Children,Child Care Resources,Private Contractors,Third Party Prov - Private,PH101,17/05/2011,6817,"3,860.40 ",Revenue,FOSTER CARE ASSOCIATES LIMITED,101455
North East Lincolnshire Council,http://statistics.data.gov.uk/id/local-authority/00FC,Children & Family Services,Vulnerable Children,Child Care Resources,Private Contractors,Third Party Prov - Private,PH101,31/05/2011,11033,"3,989.08 ",Revenue,FOSTER CARE ASSOCIATES LIMITED,101455
North East Lincolnshire Council,http://statistics.data.gov.uk/id/local-authority/00FC,Children & Family Services,Communities & Partnerships,Young Childrens Services,Contributions To Provisions,Contributions - Other,LK103,05/05/2011,3489,"2,165.00 ",Revenue,FRIENDS OF FEDUP,103355
North East Lincolnshire Council,http://statistics.data.gov.uk/id/local-authority/00FC,Primary Capital Programme,Primary Capital Programme,Primary Capital Programme,Cap Auc-Build Enh Wrk,Cap Auc-Build Enh Wrk,YF102,19/05/2011,8583,"255,394.30 ",Capital,GEO HOULTON & SONS LTD,102697
North East Lincolnshire Council,http://statistics.data.gov.uk/id/local-authority/00FC,Children & Family Services,Communities & Partnerships,Extended Services,Contributions To Provisions,Contributions - Other,LK103,05/05/2011,3930,660.00 ,Revenue,GLS SPORTS CONSULTANCY SERVICES,103405
North East Lincolnshire Council,http://statistics.data.gov.uk/id/local-authority/00FC,Children & Family Services,Learning,Standards & Effectiveness,Consultancy,Consultancy,PL101,18/05/2011,7807,"6,357.60 ",Revenue,GREEN PARK INTERIM & EXECUTIVE LTD,102534
North East Lincolnshire Council,http://statistics.data.gov.uk/id/local-authority/00FC,Children & Family Services,Learning,Standards & Effectiveness,Consultancy,Consultancy,PL101,31/05/2011,10939,"13,845.00 ",Revenue,GREEN PARK INTERIM & EXECUTIVE LTD,102534
North East Lincolnshire Council,http://statistics.data.gov.uk/id/local-authority/00FC,Children & Family Services,Communities & Partnerships,Young Childrens Services,Print Stationery / Gen Off Exp,Advertising,LD104,05/05/2011,3551,"1,096.00 ",Revenue,GRIMSBY & SCUNTHORPE MEDIA GROUP LTD,101827
North East Lincolnshire Council,http://statistics.data.gov.uk/id/local-authority/00FC,Children & Family Services,Communities & Partnerships,Young Childrens Services,Print Stationery / Gen Off Exp,Advertising,LD104,05/05/2011,3549,"1,096.00 ",Revenue,GRIMSBY & SCUNTHORPE MEDIA GROUP LTD,101827
North East Lincolnshire Council,http://statistics.data.gov.uk/id/local-authority/00FC,Children & Family Services,Vulnerable Children,Child Care Resources,Print Stationery / Gen Off Exp,Advertising,LD104,19/05/2011,8228,"1,574.00 ",Revenue,GRIMSBY & SCUNTHORPE MEDIA GROUP LTD,101827
North East Lincolnshire Council,http://statistics.data.gov.uk/id/local-authority/00FC,Children & Family Services,Vulnerable Children,Child Care Resources,Print Stationery / Gen Off Exp,Publicity,LD105,13/05/2011,6599,"1,574.00 ",Revenue,GRIMSBY & SCUNTHORPE MEDIA GROUP LTD,101827
North East Lincolnshire Council,http://statistics.data.gov.uk/id/local-authority/00FC,Children & Family Services,Communities & Partnerships,Health Care Provision,Contributions To Provisions,Contributions - Other,LK103,10/05/2011,5044,715.00 ,Revenue,GRIMSBY CENTRAL HALL TRUST,100882
North East Lincolnshire Council,http://statistics.data.gov.uk/id/local-authority/00FC,Children & Family Services,Communities & Partnerships,Young Childrens Services,Rep Alterations Maint Building,Buildings - Repairs And Maint,GA102,05/05/2011,3063,549.00 ,Revenue,HAITH'S HEATING LTD,101342
North East Lincolnshire Council,http://statistics.data.gov.uk/id/local-authority/00FC,Devolved Formula Cap Grant,Devolved Formula Cap Grant,Devolved Formula Cap Grant,Cap Land/Build-Build Enh Wrk,Cap Land/Build-Build Enh Wrk,YA102,05/05/2011,3040,995.00 ,Capital,HAITH'S HEATING LTD,101342
North East Lincolnshire Council,http://statistics.data.gov.uk/id/local-authority/00FC,Devolved Formula Cap Grant,Devolved Formula Cap Grant,Devolved Formula Cap Grant,Cap Land/Build-Build Enh Wrk,Cap Land/Build-Build Enh Wrk,YA102,05/05/2011,3061,"1,638.00 ",Capital,HAITH'S HEATING LTD,101342
North East Lincolnshire Council,http://statistics.data.gov.uk/id/local-authority/00FC,Devolved Formula Cap Grant,Devolved Formula Cap Grant,Devolved Formula Cap Grant,Cap Land/Build-Build Enh Wrk,Cap Land/Build-Build Enh Wrk,YA102,23/05/2011,9941,"2,798.00 ",Capital,HAITH'S HEATING LTD,101342
North East Lincolnshire Council,http://statistics.data.gov.uk/id/local-authority/00FC,Devolved Formula Cap Grant,Devolved Formula Cap Grant,Devolved Formula Cap Grant,Cap Land/Build-Build Enh Wrk,Cap Land/Build-Build Enh Wrk,YA102,18/05/2011,7803,"3,360.00 ",Capital,HAITH'S HEATING LTD,101342
North East Lincolnshire Council,http://statistics.data.gov.uk/id/local-authority/00FC,Devolved Formula Cap Grant,Devolved Formula Cap Grant,Devolved Formula Cap Grant,Cap Land/Build-Build Enh Wrk,Cap Land/Build-Build Enh Wrk,YA102,23/05/2011,9961,"3,655.00 ",Capital,HAITH'S HEATING LTD,101342
North East Lincolnshire Council,http://statistics.data.gov.uk/id/local-authority/00FC,Nds Cond + Modern All Schools,Nds Cond + Modern All Schools,Nds Cond + Modern All Schools,Cap Land/Build-Build Enh Wrk,Cap Land/Build-Build Enh Wrk,YA102,12/05/2011,6075,627.00 ,Capital,HAITH'S HEATING LTD,101342
North East Lincolnshire Council,http://statistics.data.gov.uk/id/local-authority/00FC,Children & Family Services,Learning,Standards & Effectiveness,Government Grants,Grants - Standards Fund,VA102,19/05/2011,7928,"1,750.00 ",Revenue,HEALING SCIENCE ACADEMY LTD,102702
North East Lincolnshire Council,http://statistics.data.gov.uk/id/local-authority/00FC,Children & Family Services,Vulnerable Children,Through Care And Lace,Equip / Furniture / Materials,Equipment - Purchase,LA101,10/05/2011,4888,"3,495.00 ",Revenue,HILL-ROM LTD,103521
North East Lincolnshire Council,http://statistics.data.gov.uk/id/local-authority/00FC,Devolved Formula Cap Grant,Devolved Formula Cap Grant,Devolved Formula Cap Grant,Cap Land/Build-Build Enh Wrk,Cap Land/Build-Build Enh Wrk,YA102,18/05/2011,7790,800.00 ,Capital,HOLLIS INDUSTRIAL SERVICES LTD,103889
North East Lincolnshire Council,http://statistics.data.gov.uk/id/local-authority/00FC,Children & Family Services,Commiss & Integrated Serv,Additional & Enhanced Needs,Other Local Authorities,Third Pp - Other Local Auth,PC101,05/05/2011,3645,"37,666.00 ",Revenue,HORTON EDUCATION AND CARE,103394
North East Lincolnshire Council,http://statistics.data.gov.uk/id/local-authority/00FC,Children & Family Services,Vulnerable Children,Childcare Fieldwork,Miscellaneous Expenses,Legal Fees - General,LL103,17/05/2011,7282,Redacted Commercially Sensitive,Revenue,HOWELLS LLP,103485
North East Lincolnshire Council,http://statistics.data.gov.uk/id/local-authority/00FC,Children & Family Services,Vulnerable Children,Through Care And Lace,Private Contractors,Third Party Prov - Private,PH101,12/05/2011,5607,Redacted Commercially Sensitive,Revenue,HUMBERCARE,100311
North East Lincolnshire Council,http://statistics.data.gov.uk/id/local-authority/00FC,Children & Family Services,Learning,Standards & Effectiveness,Government Grants,Grants - Standards Fund,VA102,19/05/2011,7922,"8,750.00 ",Revenue,HUMBERSTON  MATHS & COMPUTING COLLEGE,103714
North East Lincolnshire Council,http://statistics.data.gov.uk/id/local-authority/00FC,Children & Family Services,Communities & Partnerships,Young Childrens Services,Other Agencies,Nursery Educ Fund - Standard,PJ139,16/05/2011,6661,"2,892.96 ",Revenue,HUMBERSTON VILLAGE NURSERY,102006
North East Lincolnshire Council,http://statistics.data.gov.uk/id/local-authority/00FC,Children & Family Services,Learning,Capital & Assets,Rep Alterations Maint Building,Buildings - Repairs And Maint,GA102,20/05/2011,7343,"6,600.00 ",Revenue,IT SERVICES (GRIMSBY) LTD,101060
North East Lincolnshire Council,http://statistics.data.gov.uk/id/local-authority/00FC,Nursery Provision Grants,Nursery Provision Grants,Nursery Provision Grants,Cap Ass Held Sale-Prof Fees,Cap Ass Held Sale-Prof Fees,YG102,11/05/2011,5633,"3,693.75 ",Capital,JAMES BRATTON & CO LTD,100714
North East Lincolnshire Council,http://statistics.data.gov.uk/id/local-authority/00FC,Children & Family Services,Commiss & Integrated Serv,Services To Youth,Miscellaneous Expenses,Activities - Service Users,LL114,31/05/2011,10924,"12,000.00 ",Revenue,JELLYCAT MEDIA LTD,102588
North East Lincolnshire Council,http://statistics.data.gov.uk/id/local-authority/00FC,Nds Cond + Modern All Schools,Nds Cond + Modern All Schools,Nds Cond + Modern All Schools,Cap Land/Build-Build Enh Wrk,Cap Land/Build-Build Enh Wrk,YA102,31/05/2011,10937,"29,674.20 ",Capital,JENNINGS ROOFING LIMITED,103290
North East Lincolnshire Council,http://statistics.data.gov.uk/id/local-authority/00FC,Children & Family Services,Learning,Sen/Inclusion,Consultancy,Consultancy - Curriculum,PL102,23/05/2011,9823,"1,633.67 ",Revenue,JOHN ATKINS CONSULTING LTD,104094
North East Lincolnshire Council,http://statistics.data.gov.uk/id/local-authority/00FC,Children & Family Services,Vulnerable Children,Childcare Fieldwork,Miscellaneous Expenses,Legal Fees - General,LL103,05/05/2011,3244,Redacted Commercially Sensitive,Revenue,JOHN BARKERS SOLICITORS,100928
North East Lincolnshire Council,http://statistics.data.gov.uk/id/local-authority/00FC,Children & Family Services,Communities & Partnerships,Young Childrens Services,Rep Alterations Maint Building,Buildings - Repairs And Maint,GA102,06/05/2011,4208,735.30 ,Revenue,JOHN DASS,100526
North East Lincolnshire Council,http://statistics.data.gov.uk/id/local-authority/00FC,Havelock Academy,Havelock Academy,Havelock Academy,Cap Auc-Build Enh Wrk,Cap Auc-Build Enh Wrk,YF102,26/05/2011,10524,"858,633.32 ",Capital,KIER BUILD,102302
North East Lincolnshire Council,http://statistics.data.gov.uk/id/local-authority/00FC,Hereford School Rebuilding,Hereford School Rebuilding,Hereford School Rebuilding,Cap Auc-Build Enh Wrk,Cap Auc-Build Enh Wrk,YF102,19/05/2011,8288,"394,862.00 ",Capital,KIER BUILD,102302
North East Lincolnshire Council,http://statistics.data.gov.uk/id/local-authority/00FC,Children & Family Services,Commiss & Integrated Serv,Additional & Enhanced Needs,Other Local Authorities,Third Pp - Other Local Auth,PC101,19/05/2011,8250,"114,255.00 ",Revenue,KINGSTON UPON HULL CITY COUNCIL,100541
North East Lincolnshire Council,http://statistics.data.gov.uk/id/local-authority/00FC,Children & Family Services,Vulnerable Children,Child Care Resources,Contract Hire-Operating Leases,Vehicles - Contract Hire,JC101,10/05/2011,4886,840.00 ,Revenue,KINGSTON UPON HULL CITY COUNCIL,100541
North East Lincolnshire Council,http://statistics.data.gov.uk/id/local-authority/00FC,Children & Family Services,Learning,Standards & Effectiveness,Consultancy,Consultancy,PL101,13/05/2011,6540,500.00 ,Revenue,LEE BOLTON MONIER-WILLIAMS SOLICITORS,102257
North East Lincolnshire Council,http://statistics.data.gov.uk/id/local-authority/00FC,Children & Family Services,Learning,Standards & Effectiveness,Miscellaneous Expenses,Other Expenses General,LL119,05/05/2011,3343,800.00 ,Revenue,LEE BOLTON MONIER-WILLIAMS SOLICITORS,102257
North East Lincolnshire Council,http://statistics.data.gov.uk/id/local-authority/00FC,Children & Family Services,Vulnerable Children,Childcare Fieldwork,Private Contractors,Third Party Prov - Private,PH101,09/05/2011,4680,"22,475.00 ",Revenue,LEEDS CITY COUNCIL,100545
North East Lincolnshire Council,http://statistics.data.gov.uk/id/local-authority/00FC,Children & Family Services,Commiss & Integrated Serv,School Access Govrn Stdnt Serv,Contract Hire-Operating Leases,Vehicles - Contract Hire,JC101,06/05/2011,4385,Redacted Commercially Sensitive,Revenue,LEICESTERSHIRE COUNTY COUNCIL,100872
North East Lincolnshire Council,http://statistics.data.gov.uk/id/local-authority/00FC,Children & Family Services,Communities & Partnerships,Young Childrens Services,Private Contractors,Third Party Prov - Private,PH101,17/05/2011,7336,"1,200.00 ",Revenue,LGIU,103862
North East Lincolnshire Council,http://statistics.data.gov.uk/id/local-authority/00FC,Children & Family Services,Learning,Standards Fund,Private Contractors,Third Party Prov - Private,PH101,31/05/2011,11074,"5,709.69 ",Revenue,LINCOLNSHIRE COUNTY COUNCIL,100389
North East Lincolnshire Council,http://statistics.data.gov.uk/id/local-authority/00FC,Children & Family Services,Communities & Partnerships,Young Childrens Services,Rep Alterations Maint Building,Buildings - Repairs And Maint,GA102,23/05/2011,9477,799.21 ,Revenue,LINCS ELECTRICAL SERVICES LTD,102044
North East Lincolnshire Council,http://statistics.data.gov.uk/id/local-authority/00FC,Children & Family Services,Communities & Partnerships,Extended Services,Miscellaneous Expenses,Activities - Service Users,LL114,05/05/2011,3911,641.00 ,Revenue,LISLE MARSDEN PRIMARY SCHOOL,101157
North East Lincolnshire Council,http://statistics.data.gov.uk/id/local-authority/00FC,Children & Family Services,Learning,Standards & Effectiveness,Government Grants,Grants - Standards Fund,VA102,19/05/2011,7927,"4,250.00 ",Revenue,LISLE MARSDEN PRIMARY SCHOOL,101157
North East Lincolnshire Council,http://statistics.data.gov.uk/id/local-authority/00FC,Children & Family Services,Communities & Partnerships,Young Childrens Services,Other Agencies,Nursery Educ Funding - Top Up,PJ140,17/05/2011,7324,"1,250.00 ",Revenue,LOCK-IT SAFE LTD,101344
North East Lincolnshire Council,http://statistics.data.gov.uk/id/local-authority/00FC,Children & Family Services,Learning,Standards & Effectiveness,Consultancy,Consultancy,PL101,06/05/2011,4286,"3,000.00 ",Revenue,LONG BENNINGTON CHURCH OF ENGLAND,103430
North East Lincolnshire Council,http://statistics.data.gov.uk/id/local-authority/00FC,Children & Family Services,Commiss & Integrated Serv,Services To Youth,Print Stationery / Gen Off Exp,Printing And Stationery,LD103,05/05/2011,3431,830.96 ,Revenue,LYRECO UK LIMITED,101120
North East Lincolnshire Council,http://statistics.data.gov.uk/id/local-authority/00FC,Children & Family Services,Commiss & Integrated Serv,Services To Youth,Print Stationery / Gen Off Exp,Printing And Stationery,LD103,09/05/2011,4854,"1,505.69 ",Revenue,LYRECO UK LIMITED,101120
North East Lincolnshire Council,http://statistics.data.gov.uk/id/local-authority/00FC,Children & Family Services,Communities & Partnerships,Health Care Provision,Print Stationery / Gen Off Exp,Printing And Stationery,LD103,18/05/2011,7564,-44.05 ,Revenue,LYRECO UK LIMITED,101120
North East Lincolnshire Council,http://statistics.data.gov.uk/id/local-authority/00FC,Children & Family Services,Communities & Partnerships,Young Childrens Services,Contributions To Provisions,Contributions - Other,LK103,06/05/2011,4288,658.14 ,Revenue,LYRECO UK LIMITED,101120
North East Lincolnshire Council,http://statistics.data.gov.uk/id/local-authority/00FC,Children & Family Services,Communities & Partnerships,Health Care Provision,Contributions To Provisions,Contributions - Other,LK103,11/05/2011,5056,889.99 ,Revenue,LYRECO UK LIMITED,101120
North East Lincolnshire Council,http://statistics.data.gov.uk/id/local-authority/00FC,Children & Family Services,Communities & Partnerships,Health Care Provision,Equip / Furniture / Materials,Teaching Materials,LA117,06/05/2011,4430,"1,386.37 ",Revenue,LYRECO UK LIMITED,101120
North East Lincolnshire Council,http://statistics.data.gov.uk/id/local-authority/00FC,Children & Family Services,Vulnerable Children,Child Care Resources,Print Stationery / Gen Off Exp,Printing And Stationery,LD103,16/05/2011,6967,666.25 ,Revenue,LYRECO UK LIMITED,101120
North East Lincolnshire Council,http://statistics.data.gov.uk/id/local-authority/00FC,Children & Family Services,Communities & Partnerships,Health Care Provision,Contributions To Provisions,Contributions - Other,LK103,23/05/2011,9606,"5,100.00 ",Revenue,MAGNUM SERVICES,100577
North East Lincolnshire Council,http://statistics.data.gov.uk/id/local-authority/00FC,Children & Family Services,Communities & Partnerships,Young Childrens Services,Indirect Employee Expenses,Staff Training,EB122,05/05/2011,3556,"1,635.00 ",Revenue,MANATEC LTD,102048
North East Lincolnshire Council,http://statistics.data.gov.uk/id/local-authority/00FC,Children & Family Services,Learning,Capital & Assets,Rep Alterations Maint Building,Buildings - Repairs And Maint,GA102,05/05/2011,3221,"11,884.00 ",Revenue,MANTA SHOPFITTERS LTD,102230
North East Lincolnshire Council,http://statistics.data.gov.uk/id/local-authority/00FC,Children & Family Services,Learning,Capital & Assets,Rep Alterations Maint Building,Buildings - Repairs And Maint,GA102,05/05/2011,3222,"24,816.00 ",Revenue,MANTA SHOPFITTERS LTD,102230
North East Lincolnshire Council,http://statistics.data.gov.uk/id/local-authority/00FC,Children & Family Services,Communities & Partnerships,Extended Services,Miscellaneous Expenses,Activities - Service Users,LL114,23/05/2011,9831,585.00 ,Revenue,MAPA (LINCS) LTD,102259
North East Lincolnshire Council,http://statistics.data.gov.uk/id/local-authority/00FC,Children & Family Services,Commiss & Integrated Serv,School Access Govrn Stdnt Serv,Contract Hire-Operating Leases,Vehicles - Contract Hire,JC101,12/05/2011,6067,Redacted Commercially Sensitive,Revenue,MILLMAN COACHES,100700
North East Lincolnshire Council,http://statistics.data.gov.uk/id/local-authority/00FC,Children & Family Services,Commiss & Integrated Serv,School Access Govrn Stdnt Serv,Contract Hire-Operating Leases,Vehicles - Contract Hire,JC101,12/05/2011,6066,Redacted Commercially Sensitive,Revenue,MILLMAN COACHES,100700
North East Lincolnshire Council,http://statistics.data.gov.uk/id/local-authority/00FC,Children & Family Services,Commiss & Integrated Serv,School Access Govrn Stdnt Serv,Contract Hire-Operating Leases,Vehicles - Contract Hire,JC101,12/05/2011,6065,Redacted Commercially Sensitive,Revenue,MILLMAN COACHES,100700
North East Lincolnshire Council,http://statistics.data.gov.uk/id/local-authority/00FC,Children & Family Services,Commiss & Integrated Serv,School Access Govrn Stdnt Serv,Contract Hire-Operating Leases,Vehicles - Contract Hire,JC101,12/05/2011,6064,Redacted Commercially Sensitive,Revenue,MILLMAN COACHES,100700
North East Lincolnshire Council,http://statistics.data.gov.uk/id/local-authority/00FC,Children & Family Services,Communities & Partnerships,Young Childrens Services,Other Agencies,Educational Visits,PJ152,18/05/2011,7492,600.00 ,Revenue,MILLMAN COACHES,100700
North East Lincolnshire Council,http://statistics.data.gov.uk/id/local-authority/00FC,Children & Family Services,Commiss & Integrated Serv,School Access Govrn Stdnt Serv,Contract Hire-Operating Leases,Vehicles - Contract Hire,JC101,12/05/2011,6088,543.84 ,Revenue,MINICABS CLEETHORPES (LINCS) LTD,102124
North East Lincolnshire Council,http://statistics.data.gov.uk/id/local-authority/00FC,Children & Family Services,Commiss & Integrated Serv,School Access Govrn Stdnt Serv,Contract Hire-Operating Leases,Vehicles - Contract Hire,JC101,12/05/2011,6084,Redacted Commercially Sensitive,Revenue,MINICABS CLEETHORPES (LINCS) LTD,102124
North East Lincolnshire Council,http://statistics.data.gov.uk/id/local-authority/00FC,Children & Family Services,Commiss & Integrated Serv,School Access Govrn Stdnt Serv,Clothes Uniforms And Laundry,Uniforms,LC102,12/05/2011,6062,685.00 ,Revenue,MINICABS CLEETHORPES (LINCS) LTD,102124
North East Lincolnshire Council,http://statistics.data.gov.uk/id/local-authority/00FC,Children & Family Services,Commiss & Integrated Serv,School Access Govrn Stdnt Serv,Contract Hire-Operating Leases,Vehicles - Contract Hire,JC101,12/05/2011,5669,Redacted Commercially Sensitive,Revenue,MINICABS CLEETHORPES (LINCS) LTD,102124
North East Lincolnshire Council,http://statistics.data.gov.uk/id/local-authority/00FC,Children & Family Services,Commiss & Integrated Serv,School Access Govrn Stdnt Serv,Contract Hire-Operating Leases,Vehicles - Contract Hire,JC101,12/05/2011,5669,Redacted Commercially Sensitive,Revenue,MINICABS CLEETHORPES (LINCS) LTD,102124
North East Lincolnshire Council,http://statistics.data.gov.uk/id/local-authority/00FC,Children & Family Services,Learning,Standards & Effectiveness,Consultancy,Consultancy,PL101,06/05/2011,4240,"12,635.00 ",Revenue,NAVIGATE,101781
North East Lincolnshire Council,http://statistics.data.gov.uk/id/local-authority/00FC,Children & Family Services,Learning,Standards & Effectiveness,Consultancy,Consultancy,PL101,12/05/2011,6032,"1,000.00 ",Revenue,NEL COMMUNITIES TOGETHER,103632
North East Lincolnshire Council,http://statistics.data.gov.uk/id/local-authority/00FC,Children & Family Services,Commiss & Integrated Serv,Childrens Trust,Communications And Computing,Postage,LF111,05/05/2011,3096,"1,482.33 ",Revenue,NEOPOST LIMITED,103149
North East Lincolnshire Council,http://statistics.data.gov.uk/id/local-authority/00FC,Children & Family Services,Commiss & Integrated Serv,Childrens Trust,Communications And Computing,Postage,LF111,16/05/2011,6498,-110.00 ,Revenue,NEOPOST LTD,100822
North East Lincolnshire Council,http://statistics.data.gov.uk/id/local-authority/00FC,Children & Family Services,Learning,Standards & Effectiveness,Consultancy,Consultancy,PL101,18/05/2011,7808,700.00 ,Revenue,NEW WALTHAM PRIMARY SCHOOL,100922
North East Lincolnshire Council,http://statistics.data.gov.uk/id/local-authority/00FC,Children & Family Services,Learning,Standards & Effectiveness,Government Grants,Grants - Standards Fund,VA102,19/05/2011,7926,"2,250.00 ",Revenue,NEW WALTHAM PRIMARY SCHOOL,100922
North East Lincolnshire Council,http://statistics.data.gov.uk/id/local-authority/00FC,Devolved Formula Cap Grant,Devolved Formula Cap Grant,Devolved Formula Cap Grant,Cap Land/Build-Build Enh Wrk,Cap Land/Build-Build Enh Wrk,YA102,12/05/2011,6057,"7,775.00 ",Capital,NEWBY LEISURE LTD,101227
North East Lincolnshire Council,http://statistics.data.gov.uk/id/local-authority/00FC,Surplus Place Removal,Surplus Place Removal,Surplus Place Removal,Cap Land/Build-Build Enh Wrk,Cap Land/Build-Build Enh Wrk,YA102,16/05/2011,6791,"1,150.00 ",Capital,NEWGLAZE,100642
North East Lincolnshire Council,http://statistics.data.gov.uk/id/local-authority/00FC,Children & Family Services,Communities & Partnerships,Health Care Provision,Rates,Rates,GD101,31/05/2011,11395,"1,060.85 ",Revenue,NORTH EAST LINCOLNSHIRE COUNCIL,100894
North East Lincolnshire Council,http://statistics.data.gov.uk/id/local-authority/00FC,Children & Family Services,Communities & Partnerships,Young Childrens Services,Rates,Rates,GD101,17/05/2011,7066,"1,125.80 ",Revenue,NORTH EAST LINCOLNSHIRE COUNCIL,100894
North East Lincolnshire Council,http://statistics.data.gov.uk/id/local-authority/00FC,Children & Family Services,Communities & Partnerships,Young Childrens Services,Rates,Rates,GD101,31/05/2011,10635,"2,625.06 ",Revenue,NORTH EAST LINCOLNSHIRE COUNCIL,100894
North East Lincolnshire Council,http://statistics.data.gov.uk/id/local-authority/00FC,Children & Family Services,Communities & Partnerships,Young Childrens Services,Rates,Rates,GD101,17/05/2011,7068,"3,680.50 ",Revenue,NORTH EAST LINCOLNSHIRE COUNCIL,100894
North East Lincolnshire Council,http://statistics.data.gov.uk/id/local-authority/00FC,Children & Family Services,Communities & Partnerships,Extended Services,Rates,Rates,GD101,17/05/2011,7071,"4,156.80 ",Revenue,NORTH EAST LINCOLNSHIRE COUNCIL,100894
North East Lincolnshire Council,http://statistics.data.gov.uk/id/local-authority/00FC,Children & Family Services,Communities & Partnerships,Young Childrens Services,Rates,Rates,GD101,17/05/2011,7067,"4,871.25 ",Revenue,NORTH EAST LINCOLNSHIRE COUNCIL,100894
North East Lincolnshire Council,http://statistics.data.gov.uk/id/local-authority/00FC,Children & Family Services,Communities & Partnerships,Young Childrens Services,Rates,Rates,GD101,17/05/2011,7069,"5,737.25 ",Revenue,NORTH EAST LINCOLNSHIRE COUNCIL,100894
North East Lincolnshire Council,http://statistics.data.gov.uk/id/local-authority/00FC,Children & Family Services,Communities & Partnerships,Young Childrens Services,Rates,Rates,GD101,17/05/2011,7075,"5,845.50 ",Revenue,NORTH EAST LINCOLNSHIRE COUNCIL,100894
North East Lincolnshire Council,http://statistics.data.gov.uk/id/local-authority/00FC,Children & Family Services,Communities & Partnerships,Young Childrens Services,Rates,Rates,GD101,23/05/2011,9485,"7,577.50 ",Revenue,NORTH EAST LINCOLNSHIRE COUNCIL,100894
North East Lincolnshire Council,http://statistics.data.gov.uk/id/local-authority/00FC,Children & Family Services,Communities & Partnerships,Young Childrens Services,Rates,Rates,GD101,26/05/2011,10509,"7,730.80 ",Revenue,NORTH EAST LINCOLNSHIRE COUNCIL,100894
North East Lincolnshire Council,http://statistics.data.gov.uk/id/local-authority/00FC,Children & Family Services,Communities & Partnerships,Young Childrens Services,Rates,Rates,GD101,17/05/2011,7070,"8,768.25 ",Revenue,NORTH EAST LINCOLNSHIRE COUNCIL,100894
North East Lincolnshire Council,http://statistics.data.gov.uk/id/local-authority/00FC,Children & Family Services,Communities & Partnerships,Extended Services,Rates,Rates,GD101,05/05/2011,3932,"8,867.28 ",Revenue,NORTH EAST LINCOLNSHIRE COUNCIL,100894
North East Lincolnshire Council,http://statistics.data.gov.uk/id/local-authority/00FC,Children & Family Services,Communities & Partnerships,Young Childrens Services,Rates,Rates,GD101,17/05/2011,7072,"10,101.96 ",Revenue,NORTH EAST LINCOLNSHIRE COUNCIL,100894
North East Lincolnshire Council,http://statistics.data.gov.uk/id/local-authority/00FC,Children & Family Services,Communities & Partnerships,Young Childrens Services,Rates,Rates,GD101,17/05/2011,7074,"10,550.94 ",Revenue,NORTH EAST LINCOLNSHIRE COUNCIL,100894
North East Lincolnshire Council,http://statistics.data.gov.uk/id/local-authority/00FC,Children & Family Services,Learning,Capital & Assets,Rep Alterations Maint Building,Buildings - Repairs And Maint,GA102,31/05/2011,11149,"2,855.05 ",Revenue,NORTH EAST LINCOLNSHIRE COUNCIL,100894
North East Lincolnshire Council,http://statistics.data.gov.uk/id/local-authority/00FC,Children & Family Services,Vulnerable Children,Through Care And Lace,Other Agencies,Housing Benefit,PJ134,09/05/2011,4487,995.00 ,Revenue,NORTH EAST LINCOLNSHIRE COUNCIL,100894
North East Lincolnshire Council,http://statistics.data.gov.uk/id/local-authority/00FC,Children & Family Services,Vulnerable Children,Childcare Fieldwork,Rates,Rates,GD101,05/05/2011,3370,"10,442.19 ",Revenue,NORTH EAST LINCOLNSHIRE COUNCIL,100894
North East Lincolnshire Council,http://statistics.data.gov.uk/id/local-authority/00FC,Children & Family Services,Communities & Partnerships,Health Care Provision,Miscellaneous Expenses,Legal Fees - General,LL103,16/05/2011,6860,Redacted Commercially Sensitive,Revenue,NORTH EAST LINCOLNSHIRE PRIMARY CARE TRUST,100337
North East Lincolnshire Council,http://statistics.data.gov.uk/id/local-authority/00FC,Children & Family Services,Communities & Partnerships,Health Care Provision,Private Contractors,Third Party Prov - Private,PH101,10/05/2011,5045,Redacted Commercially Sensitive,Revenue,NORTH EAST LINCOLNSHIRE PRIMARY CARE TRUST,100337
North East Lincolnshire Council,http://statistics.data.gov.uk/id/local-authority/00FC,Children & Family Services,Communities & Partnerships,Health Care Provision,Finance Leasing,Leasing,LN101,09/05/2011,4225,Redacted Commercially Sensitive,Revenue,NORTH EAST LINCOLNSHIRE PRIMARY CARE TRUST,100337
North East Lincolnshire Council,http://statistics.data.gov.uk/id/local-authority/00FC,Children & Family Services,Communities & Partnerships,Health Care Provision,Communications And Computing,Computer H/Ware - Purchases,LF105,31/05/2011,11106,Redacted Commercially Sensitive,Revenue,NORTH EAST LINCOLNSHIRE PRIMARY CARE TRUST,100337
North East Lincolnshire Council,http://statistics.data.gov.uk/id/local-authority/00FC,Children & Family Services,Communities & Partnerships,Health Care Provision,Private Contractors,Third Party Prov - Private,PH101,10/05/2011,5045,Redacted Commercially Sensitive,Revenue,NORTH EAST LINCOLNSHIRE PRIMARY CARE TRUST,100337
North East Lincolnshire Council,http://statistics.data.gov.uk/id/local-authority/00FC,Children & Family Services,Communities & Partnerships,Health Care Provision,Communications And Computing,Computer H/Ware - Purchases,LF105,31/05/2011,11104,Redacted Commercially Sensitive,Revenue,NORTH EAST LINCOLNSHIRE PRIMARY CARE TRUST,100337
North East Lincolnshire Council,http://statistics.data.gov.uk/id/local-authority/00FC,Children & Family Services,Learning,Sen/Inclusion,Indirect Employee Expenses,Staff Training,EB122,05/05/2011,3369,Redacted Commercially Sensitive,Revenue,NORTH EAST LINCOLNSHIRE PRIMARY CARE TRUST,100337
North East Lincolnshire Council,http://statistics.data.gov.uk/id/local-authority/00FC,Children & Family Services,Learning,Standards & Effectiveness,Rep Alterations Maint Building,Buildings - Repairs And Maint,GA102,31/05/2011,11396,"-1,060.85 ",Revenue,NORTH EAST LINCOLNSHIRE SCHOOL,102882
North East Lincolnshire Council,http://statistics.data.gov.uk/id/local-authority/00FC,Children & Family Services,Learning,Standards & Effectiveness,Rep Alterations Maint Building,Buildings - Repairs And Maint,GA102,16/05/2011,6657,"1,060.85 ",Revenue,NORTH EAST LINCOLNSHIRE SCHOOL,102882
North East Lincolnshire Council,http://statistics.data.gov.uk/id/local-authority/00FC,Children & Family Services,Learning,Community Learning Services,Miscellaneous Expenses,Activities - Service Users,LL114,17/05/2011,6968,954.00 ,Revenue,NORTH EAST LINCS MOTOR PROJECT,101121
North East Lincolnshire Council,http://statistics.data.gov.uk/id/local-authority/00FC,Children & Family Services,Commiss & Integrated Serv,Additional & Enhanced Needs,Other Local Authorities,Third Pp - Other Local Auth,PC101,19/05/2011,7959,"5,164.25 ",Revenue,NORTH LINCOLNSHIRE COUNCIL,101186
North East Lincolnshire Council,http://statistics.data.gov.uk/id/local-authority/00FC,Children & Family Services,Learning,Standards & Effectiveness,Consultancy,Consultancy,PL101,31/05/2011,10588,"1,335.00 ",Revenue,NORTHERN EDUCATION,101745
North East Lincolnshire Council,http://statistics.data.gov.uk/id/local-authority/00FC,Children & Family Services,Learning,Standards & Effectiveness,Consultancy,Consultancy,PL101,13/05/2011,6428,"1,400.00 ",Revenue,NORTHERN EDUCATION,101745
North East Lincolnshire Council,http://statistics.data.gov.uk/id/local-authority/00FC,Children & Family Services,Learning,Standards & Effectiveness,Consultancy,Consultancy,PL101,13/05/2011,6428,"7,120.00 ",Revenue,NORTHERN EDUCATION,101745
North East Lincolnshire Council,http://statistics.data.gov.uk/id/local-authority/00FC,Children & Family Services,Communities & Partnerships,Young Childrens Services,Private Contractors,Third Party Prov - Private,PH101,06/05/2011,3948,"-27,691.00 ",Revenue,NORTHERN LINCOLNSHIRE & GOOLE HOSPITALS,101242
North East Lincolnshire Council,http://statistics.data.gov.uk/id/local-authority/00FC,Children & Family Services,Communities & Partnerships,Health Care Provision,Private Contractors,Third Party Prov - Private,PH101,06/05/2011,4372,"-1,025.00 ",Revenue,NORTHERN LINCOLNSHIRE & GOOLE HOSPITALS,101242
North East Lincolnshire Council,http://statistics.data.gov.uk/id/local-authority/00FC,Children & Family Services,Communities & Partnerships,Health Care Provision,Private Contractors,Third Party Prov - Private,PH101,06/05/2011,4226,"1,025.00 ",Revenue,NORTHERN LINCOLNSHIRE & GOOLE HOSPITALS,101242
North East Lincolnshire Council,http://statistics.data.gov.uk/id/local-authority/00FC,Children & Family Services,Communities & Partnerships,Young Childrens Services,Private Contractors,Third Party Prov - Private,PH101,10/05/2011,5046,"7,625.00 ",Revenue,NORTHERN LINCOLNSHIRE & GOOLE HOSPITALS,101242
North East Lincolnshire Council,http://statistics.data.gov.uk/id/local-authority/00FC,Children & Family Services,Communities & Partnerships,Young Childrens Services,Private Contractors,Third Party Prov - Private,PH101,12/05/2011,6248,"28,243.00 ",Revenue,NORTHERN LINCOLNSHIRE & GOOLE HOSPITALS,101242
North East Lincolnshire Council,http://statistics.data.gov.uk/id/local-authority/00FC,Children & Family Services,Commiss & Integrated Serv,Child Care Performance & Ict,Communications And Computing,Computer S/Ware - Purchases,LF101,10/05/2011,4882,"7,147.00 ",Revenue,NORTHGATE INFORMATION SOLUTIONS UK LTD,101841
North East Lincolnshire Council,http://statistics.data.gov.uk/id/local-authority/00FC,Children & Family Services,Commiss & Integrated Serv,Services To Youth,Contract Hire-Operating Leases,Vehicles - Contract Hire,JC101,18/05/2011,7562,-15.60 ,Revenue,NORTHGATE VEHICLE HIRE,102553
North East Lincolnshire Council,http://statistics.data.gov.uk/id/local-authority/00FC,Children & Family Services,Communities & Partnerships,Health Care Provision,Contract Hire-Operating Leases,Vehicles - Contract Hire,JC101,18/05/2011,7563,-65.40 ,Revenue,NORTHGATE VEHICLE HIRE,102553
North East Lincolnshire Council,http://statistics.data.gov.uk/id/local-authority/00FC,Children & Family Services,Vulnerable Children,Youth Offending Team,Direct Transport Costs,Hired Transport - Employees,JA101,18/05/2011,7566,-93.60 ,Revenue,NORTHGATE VEHICLE HIRE,102553
North East Lincolnshire Council,http://statistics.data.gov.uk/id/local-authority/00FC,Children & Family Services,Learning,Sen/Inclusion,Other Local Authorities,Third Pp - Other Local Auth,PC101,31/05/2011,10587,"1,495.75 ",Revenue,NOTTINGHAM CITY COUNCIL,104131
North East Lincolnshire Council,http://statistics.data.gov.uk/id/local-authority/00FC,Children & Family Services,Vulnerable Children,Child Care Resources,Miscellaneous Expenses,Other Expenses General,LL119,05/05/2011,3572,"2,100.00 ",Revenue,NOVA STUDIOS,103369
North East Lincolnshire Council,http://statistics.data.gov.uk/id/local-authority/00FC,Children & Family Services,Communities & Partnerships,Young Childrens Services,Energy Costs,Electricity,GB102,16/05/2011,6660,511.46 ,Revenue,NPOWER LIMITED,101414
North East Lincolnshire Council,http://statistics.data.gov.uk/id/local-authority/00FC,Children & Family Services,Communities & Partnerships,Young Childrens Services,Energy Costs,Electricity,GB102,26/05/2011,10503,538.17 ,Revenue,NPOWER LIMITED,101414
North East Lincolnshire Council,http://statistics.data.gov.uk/id/local-authority/00FC,Children & Family Services,Communities & Partnerships,Young Childrens Services,Contributions To Provisions,Contributions - Other,LK103,05/05/2011,3488,"1,364.49 ",Revenue,NSPCC,101307
North East Lincolnshire Council,http://statistics.data.gov.uk/id/local-authority/00FC,Children & Family Services,Communities & Partnerships,Young Childrens Services,Contributions To Provisions,Contributions - Other,LK103,05/05/2011,3526,"2,656.11 ",Revenue,NSPCC,101307
North East Lincolnshire Council,http://statistics.data.gov.uk/id/local-authority/00FC,Children & Family Services,Learning,Standards & Effectiveness,Car Allowances,Travel - Employees,JF101,05/05/2011,2700,-49.81 ,Revenue,NYS CORPORATE,102444
North East Lincolnshire Council,http://statistics.data.gov.uk/id/local-authority/00FC,Children & Family Services,Communities & Partnerships,Extended Services,Contributions To Provisions,Contributions - Other,LK103,05/05/2011,3927,"2,000.00 ",Revenue,OASIS ACADEMY WINTRINGHAM,101939
North East Lincolnshire Council,http://statistics.data.gov.uk/id/local-authority/00FC,Children & Family Services,Learning,Community Learning Services,Miscellaneous Expenses,Exam Fees,LL115,18/05/2011,7268,684.00 ,Revenue,OCR,101048
North East Lincolnshire Council,http://statistics.data.gov.uk/id/local-authority/00FC,Children & Family Services,Vulnerable Children,Child Care Resources,Grants And Subscriptions,Subscriptions,LJ101,16/05/2011,6601,"1,111.00 ",Revenue,OFSTED,101836
North East Lincolnshire Council,http://statistics.data.gov.uk/id/local-authority/00FC,Children & Family Services,Vulnerable Children,Child Care Resources,Rep Alterations Maint Building,Buildings - Regulations / Insp,GA103,31/05/2011,11036,"1,202.74 ",Revenue,OFSTED,101836
North East Lincolnshire Council,http://statistics.data.gov.uk/id/local-authority/00FC,Children & Family Services,Vulnerable Children,Child Care Resources,Rep Alterations Maint Building,Buildings - Regulations / Insp,GA103,16/05/2011,7010,"1,562.11 ",Revenue,OFSTED,101836
North East Lincolnshire Council,http://statistics.data.gov.uk/id/local-authority/00FC,Children & Family Services,Vulnerable Children,Child Care Resources,Grants And Subscriptions,Subscriptions,LJ101,16/05/2011,6603,"2,404.27 ",Revenue,OFSTED,101836
North East Lincolnshire Council,http://statistics.data.gov.uk/id/local-authority/00FC,Children & Family Services,Vulnerable Children,Child Care Resources,Rep Alterations Maint Building,Buildings - Repairs And Maint,GA102,16/05/2011,6795,"1,580.00 ",Revenue,ORCHARD FIRE & SECURITY LTD,100650
North East Lincolnshire Council,http://statistics.data.gov.uk/id/local-authority/00FC,Children & Family Services,Communities & Partnerships,Health Care Provision,Contributions To Provisions,Contributions - Other,LK103,12/05/2011,4473,"2,437.50 ",Revenue,OUTCOMES UK LTD,101486
North East Lincolnshire Council,http://statistics.data.gov.uk/id/local-authority/00FC,Children & Family Services,Communities & Partnerships,Health Care Provision,Contributions To Provisions,Contributions - Other,LK103,06/05/2011,4290,"3,900.45 ",Revenue,OUTCOMES UK LTD,101486
North East Lincolnshire Council,http://statistics.data.gov.uk/id/local-authority/00FC,School'S Kitchens,School'S Kitchens,School'S Kitchens,Cap Land/Build-Build Enh Wrk,Cap Land/Build-Build Enh Wrk,YA102,11/05/2011,5636,512.50 ,Capital,OXLEY SHUTTERS LIMITED,100931
North East Lincolnshire Council,http://statistics.data.gov.uk/id/local-authority/00FC,School'S Kitchens,School'S Kitchens,School'S Kitchens,Cap Land/Build-Build Enh Wrk,Cap Land/Build-Build Enh Wrk,YA102,11/05/2011,5636,512.50 ,Capital,OXLEY SHUTTERS LIMITED,100931
North East Lincolnshire Council,http://statistics.data.gov.uk/id/local-authority/00FC,School'S Kitchens,School'S Kitchens,School'S Kitchens,Cap Land/Build-Build Enh Wrk,Cap Land/Build-Build Enh Wrk,YA102,11/05/2011,5636,512.50 ,Capital,OXLEY SHUTTERS LIMITED,100931
North East Lincolnshire Council,http://statistics.data.gov.uk/id/local-authority/00FC,School'S Kitchens,School'S Kitchens,School'S Kitchens,Cap Land/Build-Build Enh Wrk,Cap Land/Build-Build Enh Wrk,YA102,11/05/2011,5636,512.50 ,Capital,OXLEY SHUTTERS LIMITED,100931
North East Lincolnshire Council,http://statistics.data.gov.uk/id/local-authority/00FC,School'S Kitchens,School'S Kitchens,School'S Kitchens,Cap Land/Build-Build Enh Wrk,Cap Land/Build-Build Enh Wrk,YA102,11/05/2011,5636,512.50 ,Capital,OXLEY SHUTTERS LIMITED,100931
North East Lincolnshire Council,http://statistics.data.gov.uk/id/local-authority/00FC,School'S Kitchens,School'S Kitchens,School'S Kitchens,Cap Land/Build-Build Enh Wrk,Cap Land/Build-Build Enh Wrk,YA102,11/05/2011,5636,512.50 ,Capital,OXLEY SHUTTERS LIMITED,100931
North East Lincolnshire Council,http://statistics.data.gov.uk/id/local-authority/00FC,School'S Kitchens,School'S Kitchens,School'S Kitchens,Cap Land/Build-Build Enh Wrk,Cap Land/Build-Build Enh Wrk,YA102,11/05/2011,5636,512.50 ,Capital,OXLEY SHUTTERS LIMITED,100931
North East Lincolnshire Council,http://statistics.data.gov.uk/id/local-authority/00FC,School'S Kitchens,School'S Kitchens,School'S Kitchens,Cap Land/Build-Build Enh Wrk,Cap Land/Build-Build Enh Wrk,YA102,11/05/2011,5636,512.50 ,Capital,OXLEY SHUTTERS LIMITED,100931
North East Lincolnshire Council,http://statistics.data.gov.uk/id/local-authority/00FC,School'S Kitchens,School'S Kitchens,School'S Kitchens,Cap Land/Build-Build Enh Wrk,Cap Land/Build-Build Enh Wrk,YA102,11/05/2011,5636,512.50 ,Capital,OXLEY SHUTTERS LIMITED,100931
North East Lincolnshire Council,http://statistics.data.gov.uk/id/local-authority/00FC,School'S Kitchens,School'S Kitchens,School'S Kitchens,Cap Land/Build-Build Enh Wrk,Cap Land/Build-Build Enh Wrk,YA102,11/05/2011,5636,512.50 ,Capital,OXLEY SHUTTERS LIMITED,100931
North East Lincolnshire Council,http://statistics.data.gov.uk/id/local-authority/00FC,School'S Kitchens,School'S Kitchens,School'S Kitchens,Cap Land/Build-Build Enh Wrk,Cap Land/Build-Build Enh Wrk,YA102,11/05/2011,5636,512.50 ,Capital,OXLEY SHUTTERS LIMITED,100931
North East Lincolnshire Council,http://statistics.data.gov.uk/id/local-authority/00FC,School'S Kitchens,School'S Kitchens,School'S Kitchens,Cap Land/Build-Build Enh Wrk,Cap Land/Build-Build Enh Wrk,YA102,11/05/2011,5636,512.50 ,Capital,OXLEY SHUTTERS LIMITED,100931
North East Lincolnshire Council,http://statistics.data.gov.uk/id/local-authority/00FC,School'S Kitchens,School'S Kitchens,School'S Kitchens,Cap Land/Build-Build Enh Wrk,Cap Land/Build-Build Enh Wrk,YA102,11/05/2011,5636,512.50 ,Capital,OXLEY SHUTTERS LIMITED,100931
North East Lincolnshire Council,http://statistics.data.gov.uk/id/local-authority/00FC,School'S Kitchens,School'S Kitchens,School'S Kitchens,Cap Land/Build-Build Enh Wrk,Cap Land/Build-Build Enh Wrk,YA102,11/05/2011,5636,512.50 ,Capital,OXLEY SHUTTERS LIMITED,100931
North East Lincolnshire Council,http://statistics.data.gov.uk/id/local-authority/00FC,School'S Kitchens,School'S Kitchens,School'S Kitchens,Cap Land/Build-Build Enh Wrk,Cap Land/Build-Build Enh Wrk,YA102,11/05/2011,5636,512.50 ,Capital,OXLEY SHUTTERS LIMITED,100931
North East Lincolnshire Council,http://statistics.data.gov.uk/id/local-authority/00FC,School'S Kitchens,School'S Kitchens,School'S Kitchens,Cap Land/Build-Build Enh Wrk,Cap Land/Build-Build Enh Wrk,YA102,11/05/2011,5636,512.50 ,Capital,OXLEY SHUTTERS LIMITED,100931
North East Lincolnshire Council,http://statistics.data.gov.uk/id/local-authority/00FC,School'S Kitchens,School'S Kitchens,School'S Kitchens,Cap Land/Build-Build Enh Wrk,Cap Land/Build-Build Enh Wrk,YA102,11/05/2011,5636,"1,025.00 ",Capital,OXLEY SHUTTERS LIMITED,100931
North East Lincolnshire Council,http://statistics.data.gov.uk/id/local-authority/00FC,School'S Kitchens,School'S Kitchens,School'S Kitchens,Cap Land/Build-Build Enh Wrk,Cap Land/Build-Build Enh Wrk,YA102,11/05/2011,5636,"1,025.00 ",Capital,OXLEY SHUTTERS LIMITED,100931
North East Lincolnshire Council,http://statistics.data.gov.uk/id/local-authority/00FC,School'S Kitchens,School'S Kitchens,School'S Kitchens,Cap Land/Build-Build Enh Wrk,Cap Land/Build-Build Enh Wrk,YA102,11/05/2011,5636,"1,025.00 ",Capital,OXLEY SHUTTERS LIMITED,100931
North East Lincolnshire Council,http://statistics.data.gov.uk/id/local-authority/00FC,Nds Cond + Modern All Schools,Nds Cond + Modern All Schools,Nds Cond + Modern All Schools,Cap Auc-Build Enh Wrk,Cap Auc-Build Enh Wrk,YF102,19/05/2011,8585,"154,085.37 ",Capital,P G INGOLDBY & SONS LTD,100591
North East Lincolnshire Council,http://statistics.data.gov.uk/id/local-authority/00FC,Children & Family Services,Vulnerable Children,Childcare Fieldwork,Miscellaneous Expenses,Legal Fees - General,LL103,09/05/2011,4784,Redacted Commercially Sensitive,Revenue,PARSONS DOWD PSYCHOLOGICAL LTD,101793
North East Lincolnshire Council,http://statistics.data.gov.uk/id/local-authority/00FC,Children & Family Services,Learning,Standards & Effectiveness,Consultancy,Consultancy,PL101,05/05/2011,3346,790.00 ,Revenue,PEAK EDUCATION CONSULTANCY LTD,102073
North East Lincolnshire Council,http://statistics.data.gov.uk/id/local-authority/00FC,Children & Family Services,Learning,Capital & Assets,Miscellaneous Expenses,Other Supplies & Services,LL110,17/05/2011,7016,935.00 ,Revenue,PERSONAL TOUCH SURVEYING LTD,102106
North East Lincolnshire Council,http://statistics.data.gov.uk/id/local-authority/00FC,Children & Family Services,Vulnerable Children,Child Care Resources,Indirect Employee Expenses,Staff Training,EB122,05/05/2011,3499,690.00 ,Revenue,PETER DAVENPORT,103358
North East Lincolnshire Council,http://statistics.data.gov.uk/id/local-authority/00FC,Schools Access Initiative,Schools Access Initiative,Schools Access Initiative,Cap Veh Plt Eqp-Purchase,Cap Veh Plt Eqp-Purchase,YB101,11/05/2011,5602,"1,309.70 ",Capital,PHONAK UK,103581
North East Lincolnshire Council,http://statistics.data.gov.uk/id/local-authority/00FC,Schools Access Initiative,Schools Access Initiative,Schools Access Initiative,Cap Veh Plt Eqp-Purchase,Cap Veh Plt Eqp-Purchase,YB101,11/05/2011,5600,"1,309.70 ",Capital,PHONAK UK,103581
North East Lincolnshire Council,http://statistics.data.gov.uk/id/local-authority/00FC,School'S Kitchens,School'S Kitchens,School'S Kitchens,Cap Land/Build-Build Enh Wrk,Cap Land/Build-Build Enh Wrk,YA102,31/05/2011,11347,-98.00 ,Capital,PLUMB-FIT,103564
North East Lincolnshire Council,http://statistics.data.gov.uk/id/local-authority/00FC,Children & Family Services,Learning,Bsf/Academies,Rents,Rent,GC101,16/05/2011,6580,"22,354.53 ",Revenue,PORTAKABIN LTD,101252
North East Lincolnshire Council,http://statistics.data.gov.uk/id/local-authority/00FC,Children & Family Services,Learning,Bsf/Academies,Rents,Rent,GC101,31/05/2011,11221,"22,354.53 ",Revenue,PORTAKABIN LTD,101252
North East Lincolnshire Council,http://statistics.data.gov.uk/id/local-authority/00FC,Children & Family Services,Communities & Partnerships,Young Childrens Services,Miscellaneous Expenses,Activities - Service Users,LL114,20/05/2011,8660,"1,157.76 ",Revenue,PRE SCHOOL LEARNING ALLIANCE,101437
North East Lincolnshire Council,http://statistics.data.gov.uk/id/local-authority/00FC,Children & Family Services,Communities & Partnerships,Young Childrens Services,Direct Employee Expenses,Pay,EA101,19/05/2011,8526,"1,415.04 ",Revenue,PRE SCHOOL LEARNING ALLIANCE,101437
North East Lincolnshire Council,http://statistics.data.gov.uk/id/local-authority/00FC,Children & Family Services,Vulnerable Children,Child Care Resources,Other Agencies,Setting Up,PJ111,19/05/2011,8515,935.00 ,Revenue,PROSPECT FARM COUNTRY COTTAGES,101297
North East Lincolnshire Council,http://statistics.data.gov.uk/id/local-authority/00FC,Children & Family Services,Communities & Partnerships,Extended Services,Miscellaneous Expenses,Activities - Service Users,LL114,23/05/2011,9822,595.00 ,Revenue,PULSE EDUCATION & BUSINESS SERVICES,104095
North East Lincolnshire Council,http://statistics.data.gov.uk/id/local-authority/00FC,Children & Family Services,Commiss & Integrated Serv,Additional & Enhanced Needs,Private Contractors,Third Party Prov - Private,PH101,19/05/2011,7954,"11,571.30 ",Revenue,QUALITY TIME CARE LTD,102519
North East Lincolnshire Council,http://statistics.data.gov.uk/id/local-authority/00FC,Children & Family Services,Commiss & Integrated Serv,Additional & Enhanced Needs,Private Contractors,Third Party Prov - Private,PH101,19/05/2011,7952,"11,957.01 ",Revenue,QUALITY TIME CARE LTD,102519
North East Lincolnshire Council,http://statistics.data.gov.uk/id/local-authority/00FC,Children & Family Services,Vulnerable Children,Youth Offending Team,Public Transport,Public Transport - Employees,JD101,18/05/2011,6980,-28.80 ,Revenue,R S P LIMITED,101074
North East Lincolnshire Council,http://statistics.data.gov.uk/id/local-authority/00FC,Children & Family Services,Vulnerable Children,Childcare Fieldwork,Indirect Employee Expenses,Staff Training,EB122,18/05/2011,6980,686.85 ,Revenue,R S P LIMITED,101074
North East Lincolnshire Council,http://statistics.data.gov.uk/id/local-authority/00FC,Children & Family Services,Commiss & Integrated Serv,Additional & Enhanced Needs,Private Contractors,Third Party Prov - Private,PH101,19/05/2011,7953,"1,800.00 ",Revenue,RAINBOW,102123
North East Lincolnshire Council,http://statistics.data.gov.uk/id/local-authority/00FC,Children & Family Services,Commiss & Integrated Serv,Additional & Enhanced Needs,Consultancy,Consultancy,PL101,05/05/2011,3515,"5,040.00 ",Revenue,RAINBOW,102123
North East Lincolnshire Council,http://statistics.data.gov.uk/id/local-authority/00FC,Children & Family Services,Commiss & Integrated Serv,Additional & Enhanced Needs,Direct Employee Expenses,Agency Staff,EA105,05/05/2011,3510,550.00 ,Revenue,RANDSTAD EDUCATION LTD,102465
North East Lincolnshire Council,http://statistics.data.gov.uk/id/local-authority/00FC,Children & Family Services,Commiss & Integrated Serv,Additional & Enhanced Needs,Direct Employee Expenses,Agency Staff,EA105,05/05/2011,3511,550.00 ,Revenue,RANDSTAD EDUCATION LTD,102465
North East Lincolnshire Council,http://statistics.data.gov.uk/id/local-authority/00FC,Children & Family Services,Commiss & Integrated Serv,Additional & Enhanced Needs,Direct Employee Expenses,Agency Staff,EA105,05/05/2011,3506,550.00 ,Revenue,RANDSTAD EDUCATION LTD,102465
North East Lincolnshire Council,http://statistics.data.gov.uk/id/local-authority/00FC,Children & Family Services,Commiss & Integrated Serv,Additional & Enhanced Needs,Direct Employee Expenses,Agency Staff,EA105,05/05/2011,3513,550.00 ,Revenue,RANDSTAD EDUCATION LTD,102465
North East Lincolnshire Council,http://statistics.data.gov.uk/id/local-authority/00FC,Children & Family Services,Commiss & Integrated Serv,Additional & Enhanced Needs,Direct Employee Expenses,Agency Staff,EA105,16/05/2011,7019,550.00 ,Revenue,RANDSTAD EDUCATION LTD,102465
North East Lincolnshire Council,http://statistics.data.gov.uk/id/local-authority/00FC,Children & Family Services,Commiss & Integrated Serv,Additional & Enhanced Needs,Direct Employee Expenses,Agency Staff,EA105,16/05/2011,7013,550.00 ,Revenue,RANDSTAD EDUCATION LTD,102465
North East Lincolnshire Council,http://statistics.data.gov.uk/id/local-authority/00FC,Children & Family Services,Commiss & Integrated Serv,Additional & Enhanced Needs,Direct Employee Expenses,Pay,EA101,12/05/2011,6010,555.50 ,Revenue,RANDSTAD EDUCATION LTD,102465
North East Lincolnshire Council,http://statistics.data.gov.uk/id/local-authority/00FC,Children & Family Services,Learning,Sen/Inclusion,Direct Employee Expenses,Pay Casual/Supply Staff,EA102,11/05/2011,5227,975.00 ,Revenue,RANDSTAD EDUCATION LTD,102465
North East Lincolnshire Council,http://statistics.data.gov.uk/id/local-authority/00FC,Children & Family Services,Commiss & Integrated Serv,Childrens Trust,Miscellaneous Expenses,Other Expenses General,LL119,05/05/2011,3451,900.00 ,Revenue,RED THEATRE COMPANY LTD,103321
North East Lincolnshire Council,http://statistics.data.gov.uk/id/local-authority/00FC,Children & Family Services,Vulnerable Children,Through Care And Lace,Indirect Employee Expenses,Staff Training,EB122,05/05/2011,3202,"1,625.00 ",Revenue,RED THEATRE COMPANY LTD,103321
North East Lincolnshire Council,http://statistics.data.gov.uk/id/local-authority/00FC,Children & Family Services,Vulnerable Children,Child Care Resources,Other Agencies,Child Care Payments,PJ104,03/05/2011,4666,-25.00 ,Revenue,Redacted Personal Information,Redacted Personal Information
North East Lincolnshire Council,http://statistics.data.gov.uk/id/local-authority/00FC,Children & Family Services,Vulnerable Children,Child Care Resources,Other Agencies,Child Care Payments,PJ104,10/05/2011,6029,-25.00 ,Revenue,Redacted Personal Information,Redacted Personal Information
North East Lincolnshire Council,http://statistics.data.gov.uk/id/local-authority/00FC,Children & Family Services,Vulnerable Children,Child Care Resources,Other Agencies,Child Care Payments,PJ104,17/05/2011,7708,-25.00 ,Revenue,Redacted Personal Information,Redacted Personal Information
North East Lincolnshire Council,http://statistics.data.gov.uk/id/local-authority/00FC,Children & Family Services,Vulnerable Children,Child Care Resources,Other Agencies,Child Care Payments,PJ104,24/05/2011,9097,-25.00 ,Revenue,Redacted Personal Information,Redacted Personal Information
North East Lincolnshire Council,http://statistics.data.gov.uk/id/local-authority/00FC,Children & Family Services,Vulnerable Children,Child Care Resources,Other Agencies,Child Care Payments,PJ104,31/05/2011,10472,-25.00 ,Revenue,Redacted Personal Information,Redacted Personal Information
North East Lincolnshire Council,http://statistics.data.gov.uk/id/local-authority/00FC,Children & Family Services,Learning,Standards & Effectiveness,Consultancy,Consultancy,PL101,05/05/2011,3323,841.39 ,Revenue,Redacted Personal Information,Redacted Personal Information
North East Lincolnshire Council,http://statistics.data.gov.uk/id/local-authority/00FC,Children & Family Services,Learning,Standards & Effectiveness,Consultancy,Consultancy,PL101,05/05/2011,3481,"1,600.00 ",Revenue,Redacted Personal Information,Redacted Personal Information
North East Lincolnshire Council,http://statistics.data.gov.uk/id/local-authority/00FC,Children & Family Services,Learning,Standards & Effectiveness,Consultancy,Consultancy,PL101,31/05/2011,11025,"1,000.00 ",Revenue,Redacted Personal Information,Redacted Personal Information
North East Lincolnshire Council,http://statistics.data.gov.uk/id/local-authority/00FC,Children & Family Services,Learning,Standards & Effectiveness,Consultancy,Consultancy,PL101,18/05/2011,7805,"1,500.00 ",Revenue,Redacted Personal Information,Redacted Personal Information
North East Lincolnshire Council,http://statistics.data.gov.uk/id/local-authority/00FC,Children & Family Services,Vulnerable Children,Child Care Resources,Other Agencies,Child Care Payments,PJ104,10/05/2011,6012,-36.00 ,Revenue,Redacted Personal Information,Redacted Personal Information
North East Lincolnshire Council,http://statistics.data.gov.uk/id/local-authority/00FC,Children & Family Services,Vulnerable Children,Child Care Resources,Other Agencies,Child Care Payments,PJ104,31/05/2011,10456,-32.57 ,Revenue,Redacted Personal Information,Redacted Personal Information
North East Lincolnshire Council,http://statistics.data.gov.uk/id/local-authority/00FC,Children & Family Services,Vulnerable Children,Child Care Resources,Other Agencies,Child Care Payments,PJ104,03/05/2011,4551,-50.00 ,Revenue,Redacted Personal Information,Redacted Personal Information
North East Lincolnshire Council,http://statistics.data.gov.uk/id/local-authority/00FC,Children & Family Services,Vulnerable Children,Child Care Resources,Other Agencies,Child Care Payments,PJ104,10/05/2011,5915,-50.00 ,Revenue,Redacted Personal Information,Redacted Personal Information
North East Lincolnshire Council,http://statistics.data.gov.uk/id/local-authority/00FC,Children & Family Services,Vulnerable Children,Child Care Resources,Other Agencies,Child Care Payments,PJ104,17/05/2011,7590,-50.00 ,Revenue,Redacted Personal Information,Redacted Personal Information
North East Lincolnshire Council,http://statistics.data.gov.uk/id/local-authority/00FC,Children & Family Services,Vulnerable Children,Child Care Resources,Other Agencies,Child Care Payments,PJ104,24/05/2011,8980,-50.00 ,Revenue,Redacted Personal Information,Redacted Personal Information
North East Lincolnshire Council,http://statistics.data.gov.uk/id/local-authority/00FC,Children & Family Services,Vulnerable Children,Child Care Resources,Other Agencies,Child Care Payments,PJ104,31/05/2011,10355,-50.00 ,Revenue,Redacted Personal Information,Redacted Personal Information
North East Lincolnshire Council,http://statistics.data.gov.uk/id/local-authority/00FC,Children & Family Services,Vulnerable Children,Child Care Resources,Other Agencies,Child Care Payments,PJ104,10/05/2011,5915,-10.36 ,Revenue,Redacted Personal Information,Redacted Personal Information
North East Lincolnshire Council,http://statistics.data.gov.uk/id/local-authority/00FC,Children & Family Services,Learning,Sen/Inclusion,Consultancy,Consultancy - Curriculum,PL102,05/05/2011,3078,"8,750.00 ",Revenue,Redacted Personal Information,Redacted Personal Information
North East Lincolnshire Council,http://statistics.data.gov.uk/id/local-authority/00FC,Children & Family Services,Learning,Music Services,Consultancy,Consultancy,PL101,12/05/2011,5989,"2,100.00 ",Revenue,Redacted Personal Information,Redacted Personal Information
North East Lincolnshire Council,http://statistics.data.gov.uk/id/local-authority/00FC,Children & Family Services,Learning,Music Services,Consultancy,Consultancy,PL101,06/05/2011,4313,"5,100.00 ",Revenue,Redacted Personal Information,Redacted Personal Information
North East Lincolnshire Council,http://statistics.data.gov.uk/id/local-authority/00FC,Children & Family Services,Vulnerable Children,Child Care Resources,Other Agencies,Special Carer Payments,PJ128,03/05/2011,4617,704.54 ,Revenue,Redacted Personal Information,Redacted Personal Information
North East Lincolnshire Council,http://statistics.data.gov.uk/id/local-authority/00FC,Children & Family Services,Vulnerable Children,Child Care Resources,Other Agencies,Special Carer Payments,PJ128,10/05/2011,5979,704.54 ,Revenue,Redacted Personal Information,Redacted Personal Information
North East Lincolnshire Council,http://statistics.data.gov.uk/id/local-authority/00FC,Children & Family Services,Vulnerable Children,Child Care Resources,Other Agencies,Special Carer Payments,PJ128,17/05/2011,7658,704.54 ,Revenue,Redacted Personal Information,Redacted Personal Information
North East Lincolnshire Council,http://statistics.data.gov.uk/id/local-authority/00FC,Children & Family Services,Vulnerable Children,Child Care Resources,Other Agencies,Special Carer Payments,PJ128,24/05/2011,9046,704.54 ,Revenue,Redacted Personal Information,Redacted Personal Information
North East Lincolnshire Council,http://statistics.data.gov.uk/id/local-authority/00FC,Children & Family Services,Vulnerable Children,Child Care Resources,Other Agencies,Special Carer Payments,PJ128,31/05/2011,10424,704.54 ,Revenue,Redacted Personal Information,Redacted Personal Information
North East Lincolnshire Council,http://statistics.data.gov.uk/id/local-authority/00FC,Children & Family Services,Vulnerable Children,Childcare Fieldwork,Miscellaneous Expenses,Legal Fees - General,LL103,17/05/2011,6818,655.00 ,Revenue,Redacted Personal Information,Redacted Personal Information
North East Lincolnshire Council,http://statistics.data.gov.uk/id/local-authority/00FC,Children & Family Services,Vulnerable Children,Childcare Fieldwork,Miscellaneous Expenses,Legal Fees - General,LL103,09/05/2011,4786,"1,949.00 ",Revenue,Redacted Personal Information,Redacted Personal Information
North East Lincolnshire Council,http://statistics.data.gov.uk/id/local-authority/00FC,Children & Family Services,Vulnerable Children,Childcare Fieldwork,Miscellaneous Expenses,Legal Fees - General,LL103,16/05/2011,7020,"1,351.00 ",Revenue,Redacted Personal Information,Redacted Personal Information
North East Lincolnshire Council,http://statistics.data.gov.uk/id/local-authority/00FC,Children & Family Services,Vulnerable Children,Childcare Fieldwork,Miscellaneous Expenses,Legal Fees - General,LL103,26/05/2011,10707,"-2,040.00 ",Revenue,Redacted Personal Information,Redacted Personal Information
North East Lincolnshire Council,http://statistics.data.gov.uk/id/local-authority/00FC,Children & Family Services,Vulnerable Children,Childcare Fieldwork,Miscellaneous Expenses,Legal Fees - General,LL103,05/05/2011,3498,"2,040.00 ",Revenue,Redacted Personal Information,Redacted Personal Information
North East Lincolnshire Council,http://statistics.data.gov.uk/id/local-authority/00FC,Children & Family Services,Vulnerable Children,Child Care Resources,Other Agencies,Special Carer Payments,PJ128,03/05/2011,4620,704.54 ,Revenue,Redacted Personal Information,Redacted Personal Information
North East Lincolnshire Council,http://statistics.data.gov.uk/id/local-authority/00FC,Children & Family Services,Vulnerable Children,Child Care Resources,Other Agencies,Special Carer Payments,PJ128,10/05/2011,5983,704.54 ,Revenue,Redacted Personal Information,Redacted Personal Information
North East Lincolnshire Council,http://statistics.data.gov.uk/id/local-authority/00FC,Children & Family Services,Vulnerable Children,Child Care Resources,Other Agencies,Special Carer Payments,PJ128,17/05/2011,7661,704.54 ,Revenue,Redacted Personal Information,Redacted Personal Information
North East Lincolnshire Council,http://statistics.data.gov.uk/id/local-authority/00FC,Children & Family Services,Vulnerable Children,Child Care Resources,Other Agencies,Special Carer Payments,PJ128,24/05/2011,9051,704.54 ,Revenue,Redacted Personal Information,Redacted Personal Information
North East Lincolnshire Council,http://statistics.data.gov.uk/id/local-authority/00FC,Children & Family Services,Vulnerable Children,Child Care Resources,Other Agencies,Special Carer Payments,PJ128,31/05/2011,10427,704.54 ,Revenue,Redacted Personal Information,Redacted Personal Information
North East Lincolnshire Council,http://statistics.data.gov.uk/id/local-authority/00FC,Children & Family Services,Vulnerable Children,Child Care Resources,Rep Alterations Maint Building,Buildings - Regulations / Insp,GA103,24/05/2011,10261,900.00 ,Revenue,Redacted Personal Information,Redacted Personal Information
North East Lincolnshire Council,http://statistics.data.gov.uk/id/local-authority/00FC,Children & Family Services,Commiss & Integrated Serv,Services To Youth,Miscellaneous Expenses,Other Supplies & Services,LL110,05/05/2011,3990,756.00 ,Revenue,Redacted Personal Information,Redacted Personal Information
North East Lincolnshire Council,http://statistics.data.gov.uk/id/local-authority/00FC,Children & Family Services,Vulnerable Children,Childcare Fieldwork,Direct Transport Costs,Voluntary Drivers Expenses,JA107,05/05/2011,3192,661.37 ,Revenue,Redacted Personal Information,Redacted Personal Information
North East Lincolnshire Council,http://statistics.data.gov.uk/id/local-authority/00FC,Children & Family Services,Communities & Partnerships,Health Care Provision,Indirect Employee Expenses,Staff Training,EB122,05/05/2011,3442,"1,200.00 ",Revenue,Redacted Personal Information,Redacted Personal Information
North East Lincolnshire Council,http://statistics.data.gov.uk/id/local-authority/00FC,Children & Family Services,Learning,Standards & Effectiveness,Consultancy,Consultancy,PL101,12/05/2011,6023,"3,150.00 ",Revenue,Redacted Personal Information,Redacted Personal Information
North East Lincolnshire Council,http://statistics.data.gov.uk/id/local-authority/00FC,Children & Family Services,Commiss & Integrated Serv,Additional & Enhanced Needs,Contributions To Provisions,Contributions - Other,LK103,19/05/2011,7951,558.08 ,Revenue,Redacted Personal Information,Redacted Personal Information
North East Lincolnshire Council,http://statistics.data.gov.uk/id/local-authority/00FC,Children & Family Services,Commiss & Integrated Serv,Additional & Enhanced Needs,Contributions To Provisions,Contributions - Other,LK103,05/05/2011,3503,584.24 ,Revenue,Redacted Personal Information,Redacted Personal Information
North East Lincolnshire Council,http://statistics.data.gov.uk/id/local-authority/00FC,Children & Family Services,Learning,Standards & Effectiveness,Consultancy,Consultancy,PL101,18/05/2011,7809,"2,400.00 ",Revenue,Redacted Personal Information,Redacted Personal Information
North East Lincolnshire Council,http://statistics.data.gov.uk/id/local-authority/00FC,Children & Family Services,Learning,Standards & Effectiveness,Consultancy,Consultancy,PL101,05/05/2011,3253,"4,339.30 ",Revenue,Redacted Personal Information,Redacted Personal Information
North East Lincolnshire Council,http://statistics.data.gov.uk/id/local-authority/00FC,Children & Family Services,Vulnerable Children,Child Care Resources,Other Agencies,Setting Up,PJ111,17/05/2011,7768,500.00 ,Revenue,Redacted Personal Information,Redacted Personal Information
North East Lincolnshire Council,http://statistics.data.gov.uk/id/local-authority/00FC,Children & Family Services,Learning,Standards & Effectiveness,Consultancy,Consultancy,PL101,05/05/2011,3020,700.00 ,Revenue,Redacted Personal Information,Redacted Personal Information
North East Lincolnshire Council,http://statistics.data.gov.uk/id/local-authority/00FC,Children & Family Services,Learning,Standards & Effectiveness,Consultancy,Consultancy,PL101,05/05/2011,3019,700.00 ,Revenue,Redacted Personal Information,Redacted Personal Information
North East Lincolnshire Council,http://statistics.data.gov.uk/id/local-authority/00FC,Children & Family Services,Learning,Standards & Effectiveness,Consultancy,Consultancy,PL101,05/05/2011,3018,"1,096.00 ",Revenue,Redacted Personal Information,Redacted Personal Information
North East Lincolnshire Council,http://statistics.data.gov.uk/id/local-authority/00FC,Children & Family Services,Vulnerable Children,Child Care Resources,Other Agencies,Child Care Payments,PJ104,31/05/2011,10423,-10.36 ,Revenue,Redacted Personal Information,Redacted Personal Information
North East Lincolnshire Council,http://statistics.data.gov.uk/id/local-authority/00FC,Children & Family Services,Vulnerable Children,Child Care Resources,Other Agencies,Child Care Payments,PJ104,10/05/2011,5978,-10.36 ,Revenue,Redacted Personal Information,Redacted Personal Information
North East Lincolnshire Council,http://statistics.data.gov.uk/id/local-authority/00FC,Children & Family Services,Vulnerable Children,Child Care Resources,Other Agencies,Child Care Payments,PJ104,17/05/2011,7657,-10.36 ,Revenue,Redacted Personal Information,Redacted Personal Information
North East Lincolnshire Council,http://statistics.data.gov.uk/id/local-authority/00FC,Children & Family Services,Vulnerable Children,Child Care Resources,Other Agencies,Special Carer Payments,PJ128,03/05/2011,4616,704.54 ,Revenue,Redacted Personal Information,Redacted Personal Information
North East Lincolnshire Council,http://statistics.data.gov.uk/id/local-authority/00FC,Children & Family Services,Vulnerable Children,Child Care Resources,Other Agencies,Special Carer Payments,PJ128,10/05/2011,5978,704.54 ,Revenue,Redacted Personal Information,Redacted Personal Information
North East Lincolnshire Council,http://statistics.data.gov.uk/id/local-authority/00FC,Children & Family Services,Vulnerable Children,Child Care Resources,Other Agencies,Special Carer Payments,PJ128,17/05/2011,7657,704.54 ,Revenue,Redacted Personal Information,Redacted Personal Information
North East Lincolnshire Council,http://statistics.data.gov.uk/id/local-authority/00FC,Children & Family Services,Vulnerable Children,Child Care Resources,Other Agencies,Special Carer Payments,PJ128,24/05/2011,9045,704.54 ,Revenue,Redacted Personal Information,Redacted Personal Information
North East Lincolnshire Council,http://statistics.data.gov.uk/id/local-authority/00FC,Children & Family Services,Vulnerable Children,Child Care Resources,Other Agencies,Special Carer Payments,PJ128,31/05/2011,10423,704.54 ,Revenue,Redacted Personal Information,Redacted Personal Information
North East Lincolnshire Council,http://statistics.data.gov.uk/id/local-authority/00FC,Children & Family Services,Learning,Community Learning Services,Public Transport,Public Transport - Serv User,JD102,31/05/2011,10610,-245.00 ,Revenue,Redacted Personal Information,Redacted Personal Information
North East Lincolnshire Council,http://statistics.data.gov.uk/id/local-authority/00FC,Children & Family Services,Learning,Community Learning Services,Equip / Furniture / Materials,Equipment - Purchase,LA101,31/05/2011,10610,-7.15 ,Revenue,Redacted Personal Information,Redacted Personal Information
North East Lincolnshire Council,http://statistics.data.gov.uk/id/local-authority/00FC,Children & Family Services,Learning,Community Learning Services,Public Transport,Public Transport - Serv User,JD102,31/05/2011,10610,900.60 ,Revenue,Redacted Personal Information,Redacted Personal Information
North East Lincolnshire Council,http://statistics.data.gov.uk/id/local-authority/00FC,Children & Family Services,Learning,Music Services,Private Contractors,Third Party Prov - Private,PH101,05/05/2011,2640,"2,371.88 ",Revenue,Redacted Personal Information,Redacted Personal Information
North East Lincolnshire Council,http://statistics.data.gov.uk/id/local-authority/00FC,Children & Family Services,Vulnerable Children,Other,Consultancy,Consultancy,PL101,23/05/2011,9821,"1,460.00 ",Revenue,Redacted Personal Information,Redacted Personal Information
North East Lincolnshire Council,http://statistics.data.gov.uk/id/local-authority/00FC,Children & Family Services,Learning,Music Services,Other Agencies,Tuition,PJ112,18/05/2011,7494,687.50 ,Revenue,Redacted Personal Information,Redacted Personal Information
North East Lincolnshire Council,http://statistics.data.gov.uk/id/local-authority/00FC,Children & Family Services,Learning,Standards & Effectiveness,Consultancy,Consultancy,PL101,12/05/2011,7148,"2,400.00 ",Revenue,Redacted Personal Information,Redacted Personal Information
North East Lincolnshire Council,http://statistics.data.gov.uk/id/local-authority/00FC,Children & Family Services,Learning,Standards & Effectiveness,Consultancy,Consultancy,PL101,05/05/2011,3255,"6,000.00 ",Revenue,Redacted Personal Information,Redacted Personal Information
North East Lincolnshire Council,http://statistics.data.gov.uk/id/local-authority/00FC,Children & Family Services,Vulnerable Children,Child Care Resources,Other Agencies,Health Charges,PJ131,31/05/2011,10966,"2,200.00 ",Revenue,Redacted Personal Information,Redacted Personal Information
North East Lincolnshire Council,http://statistics.data.gov.uk/id/local-authority/00FC,Children & Family Services,Vulnerable Children,Childcare Fieldwork,Miscellaneous Expenses,Legal Fees - General,LL103,05/05/2011,3497,542.50 ,Revenue,Redacted Personal Information,Redacted Personal Information
North East Lincolnshire Council,http://statistics.data.gov.uk/id/local-authority/00FC,Children & Family Services,Vulnerable Children,Childcare Fieldwork,Miscellaneous Expenses,Legal Fees - General,LL103,05/05/2011,3243,"4,025.00 ",Revenue,Redacted Personal Information,Redacted Personal Information
North East Lincolnshire Council,http://statistics.data.gov.uk/id/local-authority/00FC,Children & Family Services,Vulnerable Children,Childcare Fieldwork,Miscellaneous Expenses,Legal Fees - General,LL103,23/05/2011,9201,"21,710.00 ",Revenue,Redacted Personal Information,Redacted Personal Information
North East Lincolnshire Council,http://statistics.data.gov.uk/id/local-authority/00FC,Children & Family Services,Vulnerable Children,Childcare Fieldwork,Miscellaneous Expenses,Legal Fees - General,LL103,17/05/2011,6819,680.00 ,Revenue,Redacted Personal Information,Redacted Personal Information
North East Lincolnshire Council,http://statistics.data.gov.uk/id/local-authority/00FC,Children & Family Services,Vulnerable Children,Childcare Fieldwork,Miscellaneous Expenses,Legal Fees - General,LL103,19/05/2011,7945,522.00 ,Revenue,Redacted Personal Information,Redacted Personal Information
North East Lincolnshire Council,http://statistics.data.gov.uk/id/local-authority/00FC,Children & Family Services,Vulnerable Children,Through Care And Lace,Other Agencies,Housing Benefit,PJ134,03/05/2011,4623,500.00 ,Revenue,Redacted Personal Information,Redacted Personal Information
North East Lincolnshire Council,http://statistics.data.gov.uk/id/local-authority/00FC,Children & Family Services,Vulnerable Children,Through Care And Lace,Other Agencies,Housing Benefit,PJ134,10/05/2011,5986,500.00 ,Revenue,Redacted Personal Information,Redacted Personal Information
North East Lincolnshire Council,http://statistics.data.gov.uk/id/local-authority/00FC,Children & Family Services,Vulnerable Children,Through Care And Lace,Other Agencies,Housing Benefit,PJ134,17/05/2011,7663,500.00 ,Revenue,Redacted Personal Information,Redacted Personal Information
North East Lincolnshire Council,http://statistics.data.gov.uk/id/local-authority/00FC,Children & Family Services,Vulnerable Children,Through Care And Lace,Other Agencies,Housing Benefit,PJ134,24/05/2011,9053,500.00 ,Revenue,Redacted Personal Information,Redacted Personal Information
North East Lincolnshire Council,http://statistics.data.gov.uk/id/local-authority/00FC,Children & Family Services,Vulnerable Children,Through Care And Lace,Other Agencies,Housing Benefit,PJ134,31/05/2011,10429,500.00 ,Revenue,Redacted Personal Information,Redacted Personal Information
North East Lincolnshire Council,http://statistics.data.gov.uk/id/local-authority/00FC,Children & Family Services,Vulnerable Children,Childcare Fieldwork,Miscellaneous Expenses,Legal Fees - General,LL103,09/05/2011,4687,522.50 ,Revenue,Redacted Personal Information,Redacted Personal Information
North East Lincolnshire Council,http://statistics.data.gov.uk/id/local-authority/00FC,Children & Family Services,Commiss & Integrated Serv,School Access Govrn Stdnt Serv,Contract Hire-Operating Leases,Vehicles - Contract Hire,JC101,11/05/2011,5673,Redacted Commercially Sensitive,Revenue,Redacted Personal Information,Redacted Personal Information
North East Lincolnshire Council,http://statistics.data.gov.uk/id/local-authority/00FC,Children & Family Services,Vulnerable Children,Child Care Resources,Other Agencies,Child Care Payments,PJ104,03/05/2011,4692,-36.00 ,Revenue,Redacted Personal Information,Redacted Personal Information
North East Lincolnshire Council,http://statistics.data.gov.uk/id/local-authority/00FC,Children & Family Services,Vulnerable Children,Child Care Resources,Other Agencies,Child Care Payments,PJ104,03/05/2011,4692,-36.00 ,Revenue,Redacted Personal Information,Redacted Personal Information
North East Lincolnshire Council,http://statistics.data.gov.uk/id/local-authority/00FC,Children & Family Services,Vulnerable Children,Child Care Resources,Other Agencies,Special Carer Payments,PJ128,03/05/2011,4721,704.54 ,Revenue,Redacted Personal Information,Redacted Personal Information
North East Lincolnshire Council,http://statistics.data.gov.uk/id/local-authority/00FC,Children & Family Services,Vulnerable Children,Child Care Resources,Other Agencies,Special Carer Payments,PJ128,10/05/2011,6083,704.54 ,Revenue,Redacted Personal Information,Redacted Personal Information
North East Lincolnshire Council,http://statistics.data.gov.uk/id/local-authority/00FC,Children & Family Services,Vulnerable Children,Child Care Resources,Other Agencies,Special Carer Payments,PJ128,17/05/2011,7762,704.54 ,Revenue,Redacted Personal Information,Redacted Personal Information
North East Lincolnshire Council,http://statistics.data.gov.uk/id/local-authority/00FC,Children & Family Services,Vulnerable Children,Child Care Resources,Other Agencies,Special Carer Payments,PJ128,24/05/2011,9153,704.54 ,Revenue,Redacted Personal Information,Redacted Personal Information
North East Lincolnshire Council,http://statistics.data.gov.uk/id/local-authority/00FC,Children & Family Services,Vulnerable Children,Child Care Resources,Other Agencies,Special Carer Payments,PJ128,31/05/2011,10526,704.54 ,Revenue,Redacted Personal Information,Redacted Personal Information
North East Lincolnshire Council,http://statistics.data.gov.uk/id/local-authority/00FC,Children & Family Services,Vulnerable Children,Childcare Fieldwork,Miscellaneous Expenses,Legal Fees - General,LL103,16/05/2011,6839,500.00 ,Revenue,Redacted Personal Information,Redacted Personal Information
North East Lincolnshire Council,http://statistics.data.gov.uk/id/local-authority/00FC,Children & Family Services,Vulnerable Children,Childcare Fieldwork,Miscellaneous Expenses,Legal Fees - General,LL103,31/05/2011,11031,500.00 ,Revenue,Redacted Personal Information,Redacted Personal Information
North East Lincolnshire Council,http://statistics.data.gov.uk/id/local-authority/00FC,Children & Family Services,Vulnerable Children,Childcare Fieldwork,Miscellaneous Expenses,Legal Fees - General,LL103,31/05/2011,11032,"1,500.00 ",Revenue,Redacted Personal Information,Redacted Personal Information
North East Lincolnshire Council,http://statistics.data.gov.uk/id/local-authority/00FC,Children & Family Services,Vulnerable Children,Child Care Resources,Other Agencies,Custodianship/Residency,PJ117,03/05/2011,4633,992.43 ,Revenue,Redacted Personal Information,Redacted Personal Information
North East Lincolnshire Council,http://statistics.data.gov.uk/id/local-authority/00FC,Children & Family Services,Vulnerable Children,Child Care Resources,Direct Employee Expenses,Overtime,EA401,18/05/2011,6472,769.60 ,Revenue,Redacted Personal Information,Redacted Personal Information
North East Lincolnshire Council,http://statistics.data.gov.uk/id/local-authority/00FC,Children & Family Services,Vulnerable Children,Child Care Resources,Other Agencies,Child Care Payments,PJ104,03/05/2011,4597,-31.07 ,Revenue,Redacted Personal Information,Redacted Personal Information
North East Lincolnshire Council,http://statistics.data.gov.uk/id/local-authority/00FC,Children & Family Services,Vulnerable Children,Child Care Resources,Other Agencies,Special Carer Payments,PJ128,03/05/2011,4597,704.54 ,Revenue,Redacted Personal Information,Redacted Personal Information
North East Lincolnshire Council,http://statistics.data.gov.uk/id/local-authority/00FC,Children & Family Services,Vulnerable Children,Child Care Resources,Other Agencies,Special Carer Payments,PJ128,10/05/2011,5959,704.54 ,Revenue,Redacted Personal Information,Redacted Personal Information
North East Lincolnshire Council,http://statistics.data.gov.uk/id/local-authority/00FC,Children & Family Services,Vulnerable Children,Child Care Resources,Other Agencies,Special Carer Payments,PJ128,17/05/2011,7636,704.54 ,Revenue,Redacted Personal Information,Redacted Personal Information
North East Lincolnshire Council,http://statistics.data.gov.uk/id/local-authority/00FC,Children & Family Services,Vulnerable Children,Child Care Resources,Other Agencies,Special Carer Payments,PJ128,24/05/2011,9025,704.54 ,Revenue,Redacted Personal Information,Redacted Personal Information
North East Lincolnshire Council,http://statistics.data.gov.uk/id/local-authority/00FC,Children & Family Services,Vulnerable Children,Child Care Resources,Other Agencies,Special Carer Payments,PJ128,31/05/2011,10402,704.54 ,Revenue,Redacted Personal Information,Redacted Personal Information
North East Lincolnshire Council,http://statistics.data.gov.uk/id/local-authority/00FC,Children & Family Services,Vulnerable Children,Child Care Resources,Other Agencies,Child Care Payments,PJ104,17/05/2011,7596,-20.71 ,Revenue,Redacted Personal Information,Redacted Personal Information
North East Lincolnshire Council,http://statistics.data.gov.uk/id/local-authority/00FC,Children & Family Services,Vulnerable Children,Child Care Resources,Other Agencies,Child Care Payments,PJ104,31/05/2011,10362,-10.36 ,Revenue,Redacted Personal Information,Redacted Personal Information
North East Lincolnshire Council,http://statistics.data.gov.uk/id/local-authority/00FC,Children & Family Services,Vulnerable Children,Child Care Resources,Other Agencies,Child Care Payments,PJ104,10/05/2011,5921,-10.36 ,Revenue,Redacted Personal Information,Redacted Personal Information
North East Lincolnshire Council,http://statistics.data.gov.uk/id/local-authority/00FC,Children & Family Services,Vulnerable Children,Child Care Resources,Other Agencies,Child Care Payments,PJ104,31/05/2011,10435,-16.28 ,Revenue,Redacted Personal Information,Redacted Personal Information
North East Lincolnshire Council,http://statistics.data.gov.uk/id/local-authority/00FC,Children & Family Services,Vulnerable Children,Child Care Resources,Other Agencies,Child Care Payments,PJ104,03/05/2011,4559,-16.29 ,Revenue,Redacted Personal Information,Redacted Personal Information
North East Lincolnshire Council,http://statistics.data.gov.uk/id/local-authority/00FC,Children & Family Services,Vulnerable Children,Child Care Resources,Other Agencies,Child Care Payments,PJ104,03/05/2011,4559,-16.29 ,Revenue,Redacted Personal Information,Redacted Personal Information
North East Lincolnshire Council,http://statistics.data.gov.uk/id/local-authority/00FC,Children & Family Services,Vulnerable Children,Child Care Resources,Other Agencies,Child Care Payments,PJ104,31/05/2011,10363,-8.14 ,Revenue,Redacted Personal Information,Redacted Personal Information
North East Lincolnshire Council,http://statistics.data.gov.uk/id/local-authority/00FC,Children & Family Services,Vulnerable Children,Child Care Resources,Other Agencies,Child Care Payments,PJ104,31/05/2011,10363,-8.14 ,Revenue,Redacted Personal Information,Redacted Personal Information
North East Lincolnshire Council,http://statistics.data.gov.uk/id/local-authority/00FC,Children & Family Services,Vulnerable Children,Child Care Resources,Other Agencies,Child Care Payments,PJ104,24/05/2011,9024,-8.14 ,Revenue,Redacted Personal Information,Redacted Personal Information
North East Lincolnshire Council,http://statistics.data.gov.uk/id/local-authority/00FC,Children & Family Services,Vulnerable Children,Child Care Resources,Other Agencies,Child Care Payments,PJ104,17/05/2011,7634,-8.14 ,Revenue,Redacted Personal Information,Redacted Personal Information
North East Lincolnshire Council,http://statistics.data.gov.uk/id/local-authority/00FC,Children & Family Services,Vulnerable Children,Child Care Resources,Other Agencies,Child Care Payments,PJ104,17/05/2011,7634,-8.14 ,Revenue,Redacted Personal Information,Redacted Personal Information
North East Lincolnshire Council,http://statistics.data.gov.uk/id/local-authority/00FC,Children & Family Services,Vulnerable Children,Child Care Resources,Miscellaneous Expenses,Other Expenses General,LL119,18/05/2011,7985,"1,674.24 ",Revenue,Redacted Personal Information,Redacted Personal Information
North East Lincolnshire Council,http://statistics.data.gov.uk/id/local-authority/00FC,Children & Family Services,Vulnerable Children,Child Care Resources,Other Agencies,Child Care Payments,PJ104,24/05/2011,9096,-20.71 ,Revenue,Redacted Personal Information,Redacted Personal Information
North East Lincolnshire Council,http://statistics.data.gov.uk/id/local-authority/00FC,Children & Family Services,Vulnerable Children,Childcare Fieldwork,Contract Hire-Operating Leases,Vehicles - Contract Hire,JC101,05/05/2011,3195,505.82 ,Revenue,Redacted Personal Information,Redacted Personal Information
North East Lincolnshire Council,http://statistics.data.gov.uk/id/local-authority/00FC,Children & Family Services,Vulnerable Children,Child Care Resources,Other Agencies,Setting Up,PJ111,24/05/2011,9161,538.48 ,Revenue,Redacted Personal Information,Redacted Personal Information
North East Lincolnshire Council,http://statistics.data.gov.uk/id/local-authority/00FC,Children & Family Services,Vulnerable Children,Child Care Resources,Other Agencies,Additional Cost,PJ114,24/05/2011,9161,558.40 ,Revenue,Redacted Personal Information,Redacted Personal Information
North East Lincolnshire Council,http://statistics.data.gov.uk/id/local-authority/00FC,Children & Family Services,Vulnerable Children,Child Care Resources,Other Agencies,Child Care Payments,PJ104,17/05/2011,7693,-12.00 ,Revenue,Redacted Personal Information,Redacted Personal Information
North East Lincolnshire Council,http://statistics.data.gov.uk/id/local-authority/00FC,Children & Family Services,Learning,Standards & Effectiveness,Consultancy,Consultancy,PL101,16/05/2011,6862,800.00 ,Revenue,Redacted Personal Information,Redacted Personal Information
North East Lincolnshire Council,http://statistics.data.gov.uk/id/local-authority/00FC,Children & Family Services,Commiss & Integrated Serv,Additional & Enhanced Needs,Consultancy,Consultancy,PL101,05/05/2011,3505,"2,071.37 ",Revenue,Redacted Personal Information,Redacted Personal Information
North East Lincolnshire Council,http://statistics.data.gov.uk/id/local-authority/00FC,Children & Family Services,Commiss & Integrated Serv,School Access Govrn Stdnt Serv,Contract Hire-Operating Leases,Vehicles - Contract Hire,JC101,12/05/2011,6079,Redacted Commercially Sensitive,Revenue,Redacted Personal Information,Redacted Personal Information
North East Lincolnshire Council,http://statistics.data.gov.uk/id/local-authority/00FC,Children & Family Services,Communities & Partnerships,Extended Services,Rep Alterations Maint Building,Buildings - Repairs And Maint,GA102,05/05/2011,3934,550.00 ,Revenue,RENTOKIL PEST CONTROL,100587
North East Lincolnshire Council,http://statistics.data.gov.uk/id/local-authority/00FC,Children & Family Services,Commiss & Integrated Serv,School Access Govrn Stdnt Serv,Contract Hire-Operating Leases,Vehicles - Contract Hire,JC101,12/05/2011,6087,Redacted Commercially Sensitive,Revenue,REVELLS TAXIS (ED/SOC SERV),100559
North East Lincolnshire Council,http://statistics.data.gov.uk/id/local-authority/00FC,Children & Family Services,Communities & Partnerships,Young Childrens Services,Communications And Computing,Postage,LF111,05/05/2011,4012,650.00 ,Revenue,ROYAL MAIL GROUP PLC,101082
North East Lincolnshire Council,http://statistics.data.gov.uk/id/local-authority/00FC,Children & Family Services,Commiss & Integrated Serv,Strategic Management,Rents,Rent,GC101,05/05/2011,3254,"1,021.27 ",Revenue,S & S LEISURE LTD,101006
North East Lincolnshire Council,http://statistics.data.gov.uk/id/local-authority/00FC,School'S Kitchens,School'S Kitchens,School'S Kitchens,Cap Land/Build-Build Enh Wrk,Cap Land/Build-Build Enh Wrk,YA102,19/05/2011,8232,"6,500.00 ",Capital,SAFE AND SECURE LTD,103936
North East Lincolnshire Council,http://statistics.data.gov.uk/id/local-authority/00FC,Children & Family Services,Communities & Partnerships,Young Childrens Services,Rep Alterations Maint Building,Security Alarms And Cctv,GA101,31/05/2011,10512,"2,133.72 ",Revenue,SECOM PLC,100771
North East Lincolnshire Council,http://statistics.data.gov.uk/id/local-authority/00FC,Children & Family Services,Communities & Partnerships,Extended Services,Rents,Rent,GC101,17/05/2011,6553,737.61 ,Revenue,SECOND AVENUE RESOURCE CENTRE LIMITED,100648
North East Lincolnshire Council,http://statistics.data.gov.uk/id/local-authority/00FC,Children & Family Services,Learning,Community Learning Services,Rents,Room Hire,GC103,09/05/2011,4655,669.75 ,Revenue,SECOND AVENUE RESOURCE CENTRE LIMITED,100648
North East Lincolnshire Council,http://statistics.data.gov.uk/id/local-authority/00FC,Children & Family Services,Learning,Community Learning Services,Communications And Computing,Computer S/Ware - Purchases,LF101,23/05/2011,9505,-9.98 ,Revenue,SERIF (EUROPE) LIMITED,100957
North East Lincolnshire Council,http://statistics.data.gov.uk/id/local-authority/00FC,Children & Family Services,Commiss & Integrated Serv,Additional & Enhanced Needs,Contributions To Provisions,Contributions - Other,LK103,19/05/2011,7950,"7,225.00 ",Revenue,SHALOM YOUTH PROJECT,103924
North East Lincolnshire Council,http://statistics.data.gov.uk/id/local-authority/00FC,Children & Family Services,Vulnerable Children,Child Care Resources,Private Contractors,Third Party Prov - Private,PH101,19/05/2011,7915,918.96 ,Revenue,SHORELINE HOUSING PARTNERSHIP LTD,100139
North East Lincolnshire Council,http://statistics.data.gov.uk/id/local-authority/00FC,Children & Family Services,Vulnerable Children,Child Care Resources,Private Contractors,Third Party Prov - Private,PH101,19/05/2011,7924,934.08 ,Revenue,SHORELINE HOUSING PARTNERSHIP LTD,100139
North East Lincolnshire Council,http://statistics.data.gov.uk/id/local-authority/00FC,Children & Family Services,Vulnerable Children,Child Care Resources,Private Contractors,Third Party Prov - Private,PH101,19/05/2011,7925,947.16 ,Revenue,SHORELINE HOUSING PARTNERSHIP LTD,100139
North East Lincolnshire Council,http://statistics.data.gov.uk/id/local-authority/00FC,Children & Family Services,Vulnerable Children,Child Care Resources,Private Contractors,Third Party Prov - Private,PH101,18/05/2011,7899,959.88 ,Revenue,SHORELINE HOUSING PARTNERSHIP LTD,100139
North East Lincolnshire Council,http://statistics.data.gov.uk/id/local-authority/00FC,Children & Family Services,Vulnerable Children,Child Care Resources,Private Contractors,Third Party Prov - Private,PH101,19/05/2011,7923,959.88 ,Revenue,SHORELINE HOUSING PARTNERSHIP LTD,100139
North East Lincolnshire Council,http://statistics.data.gov.uk/id/local-authority/00FC,Nursery Wrap Around Care,Nursery Wrap Around Care,Nursery Wrap Around Care,Cap Auc-Build Enh Wrk,Cap Auc-Build Enh Wrk,YF102,13/05/2011,5634,"34,658.86 ",Capital,SIBCAS LTD,103587
North East Lincolnshire Council,http://statistics.data.gov.uk/id/local-authority/00FC,Devolved Formula Cap Grant,Devolved Formula Cap Grant,Devolved Formula Cap Grant,Cap Land/Build-Build Enh Wrk,Cap Land/Build-Build Enh Wrk,YA102,16/05/2011,7018,"2,301.72 ",Capital,SIMON DESORGHER,103091
North East Lincolnshire Council,http://statistics.data.gov.uk/id/local-authority/00FC,Children & Family Services,Communities & Partnerships,Young Childrens Services,Contributions To Provisions,Contributions - Other,LK103,06/05/2011,4230,Redacted Commercially Sensitive,Revenue,SLM COMMUNITY LEISURE LTD,101244
North East Lincolnshire Council,http://statistics.data.gov.uk/id/local-authority/00FC,Children & Family Services,Communities & Partnerships,Extended Services,Miscellaneous Expenses,Activities - Service Users,LL114,05/05/2011,3896,Redacted Commercially Sensitive,Revenue,SLM COMMUNITY LEISURE LTD,101266
North East Lincolnshire Council,http://statistics.data.gov.uk/id/local-authority/00FC,Children & Family Services,Communities & Partnerships,Extended Services,Miscellaneous Expenses,Activities - Service Users,LL114,23/05/2011,9243,Redacted Commercially Sensitive,Revenue,SLM COMMUNITY LEISURE LTD,101244
North East Lincolnshire Council,http://statistics.data.gov.uk/id/local-authority/00FC,Children & Family Services,Communities & Partnerships,Extended Services,Miscellaneous Expenses,Activities - Service Users,LL114,05/05/2011,3208,Redacted Commercially Sensitive,Revenue,SLM COMMUNITY LEISURE LTD,101266
North East Lincolnshire Council,http://statistics.data.gov.uk/id/local-authority/00FC,Children & Family Services,Communities & Partnerships,Extended Services,Miscellaneous Expenses,Activities - Service Users,LL114,31/05/2011,10650,Redacted Commercially Sensitive,Revenue,SLM COMMUNITY LEISURE LTD,101244
North East Lincolnshire Council,http://statistics.data.gov.uk/id/local-authority/00FC,Children & Family Services,Communities & Partnerships,Extended Services,Miscellaneous Expenses,Activities - Service Users,LL114,16/05/2011,6974,Redacted Commercially Sensitive,Revenue,SLM COMMUNITY LEISURE LTD,101244
North East Lincolnshire Council,http://statistics.data.gov.uk/id/local-authority/00FC,Children & Family Services,Communities & Partnerships,Extended Services,Miscellaneous Expenses,Activities - Service Users,LL114,05/05/2011,3207,Redacted Commercially Sensitive,Revenue,SLM COMMUNITY LEISURE LTD,101244
North East Lincolnshire Council,http://statistics.data.gov.uk/id/local-authority/00FC,Children & Family Services,Communities & Partnerships,Young Childrens Services,Miscellaneous Expenses,Activities - Service Users,LL114,19/05/2011,8518,Redacted Commercially Sensitive,Revenue,SLM COMMUNITY LEISURE LTD,101266
North East Lincolnshire Council,http://statistics.data.gov.uk/id/local-authority/00FC,Children & Family Services,Vulnerable Children,Child Care Resources,Grants And Subscriptions,Subscriptions,LJ101,12/05/2011,5990,"2,710.00 ",Revenue,SOFT BOX LTD,101087
North East Lincolnshire Council,http://statistics.data.gov.uk/id/local-authority/00FC,Children & Family Services,Communities & Partnerships,Extended Services,Rents,Rent,GC101,05/05/2011,3933,644.00 ,Revenue,SPACE PEOPLE,101564
North East Lincolnshire Council,http://statistics.data.gov.uk/id/local-authority/00FC,Children & Family Services,Vulnerable Children,Through Care And Lace,Private Contractors,Third Party Prov - Private,PH101,10/05/2011,4878,"1,822.39 ",Revenue,SPACE PEOPLE,101564
North East Lincolnshire Council,http://statistics.data.gov.uk/id/local-authority/00FC,Children & Family Services,Learning,Community Learning Services,Equip / Furniture / Materials,Equipment - Purchase,LA101,09/05/2011,4801,-157.86 ,Revenue,SPECIALIST CRAFTS LTD,100649
North East Lincolnshire Council,http://statistics.data.gov.uk/id/local-authority/00FC,Children & Family Services,Learning,Community Learning Services,Equip / Furniture / Materials,Equipment - Purchase,LA101,06/05/2011,4406,"1,547.51 ",Revenue,SPECIALIST CRAFTS LTD,100649
North East Lincolnshire Council,http://statistics.data.gov.uk/id/local-authority/00FC,Children & Family Services,Learning,Capital & Assets,Print Stationery / Gen Off Exp,Photocopier - Running Costs,LD102,24/05/2011,9511,-291.37 ,Revenue,SPECTRUM COPIERS LTD,101078
North East Lincolnshire Council,http://statistics.data.gov.uk/id/local-authority/00FC,Children & Family Services,Communities & Partnerships,Health Care Provision,Contributions To Provisions,Contributions - Other,LK103,09/05/2011,4289,852.00 ,Revenue,SPEECHMARK PUBLISHING LIMITED,101196
North East Lincolnshire Council,http://statistics.data.gov.uk/id/local-authority/00FC,Children & Family Services,Vulnerable Children,Through Care And Lace,Other Agencies,Tuition,PJ112,23/05/2011,9495,-15.00 ,Revenue,ST JAMES SCHOOL,100940
North East Lincolnshire Council,http://statistics.data.gov.uk/id/local-authority/00FC,Children & Family Services,Vulnerable Children,Through Care And Lace,Other Agencies,Tuition,PJ112,18/05/2011,7882,"7,760.69 ",Revenue,ST JAMES SCHOOL,100940
North East Lincolnshire Council,http://statistics.data.gov.uk/id/local-authority/00FC,Children & Family Services,Commiss & Integrated Serv,School Access Govrn Stdnt Serv,Private Contractors,Concessionary Fares,PH104,11/05/2011,5693,Redacted Commercially Sensitive,Revenue,STAGECOACH SERVICES,101404
North East Lincolnshire Council,http://statistics.data.gov.uk/id/local-authority/00FC,Children & Family Services,Commiss & Integrated Serv,School Access Govrn Stdnt Serv,Private Contractors,Concessionary Fares,PH104,11/05/2011,5693,Redacted Commercially Sensitive,Revenue,STAGECOACH SERVICES,101404
North East Lincolnshire Council,http://statistics.data.gov.uk/id/local-authority/00FC,Children & Family Services,Learning,Standards & Effectiveness,Consultancy,Consultancy,PL101,05/05/2011,3345,"2,250.00 ",Revenue,STEVE COOK LTD,101940
North East Lincolnshire Council,http://statistics.data.gov.uk/id/local-authority/00FC,Children & Family Services,Communities & Partnerships,Young Childrens Services,Equip / Furniture / Materials,Equipment - Purchase,LA101,06/05/2011,4231,998.95 ,Revenue,STORYSACK LTD,101182
North East Lincolnshire Council,http://statistics.data.gov.uk/id/local-authority/00FC,Children & Family Services,Communities & Partnerships,Young Childrens Services,Equip / Furniture / Materials,Equipment - Purchase,LA101,06/05/2011,4231,"2,832.65 ",Revenue,STORYSACK LTD,101182
North East Lincolnshire Council,http://statistics.data.gov.uk/id/local-authority/00FC,Devolved Formula Cap Grant,Devolved Formula Cap Grant,Devolved Formula Cap Grant,Cap Auc-Build Enh Wrk,Cap Auc-Build Enh Wrk,YF102,19/05/2011,8582,"55,020.69 ",Capital,TAYLOR PEARSON CONSTRUCTION,102108
North East Lincolnshire Council,http://statistics.data.gov.uk/id/local-authority/00FC,Devolved Formula Cap Grant,Devolved Formula Cap Grant,Devolved Formula Cap Grant,Cap Auc-Build Enh Wrk,Cap Auc-Build Enh Wrk,YF102,26/05/2011,10743,"55,020.69 ",Capital,TAYLOR PEARSON CONSTRUCTION,102108
North East Lincolnshire Council,http://statistics.data.gov.uk/id/local-authority/00FC,Children & Family Services,Communities & Partnerships,Young Childrens Services,Catering,Provisions,LB101,23/05/2011,9651,500.00 ,Revenue,TESCO STORES LIMITED,102576
North East Lincolnshire Council,http://statistics.data.gov.uk/id/local-authority/00FC,Children & Family Services,Commiss & Integrated Serv,School Access Govrn Stdnt Serv,Contract Hire-Operating Leases,Vehicles - Contract Hire,JC101,12/05/2011,6069,Redacted Commercially Sensitive,Revenue,THE BUS RUN,101522
North East Lincolnshire Council,http://statistics.data.gov.uk/id/local-authority/00FC,Children & Family Services,Commiss & Integrated Serv,Strategic Management,Miscellaneous Expenses,Licences,LL116,18/05/2011,7452,"4,736.18 ",Revenue,THE CENTRE FOR EDUCATION & FINANCE,100918
North East Lincolnshire Council,http://statistics.data.gov.uk/id/local-authority/00FC,Children & Family Services,Commiss & Integrated Serv,Strategic Management,Miscellaneous Expenses,Licences,LL116,10/05/2011,4817,"5,138.00 ",Revenue,THE CENTRE FOR EDUCATION & FINANCE,100918
North East Lincolnshire Council,http://statistics.data.gov.uk/id/local-authority/00FC,Children & Family Services,Commiss & Integrated Serv,Strategic Management,Miscellaneous Expenses,Licences,LL116,19/05/2011,7450,"5,143.83 ",Revenue,THE CENTRE FOR EDUCATION & FINANCE,100918
North East Lincolnshire Council,http://statistics.data.gov.uk/id/local-authority/00FC,Children & Family Services,Commiss & Integrated Serv,Strategic Management,Miscellaneous Expenses,Licences,LL116,17/05/2011,6449,"16,168.03 ",Revenue,THE COPYRIGHT LICENSING AGENCY LIMITED,101041
North East Lincolnshire Council,http://statistics.data.gov.uk/id/local-authority/00FC,Children & Family Services,Commiss & Integrated Serv,Strategic Management,Miscellaneous Expenses,Licences,LL116,18/05/2011,7447,"4,149.67 ",Revenue,THE EDUCATIONAL RECORDING AGENCY LIMITED,100901
North East Lincolnshire Council,http://statistics.data.gov.uk/id/local-authority/00FC,Children & Family Services,Vulnerable Children,Child Care Resources,Grants And Subscriptions,Subscriptions,LJ101,16/05/2011,6602,703.00 ,Revenue,THE FOSTERING NETWORK,103725
North East Lincolnshire Council,http://statistics.data.gov.uk/id/local-authority/00FC,Children & Family Services,Vulnerable Children,Child Care Resources,Grants And Subscriptions,Subscriptions,LJ101,16/05/2011,6602,703.40 ,Revenue,THE FOSTERING NETWORK,103725
North East Lincolnshire Council,http://statistics.data.gov.uk/id/local-authority/00FC,Children & Family Services,Learning,Sen/Inclusion,Private Contractors,Third Party Prov - Private,PH101,23/05/2011,9887,"1,066.67 ",Revenue,THE GRIMSBY INSTITUTE OF FURTHER,102742
North East Lincolnshire Council,http://statistics.data.gov.uk/id/local-authority/00FC,Children & Family Services,Learning,Sen/Inclusion,Private Contractors,Third Party Prov - Private,PH101,23/05/2011,9886,"1,294.17 ",Revenue,THE GRIMSBY INSTITUTE OF FURTHER,102742
North East Lincolnshire Council,http://statistics.data.gov.uk/id/local-authority/00FC,Children & Family Services,Commiss & Integrated Serv,Services To Youth,Rents,Room Hire,GC103,11/05/2011,5360,"1,178.00 ",Revenue,THE SAVILLE GROUP LTD,100560
North East Lincolnshire Council,http://statistics.data.gov.uk/id/local-authority/00FC,Children & Family Services,Vulnerable Children,Child Care Resources,Private Contractors,Third Party Prov - Private,PH101,31/05/2011,11035,"3,595.20 ",Revenue,TREE HOUSE CARE FOSTERING SOLUTIONS LTD,101150
North East Lincolnshire Council,http://statistics.data.gov.uk/id/local-authority/00FC,Devolved Formula Cap Grant,Devolved Formula Cap Grant,Devolved Formula Cap Grant,Cap Land/Build-Build Enh Wrk,Cap Land/Build-Build Enh Wrk,YA102,05/05/2011,3039,"11,200.00 ",Capital,UNIBUILD BUILDING CONT LTD,101469
North East Lincolnshire Council,http://statistics.data.gov.uk/id/local-authority/00FC,Children & Family Services,C&Fs Other,Holding Accounts,Print Stationery / Gen Off Exp,Photocopier - Running Costs,LD102,31/05/2011,10670,502.04 ,Revenue,UNITED CARLTON OFFICE SYSTEMS LTD,101652
North East Lincolnshire Council,http://statistics.data.gov.uk/id/local-authority/00FC,Children & Family Services,Commiss & Integrated Serv,Services To Youth,Print Stationery / Gen Off Exp,Photocopier - Running Costs,LD102,11/05/2011,5369,579.19 ,Revenue,UNITED CARLTON OFFICE SYSTEMS LTD,101652
North East Lincolnshire Council,http://statistics.data.gov.uk/id/local-authority/00FC,Children & Family Services,Commiss & Integrated Serv,Services To Youth,Print Stationery / Gen Off Exp,Photocopier - Running Costs,LD102,11/05/2011,5274,824.57 ,Revenue,UNITED CARLTON OFFICE SYSTEMS LTD,101652
North East Lincolnshire Council,http://statistics.data.gov.uk/id/local-authority/00FC,Children & Family Services,Commiss & Integrated Serv,Policy Plan & Commissioning,Print Stationery / Gen Off Exp,Photocopier - Running Costs,LD102,26/05/2011,10581,831.28 ,Revenue,UNITED CARLTON OFFICE SYSTEMS LTD,101652
North East Lincolnshire Council,http://statistics.data.gov.uk/id/local-authority/00FC,Children & Family Services,Commiss & Integrated Serv,Services To Youth,Print Stationery / Gen Off Exp,Photocopier - Running Costs,LD102,05/05/2011,3643,845.46 ,Revenue,UNITED CARLTON OFFICE SYSTEMS LTD,101652
North East Lincolnshire Council,http://statistics.data.gov.uk/id/local-authority/00FC,Children & Family Services,Communities & Partnerships,Young Childrens Services,Print Stationery / Gen Off Exp,Photocopier - Running Costs,LD102,09/05/2011,4826,840.84 ,Revenue,UNITED CARLTON OFFICE SYSTEMS LTD,101652
North East Lincolnshire Council,http://statistics.data.gov.uk/id/local-authority/00FC,Children & Family Services,Learning,Sen/Inclusion,Catering,Provisions,LB101,05/05/2011,3352,522.86 ,Revenue,UNITED CARLTON OFFICE SYSTEMS LTD,101652
North East Lincolnshire Council,http://statistics.data.gov.uk/id/local-authority/00FC,Children & Family Services,Vulnerable Children,Youth Offending Team,Print Stationery / Gen Off Exp,Photocopier - Running Costs,LD102,20/05/2011,8620,622.94 ,Revenue,UNITED CARLTON OFFICE SYSTEMS LTD,101652
North East Lincolnshire Council,http://statistics.data.gov.uk/id/local-authority/00FC,Children & Family Services,Communities & Partnerships,Young Childrens Services,Rents,Service Charge,GC102,20/05/2011,8653,630.80 ,Revenue,VENDING ENTERPRISES,100635
North East Lincolnshire Council,http://statistics.data.gov.uk/id/local-authority/00FC,Children & Family Services,Communities & Partnerships,Young Childrens Services,Energy Costs,Heating Fuel,GB103,05/05/2011,3235,"1,188.23 ",Revenue,WATSON PETROLEUM LTD,101348
North East Lincolnshire Council,http://statistics.data.gov.uk/id/local-authority/00FC,Children & Family Services,Communities & Partnerships,Young Childrens Services,Energy Costs,Heating Fuel,GB103,09/05/2011,4750,"2,375.41 ",Revenue,WATSON PETROLEUM LTD,101348
North East Lincolnshire Council,http://statistics.data.gov.uk/id/local-authority/00FC,Children & Family Services,Commiss & Integrated Serv,School Access Govrn Stdnt Serv,Contract Hire-Operating Leases,Vehicles - Contract Hire,JC101,31/05/2011,11004,514.00 ,Revenue,WHEELCHAIR FRIENDLY TAXI SERVICE,101915
North East Lincolnshire Council,http://statistics.data.gov.uk/id/local-authority/00FC,Children & Family Services,Learning,Music Services,Rents,Rent,GC101,06/05/2011,4352,"2,465.64 ",Revenue,WHITGIFT SCHOOL,100867
North East Lincolnshire Council,http://statistics.data.gov.uk/id/local-authority/00FC,Children & Family Services,Learning,Standards & Effectiveness,Rents,Rent,GC101,09/05/2011,4848,"3,450.00 ",Revenue,WHITGIFT SCHOOL,100867
North East Lincolnshire Council,http://statistics.data.gov.uk/id/local-authority/00FC,Children & Family Services,Learning,Standards & Effectiveness,Miscellaneous Expenses,Other Expenses General,LL119,05/05/2011,3349,"5,000.00 ",Revenue,WHITGIFT SCHOOL,100867
North East Lincolnshire Council,http://statistics.data.gov.uk/id/local-authority/00FC,Children & Family Services,Learning,Community Learning Services,Direct Employee Expenses,Pay,EA101,13/05/2011,6440,"1,403.00 ",Revenue,WILKIN CHAPMAN SOLICITORS,100948
North East Lincolnshire Council,http://statistics.data.gov.uk/id/local-authority/00FC,Children & Family Services,Vulnerable Children,Child Care Resources,Miscellaneous Expenses,Legal Fees - General,LL103,13/05/2011,6577,Redacted Commercially Sensitive,Revenue,WILKIN CHAPMAN SOLICITORS,100948
North East Lincolnshire Council,http://statistics.data.gov.uk/id/local-authority/00FC,Nds Cond + Modern All Schools,Nds Cond + Modern All Schools,Nds Cond + Modern All Schools,Cap Land/Build-Build Enh Wrk,Cap Land/Build-Build Enh Wrk,YA102,16/05/2011,6680,"2,581.00 ",Capital,WIL-LEC ELECTRICAL CONTRACTORS LTD,101370
North East Lincolnshire Council,http://statistics.data.gov.uk/id/local-authority/00FC,Children & Family Services,Communities & Partnerships,Extended Services,Premises Insurance,Premises Insurance - Premiums,GK101,12/05/2011,5971,720.23 ,Revenue,YOUNGS INSURANCES (GRIMSBY) LTD,103626
North East Lincolnshire Council,http://statistics.data.gov.uk/id/local-authority/00FC,Children & Family Services,Commiss & Integrated Serv,Services To Youth,Grants And Subscriptions,Subscriptions,LJ101,10/05/2011,5321,"3,216.00 ",Revenue,YOUTH WORK UNIT Y & H,103560
North East Lincolnshire Council,http://statistics.data.gov.uk/id/local-authority/00FC,Community Services,Community & Support Services,Bradley Playing Fields,Rep Alterations Maint Building,Buildings - Repairs And Maint,GA102,23/05/2011,9959,"2,095.80 ",Revenue,A J BUTTON PLANT HIRE LTD,100710
North East Lincolnshire Council,http://statistics.data.gov.uk/id/local-authority/00FC,Community Services,Neighbourhood Services,Cemeteries & Crematorium,Rep Alterations Maint Building,Buildings - Repairs And Maint,GA102,31/05/2011,10933,"2,876.50 ",Revenue,A J BUTTON PLANT HIRE LTD,100710
North East Lincolnshire Council,http://statistics.data.gov.uk/id/local-authority/00FC,Community Services,Business & Performance Mangt,Supporting People,Other Agencies,Third Pp - Block Subsidy,PJ102,18/05/2011,7770,Redacted Commercially Sensitive,Revenue,ABBEY SUPPORT SERVICES,100313
North East Lincolnshire Council,http://statistics.data.gov.uk/id/local-authority/00FC,Community Services,Business & Performance Mangt,Supporting People,Other Agencies,Third Pp - Block Subsidy,PJ102,18/05/2011,7777,Redacted Commercially Sensitive,Revenue,ACCACIA HOUSE,100328
North East Lincolnshire Council,http://statistics.data.gov.uk/id/local-authority/00FC,Community Services,Community & Support Services,Events,Rep Alterations Maint Building,Buildings - Repairs And Maint,GA102,10/05/2011,4884,"1,645.00 ",Revenue,ACUMEN SOLUTIONS LTD,101395
North East Lincolnshire Council,http://statistics.data.gov.uk/id/local-authority/00FC,Community Services,Community & Support Services,Tourist Information Centre,Miscellaneous Income,Miscellaneous Income,VG101,17/05/2011,6820,Redacted Commercially Sensitive,Revenue,AMVALE LIMITED,101030
North East Lincolnshire Council,http://statistics.data.gov.uk/id/local-authority/00FC,Community Services,Community & Support Services,Tourist Information Centre,Miscellaneous Income,Miscellaneous Income,VG101,16/05/2011,6586,Redacted Commercially Sensitive,Revenue,AMVALE LIMITED,101030
North East Lincolnshire Council,http://statistics.data.gov.uk/id/local-authority/00FC,Community Services,Community & Support Services,Tourist Information Centre,Private Contractors,Third Party Prov - Private,PH101,16/05/2011,6586,Redacted Commercially Sensitive,Revenue,AMVALE LIMITED,101030
North East Lincolnshire Council,http://statistics.data.gov.uk/id/local-authority/00FC,Community Services,Community & Support Services,Tourist Information Centre,Private Contractors,Third Party Prov - Private,PH101,17/05/2011,6820,Redacted Commercially Sensitive,Revenue,AMVALE LIMITED,101030
North East Lincolnshire Council,http://statistics.data.gov.uk/id/local-authority/00FC,Community Services,Neighbourhood Services,Resort Management,Equip / Furniture / Materials,Equipment - Purchase,LA101,31/05/2011,10914,810.00 ,Revenue,ANDY RYAN GROUNDWORKS,101558
North East Lincolnshire Council,http://statistics.data.gov.uk/id/local-authority/00FC,Community Services,Community & Support Services,Museums & N F Heritage Centre,Equip / Furniture / Materials,Goods For Resale,LA123,11/05/2011,5445,-18.08 ,Revenue,ANGLIA WOODS,100805
North East Lincolnshire Council,http://statistics.data.gov.uk/id/local-authority/00FC,Community Services,Community & Support Services,Library Service,Equip / Furniture / Materials,Goods For Resale,LA123,18/05/2011,7560,-12.09 ,Revenue,ANGLIA WOODS,100805
North East Lincolnshire Council,http://statistics.data.gov.uk/id/local-authority/00FC,Community Services,Community & Support Services,Museums & N F Heritage Centre,Equip / Furniture / Materials,Goods For Resale,LA123,11/05/2011,5445,-7.10 ,Revenue,ANGLIA WOODS,100805
North East Lincolnshire Council,http://statistics.data.gov.uk/id/local-authority/00FC,Community Services,Community & Support Services,Discovery Centre,Equip / Furniture / Materials,Equipment - Purchase,LA101,23/05/2011,9508,-4.98 ,Revenue,ANGLIA WOODS,100805
North East Lincolnshire Council,http://statistics.data.gov.uk/id/local-authority/00FC,Community Services,Community & Support Services,Discovery Centre,Equip / Furniture / Materials,Cleaning - Equipment,LA103,23/05/2011,9509,-3.31 ,Revenue,ANGLIA WOODS,100805
North East Lincolnshire Council,http://statistics.data.gov.uk/id/local-authority/00FC,Community Services,Community & Support Services,Museums & N F Heritage Centre,Equip / Furniture / Materials,Goods For Resale,LA123,31/05/2011,10685,-2.85 ,Revenue,ANGLIA WOODS,100805
North East Lincolnshire Council,http://statistics.data.gov.uk/id/local-authority/00FC,Community Services,Neighbourhood Services,Grounds,Water Services,Water,GE101,16/05/2011,6934,-13.16 ,Revenue,ANGLIAN WATER,100508
North East Lincolnshire Council,http://statistics.data.gov.uk/id/local-authority/00FC,Community Services,Neighbourhood Services,Street Cleansing,Equip / Furniture / Materials,Equipment - Hire,LA102,05/05/2011,3457,"2,075.84 ",Revenue,ANGLIAN WATER,100508
North East Lincolnshire Council,http://statistics.data.gov.uk/id/local-authority/00FC,Community Services,Community & Support Services,Communities Business Supp,Grants And Subscriptions,Subscriptions,LJ101,16/05/2011,7027,"3,159.00 ",Revenue,APSE,101174
North East Lincolnshire Council,http://statistics.data.gov.uk/id/local-authority/00FC,Community Services,Neighbourhood Services,Grounds,Indirect Employee Expenses,Staff Training,EB122,13/05/2011,6447,"1,125.55 ",Revenue,APSE,101174
North East Lincolnshire Council,http://statistics.data.gov.uk/id/local-authority/00FC,Community Services,Neighbourhood Services,Grounds,Indirect Employee Expenses,Staff Training,EB122,13/05/2011,6447,"1,200.45 ",Revenue,APSE,101174
North East Lincolnshire Council,http://statistics.data.gov.uk/id/local-authority/00FC,Community Services,Neighbourhood Services,Env Commerce Food & Health,Clothes Uniforms And Laundry,Protective Clothing,LC101,23/05/2011,9510,-17.50 ,Revenue,ARCO LTD,100509
North East Lincolnshire Council,http://statistics.data.gov.uk/id/local-authority/00FC,Community Services,Neighbourhood Services,Env Commerce Food & Health,Clothes Uniforms And Laundry,Protective Clothing,LC101,23/05/2011,9510,-2.60 ,Revenue,ARCO LTD,100509
North East Lincolnshire Council,http://statistics.data.gov.uk/id/local-authority/00FC,Community Services,Neighbourhood Services,Grounds,Direct Transport Costs,Vehicles - Running Costs,JA104,23/05/2011,9481,858.76 ,Revenue,ARVAL UK LIMITED,102401
North East Lincolnshire Council,http://statistics.data.gov.uk/id/local-authority/00FC,Community Services,Neighbourhood Services,Street Cleansing,Direct Transport Costs,Vehicles - Running Costs,JA104,23/05/2011,9481,"1,451.64 ",Revenue,ARVAL UK LIMITED,102401
North East Lincolnshire Council,http://statistics.data.gov.uk/id/local-authority/00FC,Community Services,Community & Support Services,Leisure Contracts,Private Contractors,Contract Payments,PH105,23/05/2011,9889,Redacted Commercially Sensitive,Revenue,ATG VENUES UK LTD,102453
North East Lincolnshire Council,http://statistics.data.gov.uk/id/local-authority/00FC,Community Services,Community & Support Services,Leisure Contracts,Private Contractors,Contract Payments,PH105,10/05/2011,5118,Redacted Commercially Sensitive,Revenue,ATG VENUES UK LTD,102453
North East Lincolnshire Council,http://statistics.data.gov.uk/id/local-authority/00FC,Community Services,Community & Support Services,Leisure Contracts,Private Contractors,Contract Payments,PH105,05/05/2011,3450,Redacted Commercially Sensitive,Revenue,ATG VENUES UK LTD,102453
North East Lincolnshire Council,http://statistics.data.gov.uk/id/local-authority/00FC,Community Services,Neighbourhood Services,Neighbourhood Serv Mgmt A/C,Consultancy,Consultancy,PL101,19/05/2011,8548,"1,048.20 ",Revenue,BADENOCH & CLARK,101427
North East Lincolnshire Council,http://statistics.data.gov.uk/id/local-authority/00FC,Community Services,Community & Support Services,Library Service,Grants And Subscriptions,Subscriptions,LJ101,23/05/2011,9478,"4,904.50 ",Revenue,BDS,101578
North East Lincolnshire Council,http://statistics.data.gov.uk/id/local-authority/00FC,Community Services,Community & Support Services,Library Service,Equip / Furniture / Materials,Library Books,LA120,23/05/2011,9507,-3.51 ,Revenue,BERTRAM LIBRARY SERVICES,101586
North East Lincolnshire Council,http://statistics.data.gov.uk/id/local-authority/00FC,Community Services,Community & Support Services,Library Service,Equip / Furniture / Materials,Library Books,LA120,23/05/2011,9409,505.31 ,Revenue,BERTRAM LIBRARY SERVICES,101586
North East Lincolnshire Council,http://statistics.data.gov.uk/id/local-authority/00FC,Community Services,Community & Support Services,Library Service,Equip / Furniture / Materials,Library Books,LA120,23/05/2011,9227,528.71 ,Revenue,BERTRAM LIBRARY SERVICES,101586
North East Lincolnshire Council,http://statistics.data.gov.uk/id/local-authority/00FC,Community Services,Community & Support Services,Library Service,Equip / Furniture / Materials,Library Books,LA120,23/05/2011,9469,547.03 ,Revenue,BERTRAM LIBRARY SERVICES,101586
North East Lincolnshire Council,http://statistics.data.gov.uk/id/local-authority/00FC,Community Services,Community & Support Services,Library Service,Equip / Furniture / Materials,Library Books,LA120,20/05/2011,9234,682.96 ,Revenue,BERTRAM LIBRARY SERVICES,101586
North East Lincolnshire Council,http://statistics.data.gov.uk/id/local-authority/00FC,Community Services,Community & Support Services,Library Service,Equip / Furniture / Materials,Library Books,LA120,23/05/2011,9220,691.26 ,Revenue,BERTRAM LIBRARY SERVICES,101586
North East Lincolnshire Council,http://statistics.data.gov.uk/id/local-authority/00FC,Community Services,Community & Support Services,Library Service,Equip / Furniture / Materials,Library Books,LA120,20/05/2011,9233,705.79 ,Revenue,BERTRAM LIBRARY SERVICES,101586
North East Lincolnshire Council,http://statistics.data.gov.uk/id/local-authority/00FC,Community Services,Community & Support Services,Library Service,Equip / Furniture / Materials,Office Equipment - Teaching,LA112,23/05/2011,9231,817.54 ,Revenue,BERTRAM LIBRARY SERVICES,101586
North East Lincolnshire Council,http://statistics.data.gov.uk/id/local-authority/00FC,Community Services,Community & Support Services,Library Service,Equip / Furniture / Materials,Library Books,LA120,23/05/2011,9219,899.85 ,Revenue,BERTRAM LIBRARY SERVICES,101586
North East Lincolnshire Council,http://statistics.data.gov.uk/id/local-authority/00FC,Community Services,Neighbourhood Services,Grounds,Equip / Furniture / Materials,Equipment - Purchase,LA101,18/05/2011,7495,"1,491.00 ",Revenue,BORDER BARRIER SYSTEMS LTD,103869
North East Lincolnshire Council,http://statistics.data.gov.uk/id/local-authority/00FC,Community Services,Community & Support Services,Bradley Playing Fields,Energy Costs,Gas,GB101,12/05/2011,6184,"2,132.25 ",Revenue,BRITISH GAS TRADING LTD,101507
North East Lincolnshire Council,http://statistics.data.gov.uk/id/local-authority/00FC,Community Services,Community & Support Services,Bradley Playing Fields,Energy Costs,Gas,GB101,12/05/2011,6192,"2,168.95 ",Revenue,BRITISH GAS TRADING LTD,101507
North East Lincolnshire Council,http://statistics.data.gov.uk/id/local-authority/00FC,Community Services,Community & Support Services,Events,Communications And Computing,Telephones,LF112,26/05/2011,10422,"1,968.79 ",Revenue,BRITISH TELECOMMUNICATIONS PLC,100974
North East Lincolnshire Council,http://statistics.data.gov.uk/id/local-authority/00FC,Community Services,Neighbourhood Services,Grounds,Private Contractors,Third Party Prov - Private,PH101,31/05/2011,10998,900.00 ,Revenue,BSB SERVICES,102305
North East Lincolnshire Council,http://statistics.data.gov.uk/id/local-authority/00FC,Community Services,Neighbourhood Services,Countryside Management,Rep Alterations Maint Building,Buildings - Repairs And Maint,GA102,19/05/2011,8465,"4,300.00 ",Revenue,BSB SERVICES,102305
North East Lincolnshire Council,http://statistics.data.gov.uk/id/local-authority/00FC,Community Services,Community & Support Services,Customer Services,Communications And Computing,Computer S/Ware - Purchases,LF101,20/05/2011,9229,"3,630.46 ",Revenue,CAPITA BUSINESS SERVICES LTD,102314
North East Lincolnshire Council,http://statistics.data.gov.uk/id/local-authority/00FC,Community Services,Business & Performance Mangt,Supporting People,Other Agencies,Third Pp - Block Subsidy,PJ102,18/05/2011,7771,Redacted Commercially Sensitive,Revenue,CARE,100314
North East Lincolnshire Council,http://statistics.data.gov.uk/id/local-authority/00FC,Community Services,Community & Support Services,Bradley Playing Fields,Equip / Furniture / Materials,Goods For Resale,LA123,10/05/2011,5278,"1,281.74 ",Revenue,CARLSBERG UK LTD,103555
North East Lincolnshire Council,http://statistics.data.gov.uk/id/local-authority/00FC,Community Services,Community & Support Services,Library Service,Equip / Furniture / Materials,Library Books,LA120,10/05/2011,4660,"9,610.00 ",Revenue,CENGAGE LEARNING SERVICES,102028
North East Lincolnshire Council,http://statistics.data.gov.uk/id/local-authority/00FC,Community Services,Neighbourhood Services,Trading Standards,Communications And Computing,Computer S/Ware - Maintenance,LF102,05/05/2011,3972,"6,580.51 ",Revenue,CIVICA UK LIMITED,103029
North East Lincolnshire Council,http://statistics.data.gov.uk/id/local-authority/00FC,Community Services,Neighbourhood Services,Waste Collection,Equip / Furniture / Materials,Equipment - Purchase,LA101,10/05/2011,1711,"3,180.00 ",Revenue,CLOCKING SYSTEMS,103104
North East Lincolnshire Council,http://statistics.data.gov.uk/id/local-authority/00FC,Community Services,Neighbourhood Services,Street Cleansing,Equip / Furniture / Materials,Equipment - Purchase,LA101,19/05/2011,8265,"1,560.00 ",Revenue,CROMWELL POLYTHENE LTD,101183
North East Lincolnshire Council,http://statistics.data.gov.uk/id/local-authority/00FC,Community Services,Neighbourhood Services,Countryside Management,Rep Alterations Maint Building,Buildings - Repairs And Maint,GA102,05/05/2011,4000,683.00 ,Revenue,DEAN WILLETT & SONS,101982
North East Lincolnshire Council,http://statistics.data.gov.uk/id/local-authority/00FC,Community Services,Neighbourhood Services,Garage & Fleet Strategy,Direct Transport Costs,Vehicles - Repairs And Maint,JA105,23/05/2011,9496,-468.53 ,Revenue,DENNIS EAGLE LTD,100627
North East Lincolnshire Council,http://statistics.data.gov.uk/id/local-authority/00FC,Community Services,Business & Performance Mangt,Supporting People,Other Agencies,Third Pp - Block Gross,PJ103,25/05/2011,10341,Redacted Commercially Sensitive,Revenue,DOORSTEP,100310
North East Lincolnshire Council,http://statistics.data.gov.uk/id/local-authority/00FC,Community Services,Neighbourhood Services,Trading Standards,Private Contractors,Third Party Prov - Private,PH101,09/05/2011,4474,600.00 ,Revenue,EAST RIDING OF YORKSHIRE,100377
North East Lincolnshire Council,http://statistics.data.gov.uk/id/local-authority/00FC,Community Services,Neighbourhood Services,Street Cleansing,Miscellaneous Expenses,Licences,LL116,18/05/2011,7496,"10,320.00 ",Revenue,ENVIRONMENT AGENCY,101076
North East Lincolnshire Council,http://statistics.data.gov.uk/id/local-authority/00FC,Community Services,Neighbourhood Services,Grounds,Equip / Furniture / Materials,Equipment - Purchase,LA101,17/05/2011,6809,"7,812.00 ",Revenue,F G ADAMSON & SON,100752
North East Lincolnshire Council,http://statistics.data.gov.uk/id/local-authority/00FC,Community Services,Neighbourhood Services,Garage & Fleet Strategy,Direct Transport Costs,Vehicles - Repairs And Maint,JA105,23/05/2011,9754,850.00 ,Revenue,FLEET FACTORS LTD,100886
North East Lincolnshire Council,http://statistics.data.gov.uk/id/local-authority/00FC,Community Services,Assistant Chief Executive,Safer Communities P/Ship,Private Contractors,Third Party Prov - Private,PH101,19/05/2011,7946,"2,000.00 ",Revenue,FOCUS 7 LTD,101046
North East Lincolnshire Council,http://statistics.data.gov.uk/id/local-authority/00FC,Community Services,Community & Support Services,Events,Other Agencies,Performers,PJ101,31/05/2011,11131,"1,290.00 ",Revenue,FOOLS PARADISE LTD,104193
North East Lincolnshire Council,http://statistics.data.gov.uk/id/local-authority/00FC,Community Services,Assistant Chief Executive,Safer Communities P/Ship,Indirect Employee Expenses,Staff Training,EB122,17/05/2011,6442,"9,900.00 ",Revenue,FRT LTD,102358
North East Lincolnshire Council,http://statistics.data.gov.uk/id/local-authority/00FC,Community Services,Neighbourhood Services,Waste Collection,Indirect Employee Expenses,Staff Training,EB122,17/05/2011,6442,"1,800.00 ",Revenue,FRT LTD,102358
North East Lincolnshire Council,http://statistics.data.gov.uk/id/local-authority/00FC,Community Services,Community & Support Services,Customer Services,Private Contractors,External Security Services,PH103,09/05/2011,4659,-696.56 ,Revenue,G4S CASH SERVICES (UK) LIMITED,100952
North East Lincolnshire Council,http://statistics.data.gov.uk/id/local-authority/00FC,Community Services,Community & Support Services,Customer Services,Private Contractors,External Security Services,PH103,09/05/2011,4792,"3,416.24 ",Revenue,G4S CASH SERVICES (UK) LIMITED,100952
North East Lincolnshire Council,http://statistics.data.gov.uk/id/local-authority/00FC,Community Services,Business & Performance Mangt,Supporting People,Other Agencies,Third Pp - Block Gross,PJ103,25/05/2011,10339,Redacted Commercially Sensitive,Revenue,GRIMSBY AND CLEETHORPES YMCA,100305
North East Lincolnshire Council,http://statistics.data.gov.uk/id/local-authority/00FC,Community Services,Neighbourhood Services,Grounds,Private Contractors,Third Party Prov - Private,PH101,13/05/2011,6445,"1,285.30 ",Revenue,GRIMSBY OPERATIONS LTD,101116
North East Lincolnshire Council,http://statistics.data.gov.uk/id/local-authority/00FC,Community Services,Neighbourhood Services,Garage & Fleet Strategy,Direct Transport Costs,Vehicles - Repairs And Maint,JA105,26/05/2011,10471,727.40 ,Revenue,H & L GARAGES LTD,100612
North East Lincolnshire Council,http://statistics.data.gov.uk/id/local-authority/00FC,Community Services,Neighbourhood Services,Garage & Fleet Strategy,Direct Transport Costs,Vehicles - Repairs And Maint,JA105,23/05/2011,9501,-132.01 ,Revenue,HARTWELL FORD GRIMSBY,100613
North East Lincolnshire Council,http://statistics.data.gov.uk/id/local-authority/00FC,Community Services,Business & Performance Mangt,Supporting People,Other Agencies,Third Pp - Block Subsidy,PJ102,18/05/2011,7772,Redacted Commercially Sensitive,Revenue,HICA,100319
North East Lincolnshire Council,http://statistics.data.gov.uk/id/local-authority/00FC,Community Services,Neighbourhood Services,Countryside Management,Rep Alterations Maint Building,Buildings - Repairs And Maint,GA102,09/05/2011,4830,"2,445.00 ",Revenue,HODSON & KAUSS,100620
North East Lincolnshire Council,http://statistics.data.gov.uk/id/local-authority/00FC,Community Services,Neighbourhood Services,Countryside Management,Rep Alterations Maint Building,Buildings - Repairs And Maint,GA102,16/05/2011,6596,"2,860.00 ",Revenue,HODSON & KAUSS,100620
North East Lincolnshire Council,http://statistics.data.gov.uk/id/local-authority/00FC,Community Services,Business & Performance Mangt,Supporting People,Other Agencies,Third Pp - Block Subsidy,PJ102,18/05/2011,7774,Redacted Commercially Sensitive,Revenue,HOUSING & SUPPORT SOLUTIONS,100321
North East Lincolnshire Council,http://statistics.data.gov.uk/id/local-authority/00FC,Community Services,Business & Performance Mangt,Supporting People,Other Agencies,Third Pp - Block Subsidy,PJ102,18/05/2011,7773,Redacted Commercially Sensitive,Revenue,HOUSING 21,100320
North East Lincolnshire Council,http://statistics.data.gov.uk/id/local-authority/00FC,Community Services,Community & Support Services,Discovery Centre,Equip / Furniture / Materials,Goods For Resale,LA123,23/05/2011,9439,-12.64 ,Revenue,HULLEYS FROZEN,102551
North East Lincolnshire Council,http://statistics.data.gov.uk/id/local-authority/00FC,Community Services,Community & Support Services,Tourist Information Centre,Private Contractors,Third Party Prov - Private,PH101,31/05/2011,11075,"6,658.20 ",Revenue,HUMBER BRIDGE BOARD,101054
North East Lincolnshire Council,http://statistics.data.gov.uk/id/local-authority/00FC,Community Services,Community & Support Services,Tourist Information Centre,Private Contractors,Third Party Prov - Private,PH101,31/05/2011,11076,"6,998.40 ",Revenue,HUMBER BRIDGE BOARD,101054
North East Lincolnshire Council,http://statistics.data.gov.uk/id/local-authority/00FC,Community Services,Business & Performance Mangt,Supporting People,Other Agencies,Third Pp - Block Gross,PJ103,25/05/2011,10342,Redacted Commercially Sensitive,Revenue,HUMBERCARE,100311
North East Lincolnshire Council,http://statistics.data.gov.uk/id/local-authority/00FC,Community Services,Assistant Chief Executive,Cohesion,Contributions To Provisions,Contributions - Other,LK103,16/05/2011,7026,"3,750.00 ",Revenue,HUMBERSIDE FIRE & RESCUE SERVICE,100667
North East Lincolnshire Council,http://statistics.data.gov.uk/id/local-authority/00FC,Community Services,Community & Support Services,Museums & N F Heritage Centre,Contributions To Provisions,Contributions - Third Sector,LK102,10/05/2011,5448,"16,300.00 ",Revenue,IMMINGHAM MUSEUM,101101
North East Lincolnshire Council,http://statistics.data.gov.uk/id/local-authority/00FC,Community Services,Neighbourhood Services,Street Cleansing,Private Contractors,Contract Payments,PH105,06/05/2011,4073,"30,000.00 ",Revenue,IMMINGHAM TOWN COUNCIL,101597
North East Lincolnshire Council,http://statistics.data.gov.uk/id/local-authority/00FC,Community Services,Neighbourhood Services,Street Cleansing,Private Contractors,Third Party Prov - Private,PH101,23/05/2011,9494,-991.84 ,Revenue,INITIAL MEDICAL SERVICES LTD,102141
North East Lincolnshire Council,http://statistics.data.gov.uk/id/local-authority/00FC,Community Services,Neighbourhood Services,Street Cleansing,Private Contractors,Third Party Prov - Private,PH101,23/05/2011,9441,"1,144.43 ",Revenue,INITIAL MEDICAL SERVICES LTD,102141
North East Lincolnshire Council,http://statistics.data.gov.uk/id/local-authority/00FC,Community Services,Neighbourhood Services,Street Cleansing,Private Contractors,Third Party Prov - Private,PH101,23/05/2011,9440,"3,095.22 ",Revenue,INITIAL MEDICAL SERVICES LTD,102141
North East Lincolnshire Council,http://statistics.data.gov.uk/id/local-authority/00FC,Community Services,Community & Support Services,Bradley Playing Fields,Equip / Furniture / Materials,Equipment - Hire,LA102,31/05/2011,11109,895.31 ,Revenue,INVESTEC ASSET FINANCE PLC,104003
North East Lincolnshire Council,http://statistics.data.gov.uk/id/local-authority/00FC,Community Services,Neighbourhood Services,Trading Standards,Communications And Computing,Computer S/Ware - Maintenance,LF102,17/05/2011,6931,657.00 ,Revenue,ITSA LIMITED,101451
North East Lincolnshire Council,http://statistics.data.gov.uk/id/local-authority/00FC,Community Services,Neighbourhood Services,Cemeteries & Crematorium,Grounds Maintenance Costs,Grounds Maintenance,GJ101,19/05/2011,7948,"1,190.00 ",Revenue,J MELTON TREE SERVICES LTD,101809
North East Lincolnshire Council,http://statistics.data.gov.uk/id/local-authority/00FC,Vehicle Replacement Programme,Vehicle Replacement Programme,Vehicle Replacement Programme,Cap Veh Plt Eqp-Purchase,Cap Veh Plt Eqp-Purchase,YB101,31/05/2011,11232,"62,092.00 ",Capital,JOHNSTON SWEEPERS LTD,101463
North East Lincolnshire Council,http://statistics.data.gov.uk/id/local-authority/00FC,Vehicle Replacement Programme,Vehicle Replacement Programme,Vehicle Replacement Programme,Cap Veh Plt Eqp-Purchase,Cap Veh Plt Eqp-Purchase,YB101,31/05/2011,11230,"62,092.00 ",Capital,JOHNSTON SWEEPERS LTD,101463
North East Lincolnshire Council,http://statistics.data.gov.uk/id/local-authority/00FC,Vehicle Replacement Programme,Vehicle Replacement Programme,Vehicle Replacement Programme,Cap Veh Plt Eqp-Purchase,Cap Veh Plt Eqp-Purchase,YB101,31/05/2011,11227,"62,092.00 ",Capital,JOHNSTON SWEEPERS LTD,101463
North East Lincolnshire Council,http://statistics.data.gov.uk/id/local-authority/00FC,Vehicle Replacement Programme,Vehicle Replacement Programme,Vehicle Replacement Programme,Cap Veh Plt Eqp-Purchase,Cap Veh Plt Eqp-Purchase,YB101,31/05/2011,11226,"62,092.00 ",Capital,JOHNSTON SWEEPERS LTD,101463
North East Lincolnshire Council,http://statistics.data.gov.uk/id/local-authority/00FC,Community Services,Assistant Chief Executive,Community Pride,Private Contractors,Third Party Prov - Private,PH101,13/05/2011,6493,"1,150.00 ",Revenue,K9 (EURO) LTD,102250
North East Lincolnshire Council,http://statistics.data.gov.uk/id/local-authority/00FC,Community Services,Assistant Chief Executive,Community Pride,Private Contractors,Third Party Prov - Private,PH101,13/05/2011,6501,"1,923.00 ",Revenue,K9 (EURO) LTD,102250
North East Lincolnshire Council,http://statistics.data.gov.uk/id/local-authority/00FC,Community Services,Assistant Chief Executive,Community Pride,Equip / Furniture / Materials,Equipment - Purchase,LA101,05/05/2011,3256,"8,789.00 ",Revenue,K9 (EURO) LTD,102250
North East Lincolnshire Council,http://statistics.data.gov.uk/id/local-authority/00FC,Community Services,Neighbourhood Services,Trading Standards,Direct Employee Expenses,Agency Staff,EA105,17/05/2011,6455,"1,083.00 ",Revenue,KENYON BLOCK CONSULTANTS,101878
North East Lincolnshire Council,http://statistics.data.gov.uk/id/local-authority/00FC,Community Services,Neighbourhood Services,Trading Standards,Direct Employee Expenses,Agency Staff,EA105,17/05/2011,6473,"1,377.50 ",Revenue,KENYON BLOCK CONSULTANTS,101878
North East Lincolnshire Council,http://statistics.data.gov.uk/id/local-authority/00FC,Community Services,Business & Performance Mangt,Supporting People,Other Agencies,Third Pp - Block Subsidy,PJ102,18/05/2011,7775,Redacted Commercially Sensitive,Revenue,KERSHAW HOUSE,100322
North East Lincolnshire Council,http://statistics.data.gov.uk/id/local-authority/00FC,Community Services,Community & Support Services,Library Service,Private Contractors,Third Party Prov - Private,PH101,19/05/2011,8476,871.48 ,Revenue,KINGSTON UPON HULL CITY COUNCIL,100541
North East Lincolnshire Council,http://statistics.data.gov.uk/id/local-authority/00FC,Community Services,Community & Support Services,Executive Director Mgmt A/C,Grants And Subscriptions,Subscriptions,LJ101,06/05/2011,4371,500.00 ,Revenue,KIRKLEES COUNCIL,103455
North East Lincolnshire Council,http://statistics.data.gov.uk/id/local-authority/00FC,Community Services,Neighbourhood Services,Garage & Fleet Strategy,Direct Transport Costs,Vehicles - Repairs And Maint,JA105,20/05/2011,8592,552.80 ,Revenue,LINCOL OIL COMPANY,101562
North East Lincolnshire Council,http://statistics.data.gov.uk/id/local-authority/00FC,Community Services,Neighbourhood Services,Garage & Fleet Strategy,Equip / Furniture / Materials,Equipment - Maintenance,LA104,13/05/2011,6583,"3,140.00 ",Revenue,LINCOL OIL COMPANY,101562
North East Lincolnshire Council,http://statistics.data.gov.uk/id/local-authority/00FC,Community Services,Business & Performance Mangt,Ot Stores,Equip / Furniture / Materials,Health & Safety Supplies,LA116,05/05/2011,2273,"1,860.00 ",Revenue,LINDALE HEALTHCARE,102517
North East Lincolnshire Council,http://statistics.data.gov.uk/id/local-authority/00FC,Community Services,Business & Performance Mangt,Supporting People,Other Agencies,Third Pp - Block Subsidy,PJ102,09/05/2011,4823,Redacted Commercially Sensitive,Revenue,LONGHURST AND HAVELOK HOMES LTD,100342
North East Lincolnshire Council,http://statistics.data.gov.uk/id/local-authority/00FC,Community Services,Business & Performance Mangt,Supporting People,Other Agencies,Third Pp - Block Subsidy,PJ102,18/05/2011,7783,Redacted Commercially Sensitive,Revenue,LONGHURST AND HAVELOK HOMES LTD,100342
North East Lincolnshire Council,http://statistics.data.gov.uk/id/local-authority/00FC,Community Services,Business & Performance Mangt,Supporting People,Other Agencies,Third Pp - Block Subsidy,PJ102,18/05/2011,7782,Redacted Commercially Sensitive,Revenue,LONGHURST AND HAVELOK HOMES LTD,100342
North East Lincolnshire Council,http://statistics.data.gov.uk/id/local-authority/00FC,Community Services,Business & Performance Mangt,Supporting People,Other Agencies,Third Pp - Block Gross,PJ103,25/05/2011,10345,Redacted Commercially Sensitive,Revenue,LONGHURST AND HAVELOK HOMES LTD,100342
North East Lincolnshire Council,http://statistics.data.gov.uk/id/local-authority/00FC,Community Services,Community & Support Services,Library Service,Communications And Computing,Computer Consumables,LF109,17/05/2011,6975,538.94 ,Revenue,LYRECO UK LIMITED,101120
North East Lincolnshire Council,http://statistics.data.gov.uk/id/local-authority/00FC,Community Services,Community & Support Services,Customer Services,Print Stationery / Gen Off Exp,Printing And Stationery,LD103,20/05/2011,9135,689.49 ,Revenue,LYRECO UK LIMITED,101120
North East Lincolnshire Council,http://statistics.data.gov.uk/id/local-authority/00FC,Community Services,Community & Support Services,Communities Business Supp,Communications And Computing,Computer Consumables,LF109,09/05/2011,4753,839.14 ,Revenue,LYRECO UK LIMITED,101120
North East Lincolnshire Council,http://statistics.data.gov.uk/id/local-authority/00FC,Community Services,Neighbourhood Services,Waste Strategy,Communications And Computing,Computer S/Ware - Maintenance,LF102,17/05/2011,7095,"4,250.00 ",Revenue,MAYRISE LIMITED,101670
North East Lincolnshire Council,http://statistics.data.gov.uk/id/local-authority/00FC,Community Services,Neighbourhood Services,Waste Collection,Private Contractors,Third Party Prov - Private,PH101,31/05/2011,10947,"2,700.00 ",Revenue,MGB,101544
North East Lincolnshire Council,http://statistics.data.gov.uk/id/local-authority/00FC,Community Services,Neighbourhood Services,Waste Collection,Private Contractors,Third Party Prov - Private,PH101,31/05/2011,10916,"6,600.00 ",Revenue,MGB,101544
North East Lincolnshire Council,http://statistics.data.gov.uk/id/local-authority/00FC,Community Services,Community & Support Services,Tourist Information Centre,Miscellaneous Income,Miscellaneous Income,VG101,13/05/2011,6481,Redacted Commercially Sensitive,Revenue,NATIONAL EXPRESS LTD,100835
North East Lincolnshire Council,http://statistics.data.gov.uk/id/local-authority/00FC,Community Services,Community & Support Services,Tourist Information Centre,Miscellaneous Income,Miscellaneous Income,VG101,13/05/2011,6482,Redacted Commercially Sensitive,Revenue,NATIONAL EXPRESS LTD,100835
North East Lincolnshire Council,http://statistics.data.gov.uk/id/local-authority/00FC,Community Services,Community & Support Services,Tourist Information Centre,Private Contractors,Third Party Prov - Private,PH101,13/05/2011,6482,Redacted Commercially Sensitive,Revenue,NATIONAL EXPRESS LTD,100835
North East Lincolnshire Council,http://statistics.data.gov.uk/id/local-authority/00FC,Community Services,Community & Support Services,Tourist Information Centre,Private Contractors,Third Party Prov - Private,PH101,13/05/2011,6481,Redacted Commercially Sensitive,Revenue,NATIONAL EXPRESS LTD,100835
North East Lincolnshire Council,http://statistics.data.gov.uk/id/local-authority/00FC,Community Services,Community & Support Services,Communities Business Supp,Communications And Computing,Postage,LF111,19/05/2011,8197,580.98 ,Revenue,NEOPOST FINANCE LIMITED,101065
North East Lincolnshire Council,http://statistics.data.gov.uk/id/local-authority/00FC,Community Services,Neighbourhood Services,Waste Strategy,Customer And Client Receipts,Sales - Std Vat 7,VC101,16/05/2011,6919,Redacted Commercially Sensitive,Revenue,NEWLINCS DEVELOPMENT LTD,101125
North East Lincolnshire Council,http://statistics.data.gov.uk/id/local-authority/00FC,Community Services,Neighbourhood Services,Waste Strategy,Customer And Client Receipts,Sales - Std Vat 7,VC101,23/05/2011,9980,Redacted Commercially Sensitive,Revenue,NEWLINCS DEVELOPMENT LTD,101125
North East Lincolnshire Council,http://statistics.data.gov.uk/id/local-authority/00FC,Community Services,Neighbourhood Services,Waste Strategy,Customer And Client Receipts,Fees/Chrgs-O/Side Scope Vat 4,VC125,16/05/2011,6919,Redacted Commercially Sensitive,Revenue,NEWLINCS DEVELOPMENT LTD,101125
North East Lincolnshire Council,http://statistics.data.gov.uk/id/local-authority/00FC,Community Services,Neighbourhood Services,Waste Strategy,Customer And Client Receipts,Fees/Chrgs-O/Side Scope Vat 4,VC125,23/05/2011,9980,Redacted Commercially Sensitive,Revenue,NEWLINCS DEVELOPMENT LTD,101125
North East Lincolnshire Council,http://statistics.data.gov.uk/id/local-authority/00FC,Community Services,Neighbourhood Services,Waste Disposal,Private Contractors,Contract Payments Landfill Tax,PH106,16/05/2011,6919,Redacted Commercially Sensitive,Revenue,NEWLINCS DEVELOPMENT LTD,101125
North East Lincolnshire Council,http://statistics.data.gov.uk/id/local-authority/00FC,Community Services,Neighbourhood Services,Waste Disposal,Private Contractors,Contract Payments Landfill Tax,PH106,23/05/2011,9980,Redacted Commercially Sensitive,Revenue,NEWLINCS DEVELOPMENT LTD,101125
North East Lincolnshire Council,http://statistics.data.gov.uk/id/local-authority/00FC,Community Services,Neighbourhood Services,Waste Disposal,Private Contractors,Contract Payments,PH105,16/05/2011,6919,Redacted Commercially Sensitive,Revenue,NEWLINCS DEVELOPMENT LTD,101125
North East Lincolnshire Council,http://statistics.data.gov.uk/id/local-authority/00FC,Community Services,Neighbourhood Services,Waste Disposal,Private Contractors,Contract Payments,PH105,23/05/2011,9980,Redacted Commercially Sensitive,Revenue,NEWLINCS DEVELOPMENT LTD,101125
North East Lincolnshire Council,http://statistics.data.gov.uk/id/local-authority/00FC,Community Services,Business & Performance Mangt,Supporting People,Other Agencies,Third Pp - Block Subsidy,PJ102,18/05/2011,7781,Redacted Commercially Sensitive,Revenue,NORTH EAST LINCOLNSHIRE CARE TRUST PLUS LD,100340
North East Lincolnshire Council,http://statistics.data.gov.uk/id/local-authority/00FC,Community Services,Neighbourhood Services,Countryside Management,Rates,Rates,GD101,16/05/2011,6441,"1,327.09 ",Revenue,NORTH EAST LINCOLNSHIRE COUNCIL,100894
North East Lincolnshire Council,http://statistics.data.gov.uk/id/local-authority/00FC,Community Services,Assistant Chief Executive,Safer Communities P/Ship,Government Departments,Third Party Prov - Govt Depts,PE101,18/05/2011,7006,Redacted Commercially Sensitive,Revenue,NORTH EAST LINCOLNSHIRE PRIMARY CARE TRUST,100337
North East Lincolnshire Council,http://statistics.data.gov.uk/id/local-authority/00FC,Community Services,Assistant Chief Executive,Safer Communities P/Ship,Government Departments,Third Party Prov - Govt Depts,PE101,18/05/2011,7008,Redacted Commercially Sensitive,Revenue,NORTH EAST LINCOLNSHIRE PRIMARY CARE TRUST,100337
North East Lincolnshire Council,http://statistics.data.gov.uk/id/local-authority/00FC,Community Services,Assistant Chief Executive,Drugs/Substance Misuse,Other Agencies,Grants Pd Over To Third Party,PJ138,16/05/2011,6935,Redacted Commercially Sensitive,Revenue,NORTH EAST LINCOLNSHIRE PRIMARY CARE TRUST,100337
North East Lincolnshire Council,http://statistics.data.gov.uk/id/local-authority/00FC,Community Services,Business & Performance Mangt,Supporting People,Other Agencies,Third Pp - Block Subsidy,PJ102,18/05/2011,7779,Redacted Commercially Sensitive,Revenue,NORTH EAST LINCOLNSHIRE PRIMARY CARE TRUST,100337
North East Lincolnshire Council,http://statistics.data.gov.uk/id/local-authority/00FC,Community Services,Business & Performance Mangt,Supporting People,Other Agencies,Third Pp - Block Subsidy,PJ102,12/05/2011,5985,Redacted Commercially Sensitive,Revenue,NORTH EAST LINCS CARELINK,100908
North East Lincolnshire Council,http://statistics.data.gov.uk/id/local-authority/00FC,Community Services,Community & Support Services,Museums & N F Heritage Centre,Direct Employee Expenses,Pay,EA101,16/05/2011,6889,"2,500.00 ",Revenue,NORTH LINCOLNSHIRE COUNCIL,101186
North East Lincolnshire Council,http://statistics.data.gov.uk/id/local-authority/00FC,Community Services,Neighbourhood Services,Street Cleansing,Equip / Furniture / Materials,Equipment - Purchase,LA101,09/05/2011,4838,815.50 ,Revenue,NORTHERN MUNICIPAL SPARES LTD,103102
North East Lincolnshire Council,http://statistics.data.gov.uk/id/local-authority/00FC,Community Services,Neighbourhood Services,Trading Standards,Private Contractors,Third Party Prov - Private,PH101,13/05/2011,6468,833.00 ,Revenue,NUNEATON SIGNS LTD,103655
North East Lincolnshire Council,http://statistics.data.gov.uk/id/local-authority/00FC,Community Services,Community & Support Services,Library Service,Equip / Furniture / Materials,Library Books,LA120,26/05/2011,10420,"2,844.73 ",Revenue,OCLC (UK) LTD,103256
North East Lincolnshire Council,http://statistics.data.gov.uk/id/local-authority/00FC,Community Services,Community & Support Services,Library Service,Equip / Furniture / Materials,Library Books,LA120,23/05/2011,9500,-60.50 ,Revenue,OCLC EUROPE,100875
North East Lincolnshire Council,http://statistics.data.gov.uk/id/local-authority/00FC,Community Services,Community & Support Services,Library Service,Grants And Subscriptions,Subscriptions,LJ101,20/05/2011,9019,"1,650.00 ",Revenue,OCLC EUROPE,100875
North East Lincolnshire Council,http://statistics.data.gov.uk/id/local-authority/00FC,Community Services,Business & Performance Mangt,Supporting People,Other Agencies,Third Pp - Block Subsidy,PJ102,18/05/2011,7784,Redacted Commercially Sensitive,Revenue,OPEN DOOR (HEALTH) LTD,103888
North East Lincolnshire Council,http://statistics.data.gov.uk/id/local-authority/00FC,Community Services,Neighbourhood Services,Env Commerce Food & Health,Direct Employee Expenses,Agency Staff,EA105,13/05/2011,6471,988.24 ,Revenue,OSBORNE RICHARDSON,101354
North East Lincolnshire Council,http://statistics.data.gov.uk/id/local-authority/00FC,Community Services,Neighbourhood Services,Garage & Fleet Strategy,Direct Transport Costs,Vehicles - Repairs And Maint,JA105,19/05/2011,8267,525.00 ,Revenue,P J PRESTON AUTO ELECT LTD,100739
North East Lincolnshire Council,http://statistics.data.gov.uk/id/local-authority/00FC,Community Services,Neighbourhood Services,Garage & Fleet Strategy,Direct Transport Costs,Vehicles - Repairs And Maint,JA105,31/05/2011,10878,537.06 ,Revenue,P J PRESTON AUTO ELECT LTD,100739
North East Lincolnshire Council,http://statistics.data.gov.uk/id/local-authority/00FC,Community Services,Neighbourhood Services,Garage & Fleet Strategy,Direct Transport Costs,Vehicles - Repairs And Maint,JA105,20/05/2011,9026,595.25 ,Revenue,P J PRESTON AUTO ELECT LTD,100739
North East Lincolnshire Council,http://statistics.data.gov.uk/id/local-authority/00FC,Community Services,Neighbourhood Services,Garage & Fleet Strategy,Direct Transport Costs,Vehicles - Repairs And Maint,JA105,24/05/2011,9677,618.60 ,Revenue,P J PRESTON AUTO ELECT LTD,100739
North East Lincolnshire Council,http://statistics.data.gov.uk/id/local-authority/00FC,Community Services,Neighbourhood Services,Street Cleansing,Direct Transport Costs,Vehicles - Repairs And Maint,JA105,06/05/2011,4188,"2,000.00 ",Revenue,PINECROFT LIMITED,103426
North East Lincolnshire Council,http://statistics.data.gov.uk/id/local-authority/00FC,Community Services,Community & Support Services,Library Service,Private Contractors,Third Party Prov - Private,PH101,17/05/2011,6806,510.00 ,Revenue,PLESCON SECURITY PRODUCTS,103734
North East Lincolnshire Council,http://statistics.data.gov.uk/id/local-authority/00FC,Community Services,Business & Performance Mangt,Supporting People,Other Agencies,Third Pp - Block Subsidy,PJ102,18/05/2011,7768,Redacted Commercially Sensitive,Revenue,PRIME LIFE LTD,100306
